Body Name,Body,Service Label,Service Code,CIPFA Detailed Expenditure Type,CIPFA Detailed Expenditure Code,Date,Transaction Number,Net Amount,Supplier Name,
Nottinghamshire County Council,1111/1001,Surplus or Deficit from Trading Undertak,TRADING,Supplies & Services,DFA,05/12/2018,11-10001,"1,261.42",Royal Mail,
Nottinghamshire County Council,1111/1001,Surplus or Deficit from Trading Undertak,TRADING,Supplies & Services,DAA,06/12/2018,11-10001,509.6,Gratnells Ltd,
Nottinghamshire County Council,1111/1001,Surplus or Deficit from Trading Undertak,TRADING,Supplies & Services,DDA,06/12/2018,11-10001,606.37,Evans Vanodine International Ltd,
Nottinghamshire County Council,1111/1001,Surplus or Deficit from Trading Undertak,TRADING,Supplies & Services,DAA,06/12/2018,11-10001,"1,193.87",Brian Clegg (Educational Products),
Nottinghamshire County Council,1111/1001,Surplus or Deficit from Trading Undertak,TRADING,Supplies & Services,DAA,06/12/2018,11-10001,"2,189.64",Brian Clegg (Educational Products),
Nottinghamshire County Council,1111/1001,Surplus or Deficit from Trading Undertak,TRADING,Supplies & Services,DAA,06/12/2018,11-10001,"1,160.67",Brian Clegg (Educational Products),
Nottinghamshire County Council,1111/1001,Surplus or Deficit from Trading Undertak,TRADING,Supplies & Services,DAA,06/12/2018,11-10001,"2,755.75",Vivid Laminating Technologies Ltd,
Nottinghamshire County Council,1111/1001,Surplus or Deficit from Trading Undertak,TRADING,Supplies & Services,DAA,06/12/2018,11-10001,825.95,Vivid Laminating Technologies Ltd,
Nottinghamshire County Council,1111/1001,Surplus or Deficit from Trading Undertak,TRADING,Supplies & Services,DKA,06/12/2018,11-10001,"5,725.96",Essity Uk Ltd,
Nottinghamshire County Council,1111/1001,Surplus or Deficit from Trading Undertak,TRADING,Supplies & Services,DAA,06/12/2018,11-10001,532.08,Naish Felts Ltd,
Nottinghamshire County Council,1111/1001,Surplus or Deficit from Trading Undertak,TRADING,Premises Related,BJA,06/12/2018,11-10001,777.28,Candor Services Ltd,
Nottinghamshire County Council,1111/1001,Surplus or Deficit from Trading Undertak,TRADING,Premises Related,BJA,06/12/2018,11-10001,"1,867.77",Candor Services Ltd,
Nottinghamshire County Council,1111/1001,Surplus or Deficit from Trading Undertak,TRADING,Premises Related,BJA,06/12/2018,11-10001,678,Candor Services Ltd,
Nottinghamshire County Council,1111/1001,Surplus or Deficit from Trading Undertak,TRADING,Premises Related,BJA,06/12/2018,11-10001,"2,935.60",Bunzl Cleaning & Hygiene Supplies,
Nottinghamshire County Council,1111/1001,Surplus or Deficit from Trading Undertak,TRADING,Premises Related,BJA,06/12/2018,11-10001,"1,104.96",Cromwell Polythene Ltd,
Nottinghamshire County Council,1111/1001,Surplus or Deficit from Trading Undertak,TRADING,Premises Related,BJA,06/12/2018,11-10001,747,G & S Corporate Supplies,
Nottinghamshire County Council,1111/1001,Surplus or Deficit from Trading Undertak,TRADING,Supplies & Services,DAA,14/12/2018,11-10001,"1,496.00",Flexifom Business Furniture Ltd,
Nottinghamshire County Council,1111/1001,Surplus or Deficit from Trading Undertak,TRADING,Supplies & Services,DDA,14/12/2018,11-10001,"2,010.00",Antalis Ltd,
Nottinghamshire County Council,1111/1001,Surplus or Deficit from Trading Undertak,TRADING,Supplies & Services,DDA,14/12/2018,11-10001,"1,320.30",Staedtler Uk Ltd,
Nottinghamshire County Council,1111/1001,Surplus or Deficit from Trading Undertak,TRADING,Supplies & Services,DDA,14/12/2018,11-10001,527.78,Edding Uk Ltd,
Nottinghamshire County Council,1111/1001,Surplus or Deficit from Trading Undertak,TRADING,Premises Related,BJA,14/12/2018,11-10001,532.08,Henkel Ltd,
Nottinghamshire County Council,1111/1001,Surplus or Deficit from Trading Undertak,TRADING,Premises Related,BJA,14/12/2018,11-10001,805.5,Midland Wiper Mfg Company Ltd,
Nottinghamshire County Council,1111/1001,Surplus or Deficit from Trading Undertak,TRADING,Supplies & Services,DKA,14/12/2018,11-10001,"3,287.10",Essity Uk Ltd,
Nottinghamshire County Council,1111/1001,Surplus or Deficit from Trading Undertak,TRADING,Supplies & Services,DDA,14/12/2018,11-10001,995.21,Banner Group Limited,
Nottinghamshire County Council,1111/1001,Surplus or Deficit from Trading Undertak,TRADING,Supplies & Services,DDA,14/12/2018,11-10001,548.03,Banner Group Limited,
Nottinghamshire County Council,1111/1001,Surplus or Deficit from Trading Undertak,TRADING,Supplies & Services,DDA,14/12/2018,11-10001,"1,002.66",Hamelin Brands Ltd,
Nottinghamshire County Council,1111/1001,Surplus or Deficit from Trading Undertak,TRADING,Supplies & Services,DDA,14/12/2018,11-10001,859.79,Hamelin Brands Ltd,
Nottinghamshire County Council,1111/1001,Surplus or Deficit from Trading Undertak,TRADING,Premises Related,BJA,14/12/2018,11-10001,678.67,Creativity International Ltd,
Nottinghamshire County Council,1111/1001,Surplus or Deficit from Trading Undertak,TRADING,Supplies & Services,DAA,14/12/2018,11-10001,561.06,Coptrin Ltd,
Nottinghamshire County Council,1111/1001,Surplus or Deficit from Trading Undertak,TRADING,Supplies & Services,DAA,14/12/2018,11-10001,822.72,Coptrin Ltd,
Nottinghamshire County Council,1111/1001,Surplus or Deficit from Trading Undertak,TRADING,Supplies & Services,DAA,14/12/2018,11-10001,595.52,Eastpoint,
Nottinghamshire County Council,1111/1001,Surplus or Deficit from Trading Undertak,TRADING,Supplies & Services,DAA,14/12/2018,11-10001,747.09,Eastpoint,
Nottinghamshire County Council,1111/1001,Surplus or Deficit from Trading Undertak,TRADING,Premises Related,BAA,14/12/2018,11-10001,774.1,Master Matting Company Ltd,
Nottinghamshire County Council,1111/1001,Surplus or Deficit from Trading Undertak,TRADING,Premises Related,BJA,14/12/2018,11-10001,555.4,Bunzl Cleaning & Hygiene Supplies,
Nottinghamshire County Council,1111/1001,Surplus or Deficit from Trading Undertak,TRADING,Supplies & Services,DAA,14/12/2018,11-10001,661.38,Kit For Kids Ltd,
Nottinghamshire County Council,1111/1001,Surplus or Deficit from Trading Undertak,TRADING,Supplies & Services,DAA,14/12/2018,11-10001,593,Spaceright Europe Ltd,
Nottinghamshire County Council,1111/1001,Surplus or Deficit from Trading Undertak,TRADING,Supplies & Services,DAA,14/12/2018,11-10001,540,Hardy & Hanson Ltd,
Nottinghamshire County Council,1111/1001,Surplus or Deficit from Trading Undertak,TRADING,Supplies & Services,DAA,14/12/2018,11-10001,645.04,Kent County Supplies,
Nottinghamshire County Council,1111/1001,Surplus or Deficit from Trading Undertak,TRADING,Supplies & Services,DAA,14/12/2018,11-10001,678.22,Kent County Supplies,
Nottinghamshire County Council,1111/1001,Surplus or Deficit from Trading Undertak,TRADING,Supplies & Services,DAA,14/12/2018,11-10001,694.48,Kent County Supplies,
Nottinghamshire County Council,1111/1001,Surplus or Deficit from Trading Undertak,TRADING,Supplies & Services,DFA,14/12/2018,11-10001,559.8,Handset Solutions Ltd,
Nottinghamshire County Council,1111/1001,Surplus or Deficit from Trading Undertak,TRADING,Supplies & Services,DAA,14/12/2018,11-10001,651.67,Ww (Uk) Ltd T/A Tc Group,
Nottinghamshire County Council,1111/1001,Surplus or Deficit from Trading Undertak,TRADING,Transport Related,CAA,14/12/2018,11-10001,"1,021.52",Greenspeed Nv/Sa,
Nottinghamshire County Council,1111/1001,Surplus or Deficit from Trading Undertak,TRADING,Premises Related,BJA,17/12/2018,11-10001,"2,781.10",Robert Scott & Sons Ltd,
Nottinghamshire County Council,1111/1001,Surplus or Deficit from Trading Undertak,TRADING,Supplies & Services,DAA,17/12/2018,11-10001,857.56,Wv Howe Ltd,
Nottinghamshire County Council,1111/1001,Surplus or Deficit from Trading Undertak,TRADING,Supplies & Services,DDA,17/12/2018,11-10001,651.68,Edding Uk Ltd,
Nottinghamshire County Council,1111/1001,Surplus or Deficit from Trading Undertak,TRADING,Supplies & Services,DBA,17/12/2018,11-10001,533.17,North West Tea Service Ltd,
Nottinghamshire County Council,1111/1001,Surplus or Deficit from Trading Undertak,TRADING,Supplies & Services,DKA,18/12/2018,11-10001,"1,164.28",Kimberly Clark European Services Lt,
Nottinghamshire County Council,1111/1001,Surplus or Deficit from Trading Undertak,TRADING,Supplies & Services,DKA,19/12/2018,11-10001,"3,829.38",Essity Uk Ltd,
Nottinghamshire County Council,1111/1001,Surplus or Deficit from Trading Undertak,TRADING,Supplies & Services,DKA,19/12/2018,11-10001,"7,517.60",Essity Uk Ltd,
Nottinghamshire County Council,1111/1001,Surplus or Deficit from Trading Undertak,TRADING,Supplies & Services,DAA,19/12/2018,11-10001,"2,257.92",Kent County Supplies,
Nottinghamshire County Council,1111/1001,Surplus or Deficit from Trading Undertak,TRADING,Supplies & Services,DAA,19/12/2018,11-10001,653.78,Kent County Supplies,
Nottinghamshire County Council,1111/1001,Surplus or Deficit from Trading Undertak,TRADING,Premises Related,BJA,20/12/2018,11-10001,552,Arco Ltd,
Nottinghamshire County Council,1111/1001,Surplus or Deficit from Trading Undertak,TRADING,Supplies & Services,DKA,20/12/2018,11-10001,"2,578.45",Essity Uk Ltd,
Nottinghamshire County Council,1111/1001,Surplus or Deficit from Trading Undertak,TRADING,Premises Related,BJA,20/12/2018,11-10001,"2,123.64",Bunzl Cleaning & Hygiene Supplies,
Nottinghamshire County Council,1111/1001,Surplus or Deficit from Trading Undertak,TRADING,Premises Related,BJA,20/12/2018,11-10001,"2,401.60",Bunzl Cleaning & Hygiene Supplies,
Nottinghamshire County Council,1111/1001,Surplus or Deficit from Trading Undertak,TRADING,Premises Related,BJA,21/12/2018,11-10001,539.68,Robert Scott & Sons Ltd,
Nottinghamshire County Council,1111/1001,Surplus or Deficit from Trading Undertak,TRADING,Premises Related,BJA,21/12/2018,11-10001,"2,558.14",Robert Scott & Sons Ltd,
Nottinghamshire County Council,1111/1001,Surplus or Deficit from Trading Undertak,TRADING,Supplies & Services,DAA,21/12/2018,11-10001,718.1,Wv Howe Ltd,
Nottinghamshire County Council,1111/1001,Surplus or Deficit from Trading Undertak,TRADING,Supplies & Services,DDA,21/12/2018,11-10001,682.26,Allen Glenold Ltd,
Nottinghamshire County Council,1111/1001,Surplus or Deficit from Trading Undertak,TRADING,Supplies & Services,DDA,21/12/2018,11-10001,711.6,Allen Glenold Ltd,
Nottinghamshire County Council,1111/1001,Surplus or Deficit from Trading Undertak,TRADING,Premises Related,BJA,21/12/2018,11-10001,"1,095.90",Diversey,
Nottinghamshire County Council,1111/1001,Surplus or Deficit from Trading Undertak,TRADING,Premises Related,BJA,21/12/2018,11-10001,"2,382.51",Diversey,
Nottinghamshire County Council,1111/1001,Surplus or Deficit from Trading Undertak,TRADING,Premises Related,BJA,21/12/2018,11-10001,"2,974.79",Diversey,
Nottinghamshire County Council,1111/1001,Surplus or Deficit from Trading Undertak,TRADING,Premises Related,BJA,21/12/2018,11-10001,"1,800.00",Henkel Ltd,
Nottinghamshire County Council,1111/1001,Surplus or Deficit from Trading Undertak,TRADING,Supplies & Services,DDA,21/12/2018,11-10001,562.22,Evans Vanodine International Ltd,
Nottinghamshire County Council,1111/1001,Surplus or Deficit from Trading Undertak,TRADING,Supplies & Services,DDA,21/12/2018,11-10001,789.53,Brian Clegg (Educational Products),
Nottinghamshire County Council,1111/1001,Surplus or Deficit from Trading Undertak,TRADING,Supplies & Services,DAA,21/12/2018,11-10001,"1,751.30",Catering Supplies Wakefield Ltd,
Nottinghamshire County Council,1111/1001,Surplus or Deficit from Trading Undertak,TRADING,Supplies & Services,DAA,21/12/2018,11-10001,722.94,Catering Supplies Wakefield Ltd,
Nottinghamshire County Council,1111/1001,Surplus or Deficit from Trading Undertak,TRADING,Supplies & Services,DAA,21/12/2018,11-10001,"1,347.48",Office Innovations,
Nottinghamshire County Council,1111/1001,Surplus or Deficit from Trading Undertak,TRADING,Premises Related,BJA,21/12/2018,11-10001,546.97,Newell Rubbermaid Uk Ltd,
Nottinghamshire County Council,1111/1001,Surplus or Deficit from Trading Undertak,TRADING,Premises Related,BJA,21/12/2018,11-10001,889.3,Newell Rubbermaid Uk Ltd,
Nottinghamshire County Council,1111/1001,Surplus or Deficit from Trading Undertak,TRADING,Premises Related,BJA,21/12/2018,11-10001,866.16,Newell Rubbermaid Uk Ltd,
Nottinghamshire County Council,1111/1001,Surplus or Deficit from Trading Undertak,TRADING,Premises Related,BJA,21/12/2018,11-10001,"3,389.76",J C Peacock & Company Ltd,
Nottinghamshire County Council,1111/1001,Surplus or Deficit from Trading Undertak,TRADING,Premises Related,BJA,21/12/2018,11-10001,555.4,Bunzl Cleaning & Hygiene Supplies,
Nottinghamshire County Council,1111/1001,Surplus or Deficit from Trading Undertak,TRADING,Supplies & Services,DDA,21/12/2018,11-10001,508.24,Plastoreg Smidt Gmbh,
Nottinghamshire County Council,1111/1001,Surplus or Deficit from Trading Undertak,TRADING,Employee Related,ABA,27/12/2018,11-10001,"1,363.03",Cash Flo Solution Ltd,
Nottinghamshire County Council,1111/1001,Children and Young People,CYP,Premises Related,BAA,07/12/2018,11-10884,"1,596.54",ARC Property Services Partnership L,
Nottinghamshire County Council,1111/1001,Children and Young People,CYP,Premises Related,BAA,07/12/2018,11-10886,15065.73,ARC Property Services Partnership L,
Nottinghamshire County Council,1111/1001,Children and Young People,CYP,Premises Related,BAA,07/12/2018,11-10894,206.09,ARC Property Services Partnership L,
Nottinghamshire County Council,1111/1001,Children and Young People,CYP,Premises Related,BAA,07/12/2018,11-10897,"10,349.62",ARC Property Services Partnership L,
Nottinghamshire County Council,1111/1001,Children and Young People,CYP,Premises Related,BAA,18/12/2018,11-13155,125.37,ARC Property Services Partnership L,
Nottinghamshire County Council,1111/1001,Children and Young People,CYP,Premises Related,BAA,18/12/2018,11-13159,6362.83,ARC Property Services Partnership L,
Nottinghamshire County Council,1111/1001,Children and Young People,CYP,Premises Related,BAA,19/12/2018,11-13192,"1,462.00",ARC Property Services Partnership L,
Nottinghamshire County Council,1111/1001,Children and Young People,CYP,Premises Related,BAA,19/12/2018,11-13194,"6,864.57",ARC Property Services Partnership L,
Nottinghamshire County Council,1111/1001,Children and Young People,CYP,Premises Related,BDA,03/12/2018,11-10009,840,High Peak Borough Council,
Nottinghamshire County Council,1111/1001,Children and Young People,CYP,Premises Related,BDA,03/12/2018,11-10010,"3,500.00",Diocese of Hallam Trustee,
Nottinghamshire County Council,1111/1001,Children and Young People,CYP,Premises Related,BDA,03/12/2018,11-10012,631.00,Derbyshire Dales District Council,
Nottinghamshire County Council,1111/1001,Children and Young People,CYP,Premises Related,BDA,03/12/2018,11-10018,"8,274.24",Ekmw Summit Centre,
Nottinghamshire County Council,1111/1001,Children and Young People,CYP,Premises Related,BDA,03/12/2018,11-10019,575.00,Jillings Estates Ltd,
Nottinghamshire County Council,1111/1001,Children and Young People,CYP,Premises Related,BDA,03/12/2018,11-10023,565,Bairstow Eves Nottingham T/A Countr,
Nottinghamshire County Council,1111/1001,Children and Young People,CYP,Premises Related,BEA,21/12/2018,11-12973,2931.17,Ashfield District Council,
Nottinghamshire County Council,1111/1001,Children and Young People,CYP,Transport Related,CAA,10/12/2018,11-11214,659.93,Via East Midlands Ltd,
Nottinghamshire County Council,1111/1001,Children and Young People,CYP,Transport Related,CAA,12/12/2018,11-12589,1249,Via East Midlands Ltd,
Nottinghamshire County Council,1111/1001,Children and Young People,CYP,Transport Related,CAA,12/12/2018,11-12597,362.89,Via East Midlands Ltd,
Nottinghamshire County Council,1111/1001,Children and Young People,CYP,Transport Related,CAA,17/12/2018,11-12949,80.96,Via East Midlands Ltd,
Nottinghamshire County Council,1111/1001,Children and Young People,CYP,Transport Related,CAA,17/12/2018,11-12960,387.82,Via East Midlands Ltd,
Nottinghamshire County Council,1111/1001,Children and Young People,CYP,Transport Related,CAA,21/12/2018,11-13277,"1,729.59",Via East Midlands Ltd,
Nottinghamshire County Council,1111/1001,Children and Young People,CYP,Transport Related,CCA,05/12/2018,11-10501,"1,475.44",Bridges Transport Ltd,
Nottinghamshire County Council,1111/1001,Children and Young People,CYP,Transport Related,CCA,05/12/2018,11-10503,"2,042.40",Bridges Transport Ltd,
Nottinghamshire County Council,1111/1001,Children and Young People,CYP,Transport Related,CCA,05/12/2018,11-10504,2808,Galaxy Cabs Ltd,
Nottinghamshire County Council,1111/1001,Children and Young People,CYP,Transport Related,CCA,05/12/2018,11-10505,2180,Galaxy Cabs Ltd,
Nottinghamshire County Council,1111/1001,Children and Young People,CYP,Transport Related,CCA,05/12/2018,11-10506,1090.8,Galaxy Cabs Ltd,
Nottinghamshire County Council,1111/1001,Children and Young People,CYP,Transport Related,CCA,05/12/2018,11-10508,1668,Galaxy Cabs Ltd,
Nottinghamshire County Council,1111/1001,Children and Young People,CYP,Transport Related,CCA,05/12/2018,11-10509,2880,Galaxy Cabs Ltd,
Nottinghamshire County Council,1111/1001,Children and Young People,CYP,Transport Related,CCA,05/12/2018,11-10510,"2,156.00",Galaxy Cabs Ltd,
Nottinghamshire County Council,1111/1001,Children and Young People,CYP,Transport Related,CCA,05/12/2018,11-10511,560.15,Galaxy Cabs Ltd,
Nottinghamshire County Council,1111/1001,Children and Young People,CYP,Transport Related,CCA,05/12/2018,11-10514,2594.6,Midfield Travel,
Nottinghamshire County Council,1111/1001,Children and Young People,CYP,Transport Related,CCA,05/12/2018,11-10515,"2,721.40",Midfield Travel,
Nottinghamshire County Council,1111/1001,Children and Young People,CYP,Transport Related,CCA,05/12/2018,11-10516,"2,200.00",K & R Cars,
Nottinghamshire County Council,1111/1001,Children and Young People,CYP,Transport Related,CCA,05/12/2018,11-10518,1445,Rio Cabs,
Nottinghamshire County Council,1111/1001,Children and Young People,CYP,Transport Related,CCA,05/12/2018,11-10519,872,Rio Cabs,
Nottinghamshire County Council,1111/1001,Children and Young People,CYP,Transport Related,CCA,05/12/2018,11-10520,990.00,Rio Cabs,
Nottinghamshire County Council,1111/1001,Children and Young People,CYP,Transport Related,CCA,05/12/2018,11-10522,1698.3,Rio Cabs,
Nottinghamshire County Council,1111/1001,Children and Young People,CYP,Transport Related,CCA,05/12/2018,11-10523,"2,580.00",Rio Cabs,
Nottinghamshire County Council,1111/1001,Children and Young People,CYP,Transport Related,CCA,05/12/2018,11-10524,1200,Rio Cabs,
Nottinghamshire County Council,1111/1001,Children and Young People,CYP,Transport Related,CCA,05/12/2018,11-10525,"3,111.25",Ace Cars,
Nottinghamshire County Council,1111/1001,Children and Young People,CYP,Transport Related,CCA,05/12/2018,11-10527,1450,Sean's Taxi Services,
Nottinghamshire County Council,1111/1001,Children and Young People,CYP,Transport Related,CCA,06/12/2018,11-10576,"3,249.00",Taxicover Uk Ltd,
Nottinghamshire County Council,1111/1001,Children and Young People,CYP,Transport Related,CCA,06/12/2018,11-10577,4028,Taxicover Uk Ltd,
Nottinghamshire County Council,1111/1001,Children and Young People,CYP,Transport Related,CCA,06/12/2018,11-10578,1848.8,Taxicover Uk Ltd,
Nottinghamshire County Council,1111/1001,Children and Young People,CYP,Transport Related,CCA,06/12/2018,11-10579,"2,260.00",Taxicover Uk Ltd,
Nottinghamshire County Council,1111/1001,Children and Young People,CYP,Transport Related,CCA,06/12/2018,11-10581,"3,160.00",Taxicover Uk Ltd,
Nottinghamshire County Council,1111/1001,Children and Young People,CYP,Transport Related,CCA,06/12/2018,11-10582,"2,360.00",Taxicover Uk Ltd,
Nottinghamshire County Council,1111/1001,Children and Young People,CYP,Transport Related,CCA,06/12/2018,11-10584,"3,580.56",Taxicover Uk Ltd,
Nottinghamshire County Council,1111/1001,Children and Young People,CYP,Transport Related,CCA,06/12/2018,11-10585,"2,743.20",Taxicover Uk Ltd,
Nottinghamshire County Council,1111/1001,Children and Young People,CYP,Transport Related,CCA,06/12/2018,11-10586,2917.62,Taxicover Uk Ltd,
Nottinghamshire County Council,1111/1001,Children and Young People,CYP,Transport Related,CCA,06/12/2018,11-10587,3103.2,Taxicover Uk Ltd,
Nottinghamshire County Council,1111/1001,Children and Young People,CYP,Transport Related,CCA,06/12/2018,11-10588,"3,378.60",Taxicover Uk Ltd,
Nottinghamshire County Council,1111/1001,Children and Young People,CYP,Transport Related,CCA,06/12/2018,11-10589,"3,480.00",Taxicover Uk Ltd,
Nottinghamshire County Council,1111/1001,Children and Young People,CYP,Transport Related,CCA,06/12/2018,11-10590,3617.6,Taxicover Uk Ltd,
Nottinghamshire County Council,1111/1001,Children and Young People,CYP,Transport Related,CCA,06/12/2018,11-10591,3219.4,Taxicover Uk Ltd,
Nottinghamshire County Council,1111/1001,Children and Young People,CYP,Transport Related,CCA,06/12/2018,11-10592,"3,240.00",Taxicover Uk Ltd,
Nottinghamshire County Council,1111/1001,Children and Young People,CYP,Transport Related,CCA,06/12/2018,11-10593,"3,960.00",Taxicover Uk Ltd,
Nottinghamshire County Council,1111/1001,Children and Young People,CYP,Transport Related,CCA,06/12/2018,11-10594,2600,All Wayz Travel,
Nottinghamshire County Council,1111/1001,Children and Young People,CYP,Transport Related,CCA,06/12/2018,11-10595,2000,All Wayz Travel,
Nottinghamshire County Council,1111/1001,Children and Young People,CYP,Transport Related,CCA,06/12/2018,11-10596,"2,500.00",All Wayz Travel,
Nottinghamshire County Council,1111/1001,Children and Young People,CYP,Transport Related,CCA,06/12/2018,11-10597,2722,All Wayz Travel,
Nottinghamshire County Council,1111/1001,Children and Young People,CYP,Transport Related,CCA,06/12/2018,11-10598,"2,064.60",Arrow Specialised Transport Ltd,
Nottinghamshire County Council,1111/1001,Children and Young People,CYP,Transport Related,CCA,06/12/2018,11-10599,4260,Arrow Specialised Transport Ltd,
Nottinghamshire County Council,1111/1001,Children and Young People,CYP,Transport Related,CCA,06/12/2018,11-10600,1926,Arrow Specialised Transport Ltd,
Nottinghamshire County Council,1111/1001,Children and Young People,CYP,Transport Related,CCA,06/12/2018,11-10601,2921.25,Arrow Specialised Transport Ltd,
Nottinghamshire County Council,1111/1001,Children and Young People,CYP,Transport Related,CCA,06/12/2018,11-10602,3776.25,Arrow Specialised Transport Ltd,
Nottinghamshire County Council,1111/1001,Children and Young People,CYP,Transport Related,CCA,06/12/2018,11-10603,"4,147.32",Arrow Specialised Transport Ltd,
Nottinghamshire County Council,1111/1001,Children and Young People,CYP,Transport Related,CCA,06/12/2018,11-10604,2251.5,Arrow Specialised Transport Ltd,
Nottinghamshire County Council,1111/1001,Children and Young People,CYP,Transport Related,CCA,06/12/2018,11-10605,2228,Arrow Specialised Transport Ltd,
Nottinghamshire County Council,1111/1001,Children and Young People,CYP,Transport Related,CCA,06/12/2018,11-10606,"3,420.00",Arrow Specialised Transport Ltd,
Nottinghamshire County Council,1111/1001,Children and Young People,CYP,Transport Related,CCA,06/12/2018,11-10607,2912,Arrow Specialised Transport Ltd,
Nottinghamshire County Council,1111/1001,Children and Young People,CYP,Transport Related,CCA,06/12/2018,11-10608,"3,136.00",Arrow Specialised Transport Ltd,
Nottinghamshire County Council,1111/1001,Children and Young People,CYP,Transport Related,CCA,06/12/2018,11-10609,"3,257.60",Arrow Specialised Transport Ltd,
Nottinghamshire County Council,1111/1001,Children and Young People,CYP,Transport Related,CCA,06/12/2018,11-10610,"1,863.00",Arrow Specialised Transport Ltd,
Nottinghamshire County Council,1111/1001,Children and Young People,CYP,Transport Related,CCA,06/12/2018,11-10611,2464.75,Arrow Specialised Transport Ltd,
Nottinghamshire County Council,1111/1001,Children and Young People,CYP,Transport Related,CCA,06/12/2018,11-10612,3355.97,Arrow Specialised Transport Ltd,
Nottinghamshire County Council,1111/1001,Children and Young People,CYP,Transport Related,CCA,06/12/2018,11-10613,2276.58,Arrow Specialised Transport Ltd,
Nottinghamshire County Council,1111/1001,Children and Young People,CYP,Transport Related,CCA,06/12/2018,11-10614,3451.92,Arrow Specialised Transport Ltd,
Nottinghamshire County Council,1111/1001,Children and Young People,CYP,Transport Related,CCA,06/12/2018,11-10615,3164.07,Arrow Specialised Transport Ltd,
Nottinghamshire County Council,1111/1001,Children and Young People,CYP,Transport Related,CCA,06/12/2018,11-10616,2606.42,Arrow Specialised Transport Ltd,
Nottinghamshire County Council,1111/1001,Children and Young People,CYP,Transport Related,CCA,06/12/2018,11-10617,"2,287.22",Arrow Specialised Transport Ltd,
Nottinghamshire County Council,1111/1001,Children and Young People,CYP,Transport Related,CCA,06/12/2018,11-10618,"1,848.89",Arrow Specialised Transport Ltd,
Nottinghamshire County Council,1111/1001,Children and Young People,CYP,Transport Related,CCA,06/12/2018,11-10619,2497.63,Arrow Specialised Transport Ltd,
Nottinghamshire County Council,1111/1001,Children and Young People,CYP,Transport Related,CCA,06/12/2018,11-10620,2000.51,Arrow Specialised Transport Ltd,
Nottinghamshire County Council,1111/1001,Children and Young People,CYP,Transport Related,CCA,06/12/2018,11-10621,"2,138.26",Arrow Specialised Transport Ltd,
Nottinghamshire County Council,1111/1001,Children and Young People,CYP,Transport Related,CCA,06/12/2018,11-10622,3790,Arrow Specialised Transport Ltd,
Nottinghamshire County Council,1111/1001,Children and Young People,CYP,Transport Related,CCA,06/12/2018,11-10623,2250,Arrow Specialised Transport Ltd,
Nottinghamshire County Council,1111/1001,Children and Young People,CYP,Transport Related,CCA,06/12/2018,11-10624,2320,Arrow Specialised Transport Ltd,
Nottinghamshire County Council,1111/1001,Children and Young People,CYP,Transport Related,CCA,06/12/2018,11-10625,2320,Arrow Specialised Transport Ltd,
Nottinghamshire County Council,1111/1001,Children and Young People,CYP,Transport Related,CCA,06/12/2018,11-10626,"2,296.00",Arrow Specialised Transport Ltd,
Nottinghamshire County Council,1111/1001,Children and Young People,CYP,Transport Related,CCA,06/12/2018,11-10627,"2,260.00",Arrow Specialised Transport Ltd,
Nottinghamshire County Council,1111/1001,Children and Young People,CYP,Transport Related,CCA,06/12/2018,11-10628,2680,Arrow Specialised Transport Ltd,
Nottinghamshire County Council,1111/1001,Children and Young People,CYP,Transport Related,CCA,06/12/2018,11-10629,2905.8,Arrow Specialised Transport Ltd,
Nottinghamshire County Council,1111/1001,Children and Young People,CYP,Transport Related,CCA,06/12/2018,11-10630,"2,341.20",Arrow Specialised Transport Ltd,
Nottinghamshire County Council,1111/1001,Children and Young People,CYP,Transport Related,CCA,06/12/2018,11-10631,2276.2,Arrow Specialised Transport Ltd,
Nottinghamshire County Council,1111/1001,Children and Young People,CYP,Transport Related,CCA,06/12/2018,11-10632,2678.05,Arrow Specialised Transport Ltd,
Nottinghamshire County Council,1111/1001,Children and Young People,CYP,Transport Related,CCA,06/12/2018,11-10634,"1,811.20",Arrow Specialised Transport Ltd,
Nottinghamshire County Council,1111/1001,Children and Young People,CYP,Transport Related,CCA,06/12/2018,11-10635,"2,735.00",Arrow Specialised Transport Ltd,
Nottinghamshire County Council,1111/1001,Children and Young People,CYP,Transport Related,CCA,06/12/2018,11-10636,"2,690.00",Arrow Specialised Transport Ltd,
Nottinghamshire County Council,1111/1001,Children and Young People,CYP,Transport Related,CCA,06/12/2018,11-10637,2886.2,Arrow Specialised Transport Ltd,
Nottinghamshire County Council,1111/1001,Children and Young People,CYP,Transport Related,CCA,06/12/2018,11-10638,2147,Arrow Specialised Transport Ltd,
Nottinghamshire County Council,1111/1001,Children and Young People,CYP,Transport Related,CCA,06/12/2018,11-10639,"3,373.40",Arrow Specialised Transport Ltd,
Nottinghamshire County Council,1111/1001,Children and Young People,CYP,Transport Related,CCA,06/12/2018,11-10640,4792.4,Arrow Specialised Transport Ltd,
Nottinghamshire County Council,1111/1001,Children and Young People,CYP,Transport Related,CCA,06/12/2018,11-10641,"3,681.40",Arrow Specialised Transport Ltd,
Nottinghamshire County Council,1111/1001,Children and Young People,CYP,Transport Related,CCA,06/12/2018,11-10642,2143,Arrow Specialised Transport Ltd,
Nottinghamshire County Council,1111/1001,Children and Young People,CYP,Transport Related,CCA,06/12/2018,11-10643,"3,840.00",Arrow Specialised Transport Ltd,
Nottinghamshire County Council,1111/1001,Children and Young People,CYP,Transport Related,CCA,06/12/2018,11-10644,"3,426.00",Arrow Specialised Transport Ltd,
Nottinghamshire County Council,1111/1001,Children and Young People,CYP,Transport Related,CCA,06/12/2018,11-10645,2041.56,Arrow Specialised Transport Ltd,
Nottinghamshire County Council,1111/1001,Children and Young People,CYP,Transport Related,CCA,06/12/2018,11-10647,"2,698.80",Arrow Specialised Transport Ltd,
Nottinghamshire County Council,1111/1001,Children and Young People,CYP,Transport Related,CCA,06/12/2018,11-10648,2912,Arrow Specialised Transport Ltd,
Nottinghamshire County Council,1111/1001,Children and Young People,CYP,Transport Related,CCA,06/12/2018,11-10649,2590,Arrow Specialised Transport Ltd,
Nottinghamshire County Council,1111/1001,Children and Young People,CYP,Transport Related,CCA,06/12/2018,11-10650,3190,Arrow Specialised Transport Ltd,
Nottinghamshire County Council,1111/1001,Children and Young People,CYP,Transport Related,CCA,06/12/2018,11-10651,2807.8,Arrow Specialised Transport Ltd,
Nottinghamshire County Council,1111/1001,Children and Young People,CYP,Transport Related,CCA,06/12/2018,11-10653,4276.9,Arrow Specialised Transport Ltd,
Nottinghamshire County Council,1111/1001,Children and Young People,CYP,Transport Related,CCA,06/12/2018,11-10654,1911.59,Arrow Specialised Transport Ltd,
Nottinghamshire County Council,1111/1001,Children and Young People,CYP,Transport Related,CCA,06/12/2018,11-10655,2040.22,Arrow Specialised Transport Ltd,
Nottinghamshire County Council,1111/1001,Children and Young People,CYP,Transport Related,CCA,06/12/2018,11-10656,"3,305.60",Arrow Specialised Transport Ltd,
Nottinghamshire County Council,1111/1001,Children and Young People,CYP,Transport Related,CCA,06/12/2018,11-10657,"2,746.00",Arrow Specialised Transport Ltd,
Nottinghamshire County Council,1111/1001,Children and Young People,CYP,Transport Related,CCA,06/12/2018,11-10658,2540.6,Arrow Specialised Transport Ltd,
Nottinghamshire County Council,1111/1001,Children and Young People,CYP,Transport Related,CCA,06/12/2018,11-10659,2433.2,Arrow Specialised Transport Ltd,
Nottinghamshire County Council,1111/1001,Children and Young People,CYP,Transport Related,CCA,06/12/2018,11-10660,3049.6,Arrow Specialised Transport Ltd,
Nottinghamshire County Council,1111/1001,Children and Young People,CYP,Transport Related,CCA,06/12/2018,11-10661,"4,372.00",Arrow Specialised Transport Ltd,
Nottinghamshire County Council,1111/1001,Children and Young People,CYP,Transport Related,CCA,06/12/2018,11-10662,"2,316.00",Arrow Specialised Transport Ltd,
Nottinghamshire County Council,1111/1001,Children and Young People,CYP,Transport Related,CCA,06/12/2018,11-10663,2556,Arrow Specialised Transport Ltd,
Nottinghamshire County Council,1111/1001,Children and Young People,CYP,Transport Related,CCA,06/12/2018,11-10666,"3,140.00",Bridges Transport Ltd,
Nottinghamshire County Council,1111/1001,Children and Young People,CYP,Transport Related,CCA,06/12/2018,11-10667,"1,499.80",Bridges Transport Ltd,
Nottinghamshire County Council,1111/1001,Children and Young People,CYP,Transport Related,CCA,06/12/2018,11-10668,2698.6,Bridges Transport Ltd,
Nottinghamshire County Council,1111/1001,Children and Young People,CYP,Transport Related,CCA,06/12/2018,11-10669,2682.02,Bridges Transport Ltd,
Nottinghamshire County Council,1111/1001,Children and Young People,CYP,Transport Related,CCA,06/12/2018,11-10670,"1,036.26",Bridges Transport Ltd,
Nottinghamshire County Council,1111/1001,Children and Young People,CYP,Transport Related,CCA,06/12/2018,11-10671,3333,Bridges Transport Ltd,
Nottinghamshire County Council,1111/1001,Children and Young People,CYP,Transport Related,CCA,06/12/2018,11-10672,1409.99,Bridges Transport Ltd,
Nottinghamshire County Council,1111/1001,Children and Young People,CYP,Transport Related,CCA,06/12/2018,11-10673,960,Bridges Transport Ltd,
Nottinghamshire County Council,1111/1001,Children and Young People,CYP,Transport Related,CCA,06/12/2018,11-10675,"16,970.61",Erewash Community Transport,
Nottinghamshire County Council,1111/1001,Children and Young People,CYP,Transport Related,CCA,06/12/2018,11-10676,"1,000.00",Fozcabs Newark Taxis,
Nottinghamshire County Council,1111/1001,Children and Young People,CYP,Transport Related,CCA,06/12/2018,11-10677,1540,Fozcabs Newark Taxis,
Nottinghamshire County Council,1111/1001,Children and Young People,CYP,Transport Related,CCA,06/12/2018,11-10678,900,Fozcabs Newark Taxis,
Nottinghamshire County Council,1111/1001,Children and Young People,CYP,Transport Related,CCA,06/12/2018,11-10679,"2,926.00",Horizon Travel,
Nottinghamshire County Council,1111/1001,Children and Young People,CYP,Transport Related,CCA,06/12/2018,11-10680,"3,382.00",Vallances Coaches,
Nottinghamshire County Council,1111/1001,Children and Young People,CYP,Transport Related,CCA,06/12/2018,11-10681,"3,306.00",Vallances Coaches,
Nottinghamshire County Council,1111/1001,Children and Young People,CYP,Transport Related,CCA,06/12/2018,11-10683,"3,382.00",Vallances Coaches,
Nottinghamshire County Council,1111/1001,Children and Young People,CYP,Transport Related,CCA,06/12/2018,11-10684,"2,727.00",Vallances Coaches,
Nottinghamshire County Council,1111/1001,Children and Young People,CYP,Transport Related,CCA,06/12/2018,11-10685,"1,000.00",Elkingtons Park Garage,
Nottinghamshire County Council,1111/1001,Children and Young People,CYP,Transport Related,CCA,06/12/2018,11-10686,"2,365.50",K & S Coaches,
Nottinghamshire County Council,1111/1001,Children and Young People,CYP,Transport Related,CCA,06/12/2018,11-10687,1200,D G Private Hire Ltd,
Nottinghamshire County Council,1111/1001,Children and Young People,CYP,Transport Related,CCA,06/12/2018,11-10688,1010,D G Private Hire Ltd,
Nottinghamshire County Council,1111/1001,Children and Young People,CYP,Transport Related,CCA,06/12/2018,11-10689,"1,343.30",D G Private Hire Ltd,
Nottinghamshire County Council,1111/1001,Children and Young People,CYP,Transport Related,CCA,06/12/2018,11-10690,"2,629.03",D G Private Hire Ltd,
Nottinghamshire County Council,1111/1001,Children and Young People,CYP,Transport Related,CCA,06/12/2018,11-10691,1600,D G Private Hire Ltd,
Nottinghamshire County Council,1111/1001,Children and Young People,CYP,Transport Related,CCA,06/12/2018,11-10692,"2,000.00",D G Private Hire Ltd,
Nottinghamshire County Council,1111/1001,Children and Young People,CYP,Transport Related,CCA,06/12/2018,11-10693,"1,080.00",D G Private Hire Ltd,
Nottinghamshire County Council,1111/1001,Children and Young People,CYP,Transport Related,CCA,06/12/2018,11-10694,2143.6,Marshalls Of Sutton On Trent Ltd,
Nottinghamshire County Council,1111/1001,Children and Young People,CYP,Transport Related,CCA,06/12/2018,11-10701,"3,516.60",Marshalls Of Sutton On Trent Ltd,
Nottinghamshire County Council,1111/1001,Children and Young People,CYP,Transport Related,CCA,06/12/2018,11-10704,"2,006.68",Marshalls Of Sutton On Trent Ltd,
Nottinghamshire County Council,1111/1001,Children and Young People,CYP,Transport Related,CCA,06/12/2018,11-10707,"3,500.00",Marshalls Of Sutton On Trent Ltd,
Nottinghamshire County Council,1111/1001,Children and Young People,CYP,Transport Related,CCA,06/12/2018,11-10708,"1,380.00",Meden Travel,
Nottinghamshire County Council,1111/1001,Children and Young People,CYP,Transport Related,CCA,06/12/2018,11-10715,2679.88,Nottingham Minibuses & Coaches,
Nottinghamshire County Council,1111/1001,Children and Young People,CYP,Transport Related,CCA,06/12/2018,11-10718,1895.06,Nottingham Minibuses & Coaches,
Nottinghamshire County Council,1111/1001,Children and Young People,CYP,Transport Related,CCA,06/12/2018,11-10723,7140,Kettlewell Retford Ltd,
Nottinghamshire County Council,1111/1001,Children and Young People,CYP,Transport Related,CCA,06/12/2018,11-10724,2880,Kettlewell Retford Ltd,
Nottinghamshire County Council,1111/1001,Children and Young People,CYP,Transport Related,CCA,06/12/2018,11-10725,3100,Kettlewell Retford Ltd,
Nottinghamshire County Council,1111/1001,Children and Young People,CYP,Transport Related,CCA,06/12/2018,11-10726,2260,Kettlewell Retford Ltd,
Nottinghamshire County Council,1111/1001,Children and Young People,CYP,Transport Related,CCA,06/12/2018,11-10727,3280,Kettlewell Retford Ltd,
Nottinghamshire County Council,1111/1001,Children and Young People,CYP,Transport Related,CCA,06/12/2018,11-10728,"3,280.00",Kettlewell Retford Ltd,
Nottinghamshire County Council,1111/1001,Children and Young People,CYP,Transport Related,CCA,06/12/2018,11-10729,"3,515.00",Kettlewell Retford Ltd,
Nottinghamshire County Council,1111/1001,Children and Young People,CYP,Transport Related,CCA,06/12/2018,11-10730,"4,700.00",Kettlewell Retford Ltd,
Nottinghamshire County Council,1111/1001,Children and Young People,CYP,Transport Related,CCA,06/12/2018,11-10731,4258.1,Kettlewell Retford Ltd,
Nottinghamshire County Council,1111/1001,Children and Young People,CYP,Transport Related,CCA,06/12/2018,11-10733,3800,C W Moxon Ltd,
Nottinghamshire County Council,1111/1001,Children and Young People,CYP,Transport Related,CCA,06/12/2018,11-10736,11147,C W Moxon Ltd,
Nottinghamshire County Council,1111/1001,Children and Young People,CYP,Transport Related,CCA,06/12/2018,11-10737,5376.2,Isle Coaches,
Nottinghamshire County Council,1111/1001,Children and Young People,CYP,Transport Related,CCA,06/12/2018,11-10740,2100,Travel Liner,
Nottinghamshire County Council,1111/1001,Children and Young People,CYP,Transport Related,CCA,06/12/2018,11-10741,"2,375.00",Trevor Bailey t/a Trevor Bailey Tra,
Nottinghamshire County Council,1111/1001,Children and Young People,CYP,Transport Related,CCA,06/12/2018,11-10742,"2,525.00",A Travel,
Nottinghamshire County Council,1111/1001,Children and Young People,CYP,Transport Related,CCA,06/12/2018,11-10744,1417.68,Cathedral Cars Lincoln Ltd,
Nottinghamshire County Council,1111/1001,Children and Young People,CYP,Transport Related,CCA,06/12/2018,11-10745,"3,360.00",Unity Coaches Ltd,
Nottinghamshire County Council,1111/1001,Children and Young People,CYP,Transport Related,CCA,07/12/2018,11-10746,"3,200.60",Sharpes Of Nottingham,
Nottinghamshire County Council,1111/1001,Children and Young People,CYP,Transport Related,CCA,07/12/2018,11-10747,3426.6,Sharpes Of Nottingham,
Nottinghamshire County Council,1111/1001,Children and Young People,CYP,Transport Related,CCA,07/12/2018,11-10748,3283.1,Sharpes Of Nottingham,
Nottinghamshire County Council,1111/1001,Children and Young People,CYP,Transport Related,CCA,07/12/2018,11-10749,"3,753.50",Sharpes Of Nottingham,
Nottinghamshire County Council,1111/1001,Children and Young People,CYP,Transport Related,CCA,07/12/2018,11-10750,4349.1,Sharpes Of Nottingham,
Nottinghamshire County Council,1111/1001,Children and Young People,CYP,Transport Related,CCA,07/12/2018,11-10751,"4,130.10",Sharpes Of Nottingham,
Nottinghamshire County Council,1111/1001,Children and Young People,CYP,Transport Related,CCA,07/12/2018,11-10752,3589.8,Sharpes Of Nottingham,
Nottinghamshire County Council,1111/1001,Children and Young People,CYP,Transport Related,CCA,07/12/2018,11-10753,"3,408.60",Sharpes Of Nottingham,
Nottinghamshire County Council,1111/1001,Children and Young People,CYP,Transport Related,CCA,07/12/2018,11-10755,1800,All Wayz Travel,
Nottinghamshire County Council,1111/1001,Children and Young People,CYP,Transport Related,CCA,07/12/2018,11-10756,"1,800.00",Central Cars Nottm Ltd,
Nottinghamshire County Council,1111/1001,Children and Young People,CYP,Transport Related,CCA,07/12/2018,11-10758,3011.5,Martins Travel,
Nottinghamshire County Council,1111/1001,Children and Young People,CYP,Transport Related,CCA,07/12/2018,11-10761,760,Acorn Contracts,
Nottinghamshire County Council,1111/1001,Children and Young People,CYP,Transport Related,CCA,07/12/2018,11-10762,600.00,Acorn Contracts,
Nottinghamshire County Council,1111/1001,Children and Young People,CYP,Transport Related,CCA,07/12/2018,11-10763,836.00,Acorn Contracts,
Nottinghamshire County Council,1111/1001,Children and Young People,CYP,Transport Related,CCA,07/12/2018,11-10766,"1,596.00",Alpha Cars,
Nottinghamshire County Council,1111/1001,Children and Young People,CYP,Transport Related,CCA,07/12/2018,11-10767,"1,710.00",Alpha Cars,
Nottinghamshire County Council,1111/1001,Children and Young People,CYP,Transport Related,CCA,07/12/2018,11-10768,"2,736.00",Alpha Cars,
Nottinghamshire County Council,1111/1001,Children and Young People,CYP,Transport Related,CCA,07/12/2018,11-10769,2640,Alpha Cars,
Nottinghamshire County Council,1111/1001,Children and Young People,CYP,Transport Related,CCA,07/12/2018,11-10770,2468,Alpha Cars,
Nottinghamshire County Council,1111/1001,Children and Young People,CYP,Transport Related,CCA,07/12/2018,11-10771,"1,780.00",Alpha Cars,
Nottinghamshire County Council,1111/1001,Children and Young People,CYP,Transport Related,CCA,07/12/2018,11-10772,"1,090.32",Alpha Cars,
Nottinghamshire County Council,1111/1001,Children and Young People,CYP,Transport Related,CCA,07/12/2018,11-10773,432,Alpha Cars,
Nottinghamshire County Council,1111/1001,Children and Young People,CYP,Transport Related,CCA,07/12/2018,11-10775,1140,Alpha Cars,
Nottinghamshire County Council,1111/1001,Children and Young People,CYP,Transport Related,CCA,07/12/2018,11-10776,"1,242.40",Arrow Specialised Transport Ltd,
Nottinghamshire County Council,1111/1001,Children and Young People,CYP,Transport Related,CCA,07/12/2018,11-10778,"1,050.00",Ng11 Cars,
Nottinghamshire County Council,1111/1001,Children and Young People,CYP,Transport Related,CCA,07/12/2018,11-10779,600.95,Ng11 Cars,
Nottinghamshire County Council,1111/1001,Children and Young People,CYP,Transport Related,CCA,07/12/2018,11-10782,1010,Ng11 Cars,
Nottinghamshire County Council,1111/1001,Children and Young People,CYP,Transport Related,CCA,07/12/2018,11-10785,680.75,Nunns Taxis Ltd,
Nottinghamshire County Council,1111/1001,Children and Young People,CYP,Transport Related,CCA,07/12/2018,11-10786,15390,Travel Wright Ltd,
Nottinghamshire County Council,1111/1001,Children and Young People,CYP,Transport Related,CCA,07/12/2018,11-10787,"1,640.00",Travel Wright Ltd,
Nottinghamshire County Council,1111/1001,Children and Young People,CYP,Transport Related,CCA,07/12/2018,11-10788,1080,Travel Wright Ltd,
Nottinghamshire County Council,1111/1001,Children and Young People,CYP,Transport Related,CCA,07/12/2018,11-10789,3260.5,Travel Wright Ltd,
Nottinghamshire County Council,1111/1001,Children and Young People,CYP,Transport Related,CCA,07/12/2018,11-10790,3470,Travel Wright Ltd,
Nottinghamshire County Council,1111/1001,Children and Young People,CYP,Transport Related,CCA,07/12/2018,11-10791,3123,Travel Wright Ltd,
Nottinghamshire County Council,1111/1001,Children and Young People,CYP,Transport Related,CCA,07/12/2018,11-10792,"4,175.60",Travel Wright Ltd,
Nottinghamshire County Council,1111/1001,Children and Young People,CYP,Transport Related,CCA,07/12/2018,11-10793,3050.5,Travel Wright Ltd,
Nottinghamshire County Council,1111/1001,Children and Young People,CYP,Transport Related,CCA,07/12/2018,11-10798,2556,Travel Wright Ltd,
Nottinghamshire County Council,1111/1001,Children and Young People,CYP,Transport Related,CCA,07/12/2018,11-10799,"3,152.00",Travel Wright Ltd,
Nottinghamshire County Council,1111/1001,Children and Young People,CYP,Transport Related,CCA,07/12/2018,11-10800,2121,P & P Taxis,
Nottinghamshire County Council,1111/1001,Children and Young People,CYP,Transport Related,CCA,07/12/2018,11-10804,569.60,P & P Taxis,
Nottinghamshire County Council,1111/1001,Children and Young People,CYP,Transport Related,CCA,07/12/2018,11-10805,"6,811.50",Freeway Coaches Ltd,
Nottinghamshire County Council,1111/1001,Children and Young People,CYP,Transport Related,CCA,07/12/2018,11-10806,"3,120.00",Freeway Coaches Ltd,
Nottinghamshire County Council,1111/1001,Children and Young People,CYP,Transport Related,CCA,07/12/2018,11-10807,6380,Freeway Coaches Ltd,
Nottinghamshire County Council,1111/1001,Children and Young People,CYP,Transport Related,CCA,07/12/2018,11-10808,3832.5,Freeway Coaches Ltd,
Nottinghamshire County Council,1111/1001,Children and Young People,CYP,Transport Related,CCA,07/12/2018,11-10809,3002.5,Freeway Coaches Ltd,
Nottinghamshire County Council,1111/1001,Children and Young People,CYP,Transport Related,CCA,07/12/2018,11-10810,3144,Freeway Coaches Ltd,
Nottinghamshire County Council,1111/1001,Children and Young People,CYP,Transport Related,CCA,07/12/2018,11-10811,2850,Dunn Motor Traction Ltd,
Nottinghamshire County Council,1111/1001,Children and Young People,CYP,Transport Related,CCA,07/12/2018,11-10812,3000,Dunn Motor Traction Ltd,
Nottinghamshire County Council,1111/1001,Children and Young People,CYP,Transport Related,CCA,07/12/2018,11-10813,"2,850.00",Dunn Motor Traction Ltd,
Nottinghamshire County Council,1111/1001,Children and Young People,CYP,Transport Related,CCA,07/12/2018,11-10814,"3,000.00",Dunn Motor Traction Ltd,
Nottinghamshire County Council,1111/1001,Children and Young People,CYP,Transport Related,CCA,07/12/2018,11-10818,2460.5,Ace Cars,
Nottinghamshire County Council,1111/1001,Children and Young People,CYP,Transport Related,CCA,07/12/2018,11-10819,2343.4,Ace Cars,
Nottinghamshire County Council,1111/1001,Children and Young People,CYP,Transport Related,CCA,07/12/2018,11-10821,"1,890.00",Ace Cars,
Nottinghamshire County Council,1111/1001,Children and Young People,CYP,Transport Related,CCA,07/12/2018,11-10822,2490,Ace Cars,
Nottinghamshire County Council,1111/1001,Children and Young People,CYP,Transport Related,CCA,07/12/2018,11-10823,2590,Ace Cars,
Nottinghamshire County Council,1111/1001,Children and Young People,CYP,Transport Related,CCA,07/12/2018,11-10824,3390,Ace Cars,
Nottinghamshire County Council,1111/1001,Children and Young People,CYP,Transport Related,CCA,07/12/2018,11-10825,2390,Ace Cars,
Nottinghamshire County Council,1111/1001,Children and Young People,CYP,Transport Related,CCA,07/12/2018,11-10826,"2,790.00",Ace Cars,
Nottinghamshire County Council,1111/1001,Children and Young People,CYP,Transport Related,CCA,07/12/2018,11-10827,"2,218.50",Ace Cars,
Nottinghamshire County Council,1111/1001,Children and Young People,CYP,Transport Related,CCA,07/12/2018,11-10828,3801.2,L A Travel,
Nottinghamshire County Council,1111/1001,Children and Young People,CYP,Transport Related,CCA,07/12/2018,11-10831,11765.6,Nottingham Coaches,
Nottinghamshire County Council,1111/1001,Children and Young People,CYP,Transport Related,CCA,07/12/2018,11-10832,"8,468.50",Nottingham Coaches,
Nottinghamshire County Council,1111/1001,Children and Young People,CYP,Transport Related,CCA,07/12/2018,11-10833,2402.58,Nottingham Coaches,
Nottinghamshire County Council,1111/1001,Children and Young People,CYP,Transport Related,CCA,07/12/2018,11-10834,2519.8,Nottingham Coaches,
Nottinghamshire County Council,1111/1001,Children and Young People,CYP,Transport Related,CCA,07/12/2018,11-10837,"1,600.00",Eastwood Cars (UK) Ltd,
Nottinghamshire County Council,1111/1001,Children and Young People,CYP,Transport Related,CCA,07/12/2018,11-10838,800.00,Eastwood Cars (UK) Ltd,
Nottinghamshire County Council,1111/1001,Children and Young People,CYP,Transport Related,CCA,07/12/2018,11-10839,"1,200.00",Eastwood Cars (UK) Ltd,
Nottinghamshire County Council,1111/1001,Children and Young People,CYP,Transport Related,CCA,07/12/2018,11-10840,916.07,Eastwood Cars (UK) Ltd,
Nottinghamshire County Council,1111/1001,Children and Young People,CYP,Transport Related,CCA,07/12/2018,11-10842,1320,Eastwood Cars (UK) Ltd,
Nottinghamshire County Council,1111/1001,Children and Young People,CYP,Transport Related,CCA,07/12/2018,11-10843,"2,380.00",A2B Licensed Taxis,
Nottinghamshire County Council,1111/1001,Children and Young People,CYP,Transport Related,CCA,07/12/2018,11-10844,3229.8,Hammonds Coaches Ltd,
Nottinghamshire County Council,1111/1001,Children and Young People,CYP,Transport Related,CCA,07/12/2018,11-10847,"1,600.00",Shiny Sky Ltd T/A A2b Cars,
Nottinghamshire County Council,1111/1001,Children and Young People,CYP,Transport Related,CCA,07/12/2018,11-10850,1609.86,Nunns Taxis Ltd,
Nottinghamshire County Council,1111/1001,Children and Young People,CYP,Transport Related,CCA,07/12/2018,11-10851,"1,407.90",Nunns Taxis Ltd,
Nottinghamshire County Council,1111/1001,Children and Young People,CYP,Transport Related,CCA,07/12/2018,11-10852,636.00,Nunns Taxis Ltd,
Nottinghamshire County Council,1111/1001,Children and Young People,CYP,Transport Related,CCA,07/12/2018,11-10856,1121.1,Forest Cars,
Nottinghamshire County Council,1111/1001,Children and Young People,CYP,Transport Related,CCA,07/12/2018,11-10857,"1,680.00",Forest Cars,
Nottinghamshire County Council,1111/1001,Children and Young People,CYP,Transport Related,CCA,07/12/2018,11-10858,1780,Forest Cars,
Nottinghamshire County Council,1111/1001,Children and Young People,CYP,Transport Related,CCA,07/12/2018,11-10859,2480,Forest Cars,
Nottinghamshire County Council,1111/1001,Children and Young People,CYP,Transport Related,CCA,07/12/2018,11-10860,1560,Forest Cars,
Nottinghamshire County Council,1111/1001,Children and Young People,CYP,Transport Related,CCA,07/12/2018,11-10861,1955.36,Forest Cars,
Nottinghamshire County Council,1111/1001,Children and Young People,CYP,Transport Related,CCA,07/12/2018,11-10862,1818,Forest Cars,
Nottinghamshire County Council,1111/1001,Children and Young People,CYP,Transport Related,CCA,07/12/2018,11-10863,2201.8,Forest Cars,
Nottinghamshire County Council,1111/1001,Children and Young People,CYP,Transport Related,CCA,07/12/2018,11-10864,710.03,Forest Cars,
Nottinghamshire County Council,1111/1001,Children and Young People,CYP,Transport Related,CCA,07/12/2018,11-10866,"1,480.00",Forest Cars,
Nottinghamshire County Council,1111/1001,Children and Young People,CYP,Transport Related,CCA,07/12/2018,11-10867,"1,187.76",Forest Cars,
Nottinghamshire County Council,1111/1001,Children and Young People,CYP,Transport Related,CCA,07/12/2018,11-10868,1676.5,Forest Cars,
Nottinghamshire County Council,1111/1001,Children and Young People,CYP,Transport Related,CCA,07/12/2018,11-10870,1176,Forest Cars,
Nottinghamshire County Council,1111/1001,Children and Young People,CYP,Transport Related,CCA,07/12/2018,11-10871,2704,Forest Cars,
Nottinghamshire County Council,1111/1001,Children and Young People,CYP,Transport Related,CCA,07/12/2018,11-10872,"1,404.00",Forest Cars,
Nottinghamshire County Council,1111/1001,Children and Young People,CYP,Transport Related,CCA,07/12/2018,11-10873,"1,480.00",Forest Cars,
Nottinghamshire County Council,1111/1001,Children and Young People,CYP,Transport Related,CCA,07/12/2018,11-10874,2706.8,Forest Cars,
Nottinghamshire County Council,1111/1001,Children and Young People,CYP,Transport Related,CCA,07/12/2018,11-10875,880.00,Forest Cars,
Nottinghamshire County Council,1111/1001,Children and Young People,CYP,Transport Related,CCA,07/12/2018,11-10877,"1,881.00",Forest Cars,
Nottinghamshire County Council,1111/1001,Children and Young People,CYP,Transport Related,CCA,07/12/2018,11-10878,1176,Forest Cars,
Nottinghamshire County Council,1111/1001,Children and Young People,CYP,Transport Related,CCA,07/12/2018,11-10879,1960,Forest Cars,
Nottinghamshire County Council,1111/1001,Children and Young People,CYP,Transport Related,CCA,07/12/2018,11-10880,"1,976.00",Forest Cars,
Nottinghamshire County Council,1111/1001,Children and Young People,CYP,Transport Related,CCA,07/12/2018,11-10881,1680,Forest Cars,
Nottinghamshire County Council,1111/1001,Children and Young People,CYP,Transport Related,CCA,07/12/2018,11-10882,1980,Forest Cars,
Nottinghamshire County Council,1111/1001,Children and Young People,CYP,Transport Related,CCA,10/12/2018,11-11037,1786,Southside Cars,
Nottinghamshire County Council,1111/1001,Children and Young People,CYP,Transport Related,CCA,10/12/2018,11-11038,"1,786.00",Southside Cars,
Nottinghamshire County Council,1111/1001,Children and Young People,CYP,Transport Related,CCA,10/12/2018,11-11039,"1,540.50",Southside Cars,
Nottinghamshire County Council,1111/1001,Children and Young People,CYP,Transport Related,CCA,10/12/2018,11-11040,1510.08,Southside Cars,
Nottinghamshire County Council,1111/1001,Children and Young People,CYP,Transport Related,CCA,10/12/2018,11-11041,1980,Southside Cars,
Nottinghamshire County Council,1111/1001,Children and Young People,CYP,Transport Related,CCA,10/12/2018,11-11042,"2,565.00",Southside Cars,
Nottinghamshire County Council,1111/1001,Children and Young People,CYP,Transport Related,CCA,10/12/2018,11-11043,720.00,Southside Cars,
Nottinghamshire County Council,1111/1001,Children and Young People,CYP,Transport Related,CCA,10/12/2018,11-11044,"1,656.00",Southside Cars,
Nottinghamshire County Council,1111/1001,Children and Young People,CYP,Transport Related,CCA,10/12/2018,11-11046,"1,786.00",Southside Cars,
Nottinghamshire County Council,1111/1001,Children and Young People,CYP,Transport Related,CCA,10/12/2018,11-11047,780.00,Southside Cars,
Nottinghamshire County Council,1111/1001,Children and Young People,CYP,Transport Related,CCA,10/12/2018,11-11048,"2,646.80",F4Control Ltd (t/a First4care),
Nottinghamshire County Council,1111/1001,Children and Young People,CYP,Transport Related,CCA,10/12/2018,11-11049,2788.56,F4Control Ltd (t/a First4care),
Nottinghamshire County Council,1111/1001,Children and Young People,CYP,Transport Related,CCA,10/12/2018,11-11050,"2,104.02",F4Control Ltd (t/a First4care),
Nottinghamshire County Council,1111/1001,Children and Young People,CYP,Transport Related,CCA,10/12/2018,11-11051,2126.88,F4Control Ltd (t/a First4care),
Nottinghamshire County Council,1111/1001,Children and Young People,CYP,Transport Related,CCA,10/12/2018,11-11052,"1,938.06",F4Control Ltd (t/a First4care),
Nottinghamshire County Council,1111/1001,Children and Young People,CYP,Transport Related,CCA,10/12/2018,11-11053,2157.12,F4Control Ltd (t/a First4care),
Nottinghamshire County Council,1111/1001,Children and Young People,CYP,Transport Related,CCA,10/12/2018,11-11054,2402.8,F4Control Ltd (t/a First4care),
Nottinghamshire County Council,1111/1001,Children and Young People,CYP,Transport Related,CCA,10/12/2018,11-11055,2951.8,F4Control Ltd (t/a First4care),
Nottinghamshire County Council,1111/1001,Children and Young People,CYP,Transport Related,CCA,10/12/2018,11-11056,3600,Glenn Ryder Coaches,
Nottinghamshire County Council,1111/1001,Children and Young People,CYP,Transport Related,CCA,10/12/2018,11-11057,3466,Glenn Ryder Coaches,
Nottinghamshire County Council,1111/1001,Children and Young People,CYP,Transport Related,CCA,10/12/2018,11-11058,"8,300.00",Johnson Bros Tours Ltd,
Nottinghamshire County Council,1111/1001,Children and Young People,CYP,Transport Related,CCA,10/12/2018,11-11059,5900,Johnson Bros Tours Ltd,
Nottinghamshire County Council,1111/1001,Children and Young People,CYP,Transport Related,CCA,10/12/2018,11-11060,2550,Wrights Coaches,
Nottinghamshire County Council,1111/1001,Children and Young People,CYP,Transport Related,CCA,10/12/2018,11-11062,912.00,200 Cars Ltd,
Nottinghamshire County Council,1111/1001,Children and Young People,CYP,Transport Related,CCA,10/12/2018,11-11064,"2,800.00",Arnold Acorn Travel,
Nottinghamshire County Council,1111/1001,Children and Young People,CYP,Transport Related,CCA,10/12/2018,11-11065,2556.06,F4Control Ltd (t/a First4care),
Nottinghamshire County Council,1111/1001,Children and Young People,CYP,Transport Related,CCA,10/12/2018,11-11067,"2,225.80",F4Control Ltd (t/a First4care),
Nottinghamshire County Council,1111/1001,Children and Young People,CYP,Transport Related,CCA,10/12/2018,11-11068,2436.6,F4Control Ltd (t/a First4care),
Nottinghamshire County Council,1111/1001,Children and Young People,CYP,Transport Related,CCA,10/12/2018,11-11069,2048.96,F4Control Ltd (t/a First4care),
Nottinghamshire County Council,1111/1001,Children and Young People,CYP,Transport Related,CCA,10/12/2018,11-11071,"2,681.60",F4Control Ltd (t/a First4care),
Nottinghamshire County Council,1111/1001,Children and Young People,CYP,Transport Related,CCA,10/12/2018,11-11072,"2,574.20",F4Control Ltd (t/a First4care),
Nottinghamshire County Council,1111/1001,Children and Young People,CYP,Transport Related,CCA,10/12/2018,11-11073,2628.8,F4Control Ltd (t/a First4care),
Nottinghamshire County Council,1111/1001,Children and Young People,CYP,Transport Related,CCA,10/12/2018,11-11074,"2,204.40",F4Control Ltd (t/a First4care),
Nottinghamshire County Council,1111/1001,Children and Young People,CYP,Transport Related,CCA,10/12/2018,11-11075,2197.6,F4Control Ltd (t/a First4care),
Nottinghamshire County Council,1111/1001,Children and Young People,CYP,Transport Related,CCA,10/12/2018,11-11076,3834.6,F4Control Ltd (t/a First4care),
Nottinghamshire County Council,1111/1001,Children and Young People,CYP,Transport Related,CCA,10/12/2018,11-11077,"2,425.20",F4Control Ltd (t/a First4care),
Nottinghamshire County Council,1111/1001,Children and Young People,CYP,Transport Related,CCA,10/12/2018,11-11078,"2,235.00",F4Control Ltd (t/a First4care),
Nottinghamshire County Council,1111/1001,Children and Young People,CYP,Transport Related,CCA,10/12/2018,11-11079,2669.6,F4Control Ltd (t/a First4care),
Nottinghamshire County Council,1111/1001,Children and Young People,CYP,Transport Related,CCA,10/12/2018,11-11080,"4,362.20",F4Control Ltd (t/a First4care),
Nottinghamshire County Council,1111/1001,Children and Young People,CYP,Transport Related,CCA,10/12/2018,11-11081,2446.4,F4Control Ltd (t/a First4care),
Nottinghamshire County Council,1111/1001,Children and Young People,CYP,Transport Related,CCA,10/12/2018,11-11083,"2,550.60",F4Control Ltd (t/a First4care),
Nottinghamshire County Council,1111/1001,Children and Young People,CYP,Transport Related,CCA,10/12/2018,11-11084,"2,714.40",F4Control Ltd (t/a First4care),
Nottinghamshire County Council,1111/1001,Children and Young People,CYP,Transport Related,CCA,10/12/2018,11-11085,2423.07,F4Control Ltd (t/a First4care),
Nottinghamshire County Council,1111/1001,Children and Young People,CYP,Transport Related,CCA,10/12/2018,11-11086,3808.17,BN Gibson Ltd,
Nottinghamshire County Council,1111/1001,Children and Young People,CYP,Transport Related,CCA,10/12/2018,11-11087,1094.94,BN Gibson Ltd,
Nottinghamshire County Council,1111/1001,Children and Young People,CYP,Transport Related,CCA,10/12/2018,11-11089,2433.2,BN Gibson Ltd,
Nottinghamshire County Council,1111/1001,Children and Young People,CYP,Transport Related,CCA,10/12/2018,11-11090,4571.04,BN Gibson Ltd,
Nottinghamshire County Council,1111/1001,Children and Young People,CYP,Transport Related,CCA,10/12/2018,11-11091,"4,678.40",BN Gibson Ltd,
Nottinghamshire County Council,1111/1001,Children and Young People,CYP,Transport Related,CCA,10/12/2018,11-11092,"2,592.74",BN Gibson Ltd,
Nottinghamshire County Council,1111/1001,Children and Young People,CYP,Transport Related,CCA,10/12/2018,11-11093,2184.62,BN Gibson Ltd,
Nottinghamshire County Council,1111/1001,Children and Young People,CYP,Transport Related,CCA,10/12/2018,11-11094,1853.64,BN Gibson Ltd,
Nottinghamshire County Council,1111/1001,Children and Young People,CYP,Transport Related,CCA,10/12/2018,11-11095,723.81,BN Gibson Ltd,
Nottinghamshire County Council,1111/1001,Children and Young People,CYP,Transport Related,CCA,10/12/2018,11-11097,2184.62,BN Gibson Ltd,
Nottinghamshire County Council,1111/1001,Children and Young People,CYP,Transport Related,CCA,10/12/2018,11-11098,"2,648.03",BN Gibson Ltd,
Nottinghamshire County Council,1111/1001,Children and Young People,CYP,Transport Related,CCA,10/12/2018,11-11099,"2,869.76",BN Gibson Ltd,
Nottinghamshire County Council,1111/1001,Children and Young People,CYP,Transport Related,CCA,10/12/2018,11-11100,"2,118.31",BN Gibson Ltd,
Nottinghamshire County Council,1111/1001,Children and Young People,CYP,Transport Related,CCA,10/12/2018,11-11101,"2,433.33",BN Gibson Ltd,
Nottinghamshire County Council,1111/1001,Children and Young People,CYP,Transport Related,CCA,10/12/2018,11-11102,"4,416.84",BN Gibson Ltd,
Nottinghamshire County Council,1111/1001,Children and Young People,CYP,Transport Related,CCA,10/12/2018,11-11103,"2,311.54",BN Gibson Ltd,
Nottinghamshire County Council,1111/1001,Children and Young People,CYP,Transport Related,CCA,10/12/2018,11-11104,2810.67,BN Gibson Ltd,
Nottinghamshire County Council,1111/1001,Children and Young People,CYP,Transport Related,CCA,10/12/2018,11-11105,2433.2,BN Gibson Ltd,
Nottinghamshire County Council,1111/1001,Children and Young People,CYP,Transport Related,CCA,10/12/2018,11-11106,3911.8,BN Gibson Ltd,
Nottinghamshire County Council,1111/1001,Children and Young People,CYP,Transport Related,CCA,10/12/2018,11-11107,"3,235.40",BN Gibson Ltd,
Nottinghamshire County Council,1111/1001,Children and Young People,CYP,Transport Related,CCA,10/12/2018,11-11108,"2,648.00",BN Gibson Ltd,
Nottinghamshire County Council,1111/1001,Children and Young People,CYP,Transport Related,CCA,10/12/2018,11-11109,3859.2,BN Gibson Ltd,
Nottinghamshire County Council,1111/1001,Children and Young People,CYP,Transport Related,CCA,10/12/2018,11-11110,"3,540.60",BN Gibson Ltd,
Nottinghamshire County Council,1111/1001,Children and Young People,CYP,Transport Related,CCA,10/12/2018,11-11111,5812.2,BN Gibson Ltd,
Nottinghamshire County Council,1111/1001,Children and Young People,CYP,Transport Related,CCA,10/12/2018,11-11112,3102.32,BN Gibson Ltd,
Nottinghamshire County Council,1111/1001,Children and Young People,CYP,Transport Related,CCA,10/12/2018,11-11113,3702.42,BN Gibson Ltd,
Nottinghamshire County Council,1111/1001,Children and Young People,CYP,Transport Related,CCA,10/12/2018,11-11114,3400.56,BN Gibson Ltd,
Nottinghamshire County Council,1111/1001,Children and Young People,CYP,Transport Related,CCA,10/12/2018,11-11115,2937.96,BN Gibson Ltd,
Nottinghamshire County Council,1111/1001,Children and Young People,CYP,Transport Related,CCA,10/12/2018,11-11116,"2,318.94",BN Gibson Ltd,
Nottinghamshire County Council,1111/1001,Children and Young People,CYP,Transport Related,CCA,10/12/2018,11-11117,"2,160.54",BN Gibson Ltd,
Nottinghamshire County Council,1111/1001,Children and Young People,CYP,Transport Related,CCA,10/12/2018,11-11118,"2,074.86",BN Gibson Ltd,
Nottinghamshire County Council,1111/1001,Children and Young People,CYP,Transport Related,CCA,10/12/2018,11-11119,"2,311.54",BN Gibson Ltd,
Nottinghamshire County Council,1111/1001,Children and Young People,CYP,Transport Related,CCA,10/12/2018,11-11120,4172.3,BN Gibson Ltd,
Nottinghamshire County Council,1111/1001,Children and Young People,CYP,Transport Related,CCA,10/12/2018,11-11121,2410.6,BN Gibson Ltd,
Nottinghamshire County Council,1111/1001,Children and Young People,CYP,Transport Related,CCA,10/12/2018,11-11122,"3,718.00",BN Gibson Ltd,
Nottinghamshire County Council,1111/1001,Children and Young People,CYP,Transport Related,CCA,10/12/2018,11-11123,1919,BN Gibson Ltd,
Nottinghamshire County Council,1111/1001,Children and Young People,CYP,Transport Related,CCA,10/12/2018,11-11124,1770.8,BN Gibson Ltd,
Nottinghamshire County Council,1111/1001,Children and Young People,CYP,Transport Related,CCA,10/12/2018,11-11125,"2,023.88",BN Gibson Ltd,
Nottinghamshire County Council,1111/1001,Children and Young People,CYP,Transport Related,CCA,10/12/2018,11-11126,"3,361.40",BN Gibson Ltd,
Nottinghamshire County Council,1111/1001,Children and Young People,CYP,Transport Related,CCA,10/12/2018,11-11127,"2,602.24",BN Gibson Ltd,
Nottinghamshire County Council,1111/1001,Children and Young People,CYP,Transport Related,CCA,10/12/2018,11-11128,1960.61,BN Gibson Ltd,
Nottinghamshire County Council,1111/1001,Children and Young People,CYP,Transport Related,CCA,10/12/2018,11-11129,2023.88,BN Gibson Ltd,
Nottinghamshire County Council,1111/1001,Children and Young People,CYP,Transport Related,CCA,10/12/2018,11-11130,"2,604.79",BN Gibson Ltd,
Nottinghamshire County Council,1111/1001,Children and Young People,CYP,Transport Related,CCA,10/12/2018,11-11133,"2,041.00",BN Gibson Ltd,
Nottinghamshire County Council,1111/1001,Children and Young People,CYP,Transport Related,CCA,10/12/2018,11-11134,"2,111.40",BN Gibson Ltd,
Nottinghamshire County Council,1111/1001,Children and Young People,CYP,Transport Related,CCA,10/12/2018,11-11135,"2,627.52",BN Gibson Ltd,
Nottinghamshire County Council,1111/1001,Children and Young People,CYP,Transport Related,CCA,10/12/2018,11-11138,"2,780.00",AOT Coaches,
Nottinghamshire County Council,1111/1001,Children and Young People,CYP,Transport Related,CCA,10/12/2018,11-11142,2300,Gem Mini Travel Ltd,
Nottinghamshire County Council,1111/1001,Children and Young People,CYP,Transport Related,CCA,10/12/2018,11-11143,4963,Gem Mini Travel Ltd,
Nottinghamshire County Council,1111/1001,Children and Young People,CYP,Transport Related,CCA,10/12/2018,11-11144,"4,224.00",Gem Mini Travel Ltd,
Nottinghamshire County Council,1111/1001,Children and Young People,CYP,Transport Related,CCA,10/12/2018,11-11145,4295,Gem Mini Travel Ltd,
Nottinghamshire County Council,1111/1001,Children and Young People,CYP,Transport Related,CCA,10/12/2018,11-11146,3673.25,Gem Mini Travel Ltd,
Nottinghamshire County Council,1111/1001,Children and Young People,CYP,Transport Related,CCA,10/12/2018,11-11147,"5,067.50",Gem Mini Travel Ltd,
Nottinghamshire County Council,1111/1001,Children and Young People,CYP,Transport Related,CCA,10/12/2018,11-11148,"3,187.50",Jb Tours Watnall Ltd,
Nottinghamshire County Council,1111/1001,Children and Young People,CYP,Transport Related,CCA,10/12/2018,11-11149,3021,Jb Tours Watnall Ltd,
Nottinghamshire County Council,1111/1001,Children and Young People,CYP,Transport Related,CCA,10/12/2018,11-11150,"3,266.50",Jb Tours Watnall Ltd,
Nottinghamshire County Council,1111/1001,Children and Young People,CYP,Transport Related,CCA,10/12/2018,11-11153,"5,846.25",Stagecoach Services Ltd,
Nottinghamshire County Council,1111/1001,Children and Young People,CYP,Transport Related,CCA,10/12/2018,11-11155,"4,690.34",Stagecoach Services Ltd,
Nottinghamshire County Council,1111/1001,Children and Young People,CYP,Transport Related,CCA,10/12/2018,11-11159,4226.22,Stagecoach Services Ltd,
Nottinghamshire County Council,1111/1001,Children and Young People,CYP,Transport Related,CCA,10/12/2018,11-11166,"2,867.00",Stagecoach Services Ltd,
Nottinghamshire County Council,1111/1001,Children and Young People,CYP,Transport Related,CCA,10/12/2018,11-11169,"5,380.00",Stagecoach Services Ltd,
Nottinghamshire County Council,1111/1001,Children and Young People,CYP,Transport Related,CCA,10/12/2018,11-11180,"2,753.67",Stagecoach Services Ltd,
Nottinghamshire County Council,1111/1001,Children and Young People,CYP,Transport Related,CCA,10/12/2018,11-11182,"2,000.00",Rio Cabs,
Nottinghamshire County Council,1111/1001,Children and Young People,CYP,Transport Related,CCA,10/12/2018,11-11184,"19,942.82",Ace Cars,
Nottinghamshire County Council,1111/1001,Children and Young People,CYP,Transport Related,CCA,10/12/2018,11-11186,22477.58,Ace Cars,
Nottinghamshire County Council,1111/1001,Children and Young People,CYP,Transport Related,CCA,10/12/2018,11-11188,23660.61,Ace Cars,
Nottinghamshire County Council,1111/1001,Children and Young People,CYP,Transport Related,CCA,10/12/2018,11-11190,2845.62,Nottingham Community Transport,
Nottinghamshire County Council,1111/1001,Children and Young People,CYP,Transport Related,CCA,10/12/2018,11-11192,846,Nottingham Cars Ltd,
Nottinghamshire County Council,1111/1001,Children and Young People,CYP,Transport Related,CCA,10/12/2018,11-11193,908,Nottingham Cars Ltd,
Nottinghamshire County Council,1111/1001,Children and Young People,CYP,Transport Related,CCA,10/12/2018,11-11194,840.00,Nottingham Cars Ltd,
Nottinghamshire County Council,1111/1001,Children and Young People,CYP,Transport Related,CCA,10/12/2018,11-11196,1400,ADF Cars Ltd,
Nottinghamshire County Council,1111/1001,Children and Young People,CYP,Transport Related,CCA,10/12/2018,11-11197,2400,ADF Cars Ltd,
Nottinghamshire County Council,1111/1001,Children and Young People,CYP,Transport Related,CCA,10/12/2018,11-11198,2452.8,ADF Cars Ltd,
Nottinghamshire County Council,1111/1001,Children and Young People,CYP,Transport Related,CCA,10/12/2018,11-11199,2040,Reliable Cars Ltd,
Nottinghamshire County Council,1111/1001,Children and Young People,CYP,Transport Related,CCA,10/12/2018,11-11201,800,Reliable Cars Ltd,
Nottinghamshire County Council,1111/1001,Children and Young People,CYP,Transport Related,CCA,10/12/2018,11-11202,1364,Reliable Cars Ltd,
Nottinghamshire County Council,1111/1001,Children and Young People,CYP,Transport Related,CCA,10/12/2018,11-11203,1472,Reliable Cars Ltd,
Nottinghamshire County Council,1111/1001,Children and Young People,CYP,Transport Related,CCA,10/12/2018,11-11204,512,Reliable Cars Ltd,
Nottinghamshire County Council,1111/1001,Children and Young People,CYP,Transport Related,CCA,10/12/2018,11-11205,1320,Reliable Cars Ltd,
Nottinghamshire County Council,1111/1001,Children and Young People,CYP,Transport Related,CCA,10/12/2018,11-11206,2420,Reliable Cars Ltd,
Nottinghamshire County Council,1111/1001,Children and Young People,CYP,Transport Related,CCA,10/12/2018,11-11207,798.00,Reliable Cars Ltd,
Nottinghamshire County Council,1111/1001,Children and Young People,CYP,Transport Related,CCA,10/12/2018,11-11208,798.00,Reliable Cars Ltd,
Nottinghamshire County Council,1111/1001,Children and Young People,CYP,Transport Related,CCA,10/12/2018,11-11209,760.00,Reliable Cars Ltd,
Nottinghamshire County Council,1111/1001,Children and Young People,CYP,Transport Related,CCA,10/12/2018,11-11210,2300,CT4N Ltd,
Nottinghamshire County Council,1111/1001,Children and Young People,CYP,Transport Related,CCA,10/12/2018,11-11211,"3,707.50",Millennium Travel,
Nottinghamshire County Council,1111/1001,Children and Young People,CYP,Transport Related,CCA,10/12/2018,11-11212,"1,638.40",East Midlands Care Matters (Head Of,
Nottinghamshire County Council,1111/1001,Children and Young People,CYP,Transport Related,CCA,10/12/2018,11-11213,921.60,East Midlands Care Matters (Head Of,
Nottinghamshire County Council,1111/1001,Children and Young People,CYP,Transport Related,CCA,10/12/2018,11-11370,604,Alert Cars Ltd,
Nottinghamshire County Council,1111/1001,Children and Young People,CYP,Transport Related,CCA,10/12/2018,11-11371,"1,612.00",Alert Cars Ltd,
Nottinghamshire County Council,1111/1001,Children and Young People,CYP,Transport Related,CCA,10/12/2018,11-11374,852,Alert Cars Ltd,
Nottinghamshire County Council,1111/1001,Children and Young People,CYP,Transport Related,CCA,10/12/2018,11-11380,800.00,Ace Of Mansfield Ltd,
Nottinghamshire County Council,1111/1001,Children and Young People,CYP,Transport Related,CCA,10/12/2018,11-11382,1140,Ace Of Mansfield Ltd,
Nottinghamshire County Council,1111/1001,Children and Young People,CYP,Transport Related,CCA,10/12/2018,11-11383,2400,Ace Of Mansfield Ltd,
Nottinghamshire County Council,1111/1001,Children and Young People,CYP,Transport Related,CCA,10/12/2018,11-11384,"1,881.00",Shelleys Taxis Ltd,
Nottinghamshire County Council,1111/1001,Children and Young People,CYP,Transport Related,CCA,10/12/2018,11-11385,"2,288.00",Shelleys Taxis Ltd,
Nottinghamshire County Council,1111/1001,Children and Young People,CYP,Transport Related,CCA,10/12/2018,11-11386,600,Shelleys Taxis Ltd,
Nottinghamshire County Council,1111/1001,Children and Young People,CYP,Transport Related,CCA,10/12/2018,11-11387,"1,414.00",Shelleys Taxis Ltd,
Nottinghamshire County Council,1111/1001,Children and Young People,CYP,Transport Related,CCA,10/12/2018,11-11388,1979.6,Shelleys Taxis Ltd,
Nottinghamshire County Council,1111/1001,Children and Young People,CYP,Transport Related,CCA,10/12/2018,11-11389,2080,Shelleys Taxis Ltd,
Nottinghamshire County Council,1111/1001,Children and Young People,CYP,Transport Related,CCA,10/12/2018,11-11390,1260,Shelleys Taxis Ltd,
Nottinghamshire County Council,1111/1001,Children and Young People,CYP,Transport Related,CCA,10/12/2018,11-11391,1260,Shelleys Taxis Ltd,
Nottinghamshire County Council,1111/1001,Children and Young People,CYP,Transport Related,CCA,10/12/2018,11-11392,"2,200.00",Shelleys Taxis Ltd,
Nottinghamshire County Council,1111/1001,Children and Young People,CYP,Transport Related,CCA,10/12/2018,11-11393,1216,Shelleys Taxis Ltd,
Nottinghamshire County Council,1111/1001,Children and Young People,CYP,Transport Related,CCA,10/12/2018,11-11394,1710,Shelleys Taxis Ltd,
Nottinghamshire County Council,1111/1001,Children and Young People,CYP,Transport Related,CCA,10/12/2018,11-11395,1520,Shelleys Taxis Ltd,
Nottinghamshire County Council,1111/1001,Children and Young People,CYP,Transport Related,CCA,10/12/2018,11-11396,"2,128.00",Shelleys Taxis Ltd,
Nottinghamshire County Council,1111/1001,Children and Young People,CYP,Transport Related,CCA,10/12/2018,11-11399,"1,718.01",F4Control Ltd (t/a First4care),
Nottinghamshire County Council,1111/1001,Children and Young People,CYP,Transport Related,CCA,10/12/2018,11-11401,2678,F4Control Ltd (t/a First4care),
Nottinghamshire County Council,1111/1001,Children and Young People,CYP,Transport Related,CCA,10/12/2018,11-11402,2631.52,F4Control Ltd (t/a First4care),
Nottinghamshire County Council,1111/1001,Children and Young People,CYP,Transport Related,CCA,10/12/2018,11-11403,"2,035.85",F4Control Ltd (t/a First4care),
Nottinghamshire County Council,1111/1001,Children and Young People,CYP,Transport Related,CCA,10/12/2018,11-11405,962.06,F4Control Ltd (t/a First4care),
Nottinghamshire County Council,1111/1001,Children and Young People,CYP,Transport Related,CCA,10/12/2018,11-11407,2081.76,F4Control Ltd (t/a First4care),
Nottinghamshire County Council,1111/1001,Children and Young People,CYP,Transport Related,CCA,10/12/2018,11-11408,2590,F4Control Ltd (t/a First4care),
Nottinghamshire County Council,1111/1001,Children and Young People,CYP,Transport Related,CCA,10/12/2018,11-11417,330,Abacus Cars,
Nottinghamshire County Council,1111/1001,Children and Young People,CYP,Transport Related,CCA,10/12/2018,11-11419,1805,Abacus Cars,
Nottinghamshire County Council,1111/1001,Children and Young People,CYP,Transport Related,CCA,10/12/2018,11-11421,800.00,Abacus Cars,
Nottinghamshire County Council,1111/1001,Children and Young People,CYP,Transport Related,CCA,10/12/2018,11-11422,1760,Abacus Cars,
Nottinghamshire County Council,1111/1001,Children and Young People,CYP,Transport Related,CCA,10/12/2018,11-11423,"1,442.40",Abacus Cars,
Nottinghamshire County Council,1111/1001,Children and Young People,CYP,Transport Related,CCA,10/12/2018,11-11424,2080,Abacus Cars,
Nottinghamshire County Council,1111/1001,Children and Young People,CYP,Transport Related,CCA,10/12/2018,11-11425,2200,Abacus Cars,
Nottinghamshire County Council,1111/1001,Children and Young People,CYP,Transport Related,CCA,10/12/2018,11-11426,"2,000.00",Abacus Cars,
Nottinghamshire County Council,1111/1001,Children and Young People,CYP,Transport Related,CCA,10/12/2018,11-11427,"2,200.00",Abacus Cars,
Nottinghamshire County Council,1111/1001,Children and Young People,CYP,Transport Related,CCA,10/12/2018,11-11428,1260,Abacus Cars,
Nottinghamshire County Council,1111/1001,Children and Young People,CYP,Transport Related,CCA,10/12/2018,11-11429,"1,200.00",Abacus Cars,
Nottinghamshire County Council,1111/1001,Children and Young People,CYP,Transport Related,CCA,10/12/2018,11-11431,"6,206.00",Stagecoach Services Ltd,
Nottinghamshire County Council,1111/1001,Children and Young People,CYP,Transport Related,CCA,10/12/2018,11-11432,4700,Stagecoach Services Ltd,
Nottinghamshire County Council,1111/1001,Children and Young People,CYP,Transport Related,CCA,10/12/2018,11-11434,"3,497.00",Stagecoach Services Ltd,
Nottinghamshire County Council,1111/1001,Children and Young People,CYP,Transport Related,CCA,10/12/2018,11-11435,"3,406.50",Stagecoach Services Ltd,
Nottinghamshire County Council,1111/1001,Children and Young People,CYP,Transport Related,CCA,10/12/2018,11-11437,4967.5,Stagecoach Services Ltd,
Nottinghamshire County Council,1111/1001,Children and Young People,CYP,Transport Related,CCA,10/12/2018,11-11438,"4,770.70",Stagecoach Services Ltd,
Nottinghamshire County Council,1111/1001,Children and Young People,CYP,Transport Related,CCA,10/12/2018,11-11439,4034.5,Stagecoach Services Ltd,
Nottinghamshire County Council,1111/1001,Children and Young People,CYP,Transport Related,CCA,10/12/2018,11-11440,5314.5,Stagecoach Services Ltd,
Nottinghamshire County Council,1111/1001,Children and Young People,CYP,Transport Related,CCA,10/12/2018,11-11441,5131.94,Stagecoach Services Ltd,
Nottinghamshire County Council,1111/1001,Children and Young People,CYP,Transport Related,CCA,10/12/2018,11-11442,9600,Wilfreda Beehive,
Nottinghamshire County Council,1111/1001,Children and Young People,CYP,Transport Related,CCA,10/12/2018,11-11443,"3,121.56",K Matthews Travel,
Nottinghamshire County Council,1111/1001,Children and Young People,CYP,Transport Related,CCA,10/12/2018,11-11444,2937.96,K Matthews Travel,
Nottinghamshire County Council,1111/1001,Children and Young People,CYP,Transport Related,CCA,10/12/2018,11-11445,604.20,Bassetlaw Action Centre,
Nottinghamshire County Council,1111/1001,Children and Young People,CYP,Transport Related,CCA,10/12/2018,11-11446,1602.84,Bassetlaw Action Centre,
Nottinghamshire County Council,1111/1001,Children and Young People,CYP,Transport Related,CCA,10/12/2018,11-11447,2332.44,Bassetlaw Action Centre,
Nottinghamshire County Council,1111/1001,Children and Young People,CYP,Transport Related,CCA,10/12/2018,11-11448,"1,166.00",Bassetlaw Action Centre,
Nottinghamshire County Council,1111/1001,Children and Young People,CYP,Transport Related,CCA,10/12/2018,11-11450,720.00,Bulls Taxis,
Nottinghamshire County Council,1111/1001,Children and Young People,CYP,Transport Related,CCA,10/12/2018,11-11453,2900,Rushcliffe Travel Ltd,
Nottinghamshire County Council,1111/1001,Children and Young People,CYP,Transport Related,CCA,10/12/2018,11-11454,2000,Rushcliffe Travel Ltd,
Nottinghamshire County Council,1111/1001,Children and Young People,CYP,Transport Related,CCA,10/12/2018,11-11455,"2,300.00",CT4N Ltd,
Nottinghamshire County Council,1111/1001,Children and Young People,CYP,Transport Related,CCA,10/12/2018,11-11456,"2,200.00",CT4N Ltd,
Nottinghamshire County Council,1111/1001,Children and Young People,CYP,Transport Related,CCA,10/12/2018,11-11458,"1,652.00",AJ's Taxis,
Nottinghamshire County Council,1111/1001,Children and Young People,CYP,Transport Related,CCA,10/12/2018,11-11459,880.00,AJ's Taxis,
Nottinghamshire County Council,1111/1001,Children and Young People,CYP,Transport Related,CCA,10/12/2018,11-11460,880.00,AJ's Taxis,
Nottinghamshire County Council,1111/1001,Children and Young People,CYP,Transport Related,CCA,10/12/2018,11-11461,1500,APC Travel,
Nottinghamshire County Council,1111/1001,Children and Young People,CYP,Transport Related,CCA,10/12/2018,11-11463,2259.1,SM Travel Yorkshire Ltd,
Nottinghamshire County Council,1111/1001,Children and Young People,CYP,Transport Related,CCA,10/12/2018,11-11464,"1,825.90",SM Travel Yorkshire Ltd,
Nottinghamshire County Council,1111/1001,Children and Young People,CYP,Transport Related,CCA,10/12/2018,11-11465,2384,SM Travel Yorkshire Ltd,
Nottinghamshire County Council,1111/1001,Children and Young People,CYP,Transport Related,CCA,10/12/2018,11-11468,2127.6,SM Travel Yorkshire Ltd,
Nottinghamshire County Council,1111/1001,Children and Young People,CYP,Transport Related,CCA,11/12/2018,11-12555,2052,Southside Cars,
Nottinghamshire County Council,1111/1001,Children and Young People,CYP,Transport Related,CCA,11/12/2018,11-12556,2028,Southside Cars,
Nottinghamshire County Council,1111/1001,Children and Young People,CYP,Transport Related,CCA,11/12/2018,11-12565,775.2,D G Private Hire Ltd,
Nottinghamshire County Council,1111/1001,Children and Young People,CYP,Transport Related,CCA,11/12/2018,11-12567,11100,AOT Coaches,
Nottinghamshire County Council,1111/1001,Children and Young People,CYP,Transport Related,CCA,11/12/2018,11-12568,2582,AOT Coaches,
Nottinghamshire County Council,1111/1001,Children and Young People,CYP,Transport Related,CCA,11/12/2018,11-12569,"2,840.50",Ace Cars,
Nottinghamshire County Council,1111/1001,Children and Young People,CYP,Transport Related,CCA,11/12/2018,11-12570,2840.5,Ace Cars,
Nottinghamshire County Council,1111/1001,Children and Young People,CYP,Transport Related,CCA,11/12/2018,11-12571,2270.5,Ace Cars,
Nottinghamshire County Council,1111/1001,Children and Young People,CYP,Transport Related,CCA,11/12/2018,11-12572,"2,390.00",Ace Cars,
Nottinghamshire County Council,1111/1001,Children and Young People,CYP,Transport Related,CCA,11/12/2018,11-12573,"2,293.30",Ace Cars,
Nottinghamshire County Council,1111/1001,Children and Young People,CYP,Transport Related,CCA,11/12/2018,11-12574,"1,890.00",Ace Cars,
Nottinghamshire County Council,1111/1001,Children and Young People,CYP,Transport Related,CCA,11/12/2018,11-12575,1795.5,Ace Cars,
Nottinghamshire County Council,1111/1001,Children and Young People,CYP,Transport Related,CCA,11/12/2018,11-12576,2300,Ace Cars,
Nottinghamshire County Council,1111/1001,Children and Young People,CYP,Transport Related,CCA,11/12/2018,11-12577,"3,510.00",Ace Cars,
Nottinghamshire County Council,1111/1001,Children and Young People,CYP,Transport Related,CCA,11/12/2018,11-12578,"1,794.00",Ace Cars,
Nottinghamshire County Council,1111/1001,Children and Young People,CYP,Transport Related,CCA,11/12/2018,11-12580,"2,330.00",Ace Cars,
Nottinghamshire County Council,1111/1001,Children and Young People,CYP,Transport Related,CCA,11/12/2018,11-12582,"2,590.00",Rushcliffe Travel Ltd,
Nottinghamshire County Council,1111/1001,Children and Young People,CYP,Transport Related,CCA,11/12/2018,11-12583,"2,565.00",Rushcliffe Travel Ltd,
Nottinghamshire County Council,1111/1001,Children and Young People,CYP,Transport Related,CCA,11/12/2018,11-12584,2700,Rushcliffe Travel Ltd,
Nottinghamshire County Council,1111/1001,Children and Young People,CYP,Transport Related,CCA,11/12/2018,11-12585,2755,Rushcliffe Travel Ltd,
Nottinghamshire County Council,1111/1001,Children and Young People,CYP,Transport Related,CCA,11/12/2018,11-12586,"1,652.00",AJ's Taxis,
Nottinghamshire County Council,1111/1001,Children and Young People,CYP,Transport Related,CCA,13/12/2018,11-12874,4295.52,Johnson Bros Tours Ltd,
Nottinghamshire County Council,1111/1001,Children and Young People,CYP,Transport Related,CCA,13/12/2018,11-12875,2733,Wrights Coaches,
Nottinghamshire County Council,1111/1001,Children and Young People,CYP,Transport Related,CCA,13/12/2018,11-12877,860.07,Arrow Specialised Transport Ltd,
Nottinghamshire County Council,1111/1001,Children and Young People,CYP,Transport Related,CCA,13/12/2018,11-12879,"1,994.00",Arrow Specialised Transport Ltd,
Nottinghamshire County Council,1111/1001,Children and Young People,CYP,Transport Related,CCA,13/12/2018,11-12880,6320,Arrow Specialised Transport Ltd,
Nottinghamshire County Council,1111/1001,Children and Young People,CYP,Transport Related,CCA,13/12/2018,11-12881,"2,465.00",Arrow Specialised Transport Ltd,
Nottinghamshire County Council,1111/1001,Children and Young People,CYP,Transport Related,CCA,13/12/2018,11-12882,"1,482.00",Skills Motor Coaches Ltd,
Nottinghamshire County Council,1111/1001,Children and Young People,CYP,Transport Related,CCA,13/12/2018,11-12883,"1,700.00",Skills Motor Coaches Ltd,
Nottinghamshire County Council,1111/1001,Children and Young People,CYP,Transport Related,CCA,13/12/2018,11-12884,2160,Skills Motor Coaches Ltd,
Nottinghamshire County Council,1111/1001,Children and Young People,CYP,Transport Related,CCA,13/12/2018,11-12887,"8,428.32",Gem Mini Travel Ltd,
Nottinghamshire County Council,1111/1001,Children and Young People,CYP,Transport Related,CCA,13/12/2018,11-12888,"4,051.80",Marshalls Of Sutton On Trent Ltd,
Nottinghamshire County Council,1111/1001,Children and Young People,CYP,Transport Related,CCA,13/12/2018,11-12889,"2,546.24",Silverdale Tours Nottm Ltd,
Nottinghamshire County Council,1111/1001,Children and Young People,CYP,Transport Related,CCA,13/12/2018,11-12890,"3,406.30",Tiger European Uk Ltd,
Nottinghamshire County Council,1111/1001,Children and Young People,CYP,Transport Related,CCA,13/12/2018,11-12891,"2,695.00",Tiger European Uk Ltd,
Nottinghamshire County Council,1111/1001,Children and Young People,CYP,Transport Related,CCA,13/12/2018,11-12892,6365,Tiger European Uk Ltd,
Nottinghamshire County Council,1111/1001,Children and Young People,CYP,Transport Related,CCA,13/12/2018,11-12893,3578.1,Tiger European Uk Ltd,
Nottinghamshire County Council,1111/1001,Children and Young People,CYP,Transport Related,CCA,13/12/2018,11-12894,2853,Tiger European Uk Ltd,
Nottinghamshire County Council,1111/1001,Children and Young People,CYP,Transport Related,CCA,13/12/2018,11-12895,6555,Tiger European Uk Ltd,
Nottinghamshire County Council,1111/1001,Children and Young People,CYP,Transport Related,CCA,13/12/2018,11-12896,3417.75,Tiger European Uk Ltd,
Nottinghamshire County Council,1111/1001,Children and Young People,CYP,Transport Related,CCA,13/12/2018,11-12899,"3,352.00",Tiger European Uk Ltd,
Nottinghamshire County Council,1111/1001,Children and Young People,CYP,Transport Related,CCA,13/12/2018,11-12900,3500,Tiger European Uk Ltd,
Nottinghamshire County Council,1111/1001,Children and Young People,CYP,Transport Related,CCA,13/12/2018,11-12901,3705,Tiger European Uk Ltd,
Nottinghamshire County Council,1111/1001,Children and Young People,CYP,Transport Related,CCA,13/12/2018,11-12902,1267.02,Travel Wright Ltd,
Nottinghamshire County Council,1111/1001,Children and Young People,CYP,Transport Related,CCA,13/12/2018,11-12903,726.24,Travel Wright Ltd,
Nottinghamshire County Council,1111/1001,Children and Young People,CYP,Transport Related,CCA,13/12/2018,11-12904,3706,Freeway Coaches Ltd,
Nottinghamshire County Council,1111/1001,Children and Young People,CYP,Transport Related,CCA,13/12/2018,11-12905,6260,Freeway Coaches Ltd,
Nottinghamshire County Council,1111/1001,Children and Young People,CYP,Transport Related,CCA,13/12/2018,11-12908,1820,Nottingham Coaches,
Nottinghamshire County Council,1111/1001,Children and Young People,CYP,Transport Related,CCA,13/12/2018,11-12909,947.87,Shiny Sky Ltd T/A A2b Cars,
Nottinghamshire County Council,1111/1001,Children and Young People,CYP,Transport Related,CCA,13/12/2018,11-12910,2840.5,Rushcliffe Travel Ltd,
Nottinghamshire County Council,1111/1001,Children and Young People,CYP,Transport Related,CCA,13/12/2018,11-12913,1554,Southside Cars,
Nottinghamshire County Council,1111/1001,Children and Young People,CYP,Transport Related,CCA,13/12/2018,11-12914,960.00,Southside Cars,
Nottinghamshire County Council,1111/1001,Children and Young People,CYP,Transport Related,CCA,13/12/2018,11-12917,"1,808.00",Ace Cars,
Nottinghamshire County Council,1111/1001,Children and Young People,CYP,Transport Related,CCA,13/12/2018,11-12919,889.45,Nunns Taxis Ltd,
Nottinghamshire County Council,1111/1001,Children and Young People,CYP,Transport Related,CCA,13/12/2018,11-12920,452.49,Nunns Taxis Ltd,
Nottinghamshire County Council,1111/1001,Children and Young People,CYP,Transport Related,CCA,13/12/2018,11-12922,677.60,Barnsley Metropolitan Borough Counc,
Nottinghamshire County Council,1111/1001,Children and Young People,CYP,Transport Related,CCA,17/12/2018,11-12949,"4,041.15",Via East Midlands Ltd,
Nottinghamshire County Council,1111/1001,Children and Young People,CYP,Transport Related,CCA,20/12/2018,11-13211,"1,900.00",6 Five 2s,
Nottinghamshire County Council,1111/1001,Children and Young People,CYP,Transport Related,CCA,20/12/2018,11-13212,1300,6 Five 2s,
Nottinghamshire County Council,1111/1001,Children and Young People,CYP,Transport Related,CCA,20/12/2018,11-13213,"2,544.00",6 Five 2s,
Nottinghamshire County Council,1111/1001,Children and Young People,CYP,Transport Related,CCA,20/12/2018,11-13214,2200,6 Five 2s,
Nottinghamshire County Council,1111/1001,Children and Young People,CYP,Transport Related,CCA,20/12/2018,11-13215,"1,880.00",6 Five 2s,
Nottinghamshire County Council,1111/1001,Children and Young People,CYP,Transport Related,CCA,20/12/2018,11-13216,2280,6 Five 2s,
Nottinghamshire County Council,1111/1001,Children and Young People,CYP,Transport Related,CCA,20/12/2018,11-13217,1200,6 Five 2s,
Nottinghamshire County Council,1111/1001,Children and Young People,CYP,Transport Related,CCA,20/12/2018,11-13218,719.20,6 Five 2s,
Nottinghamshire County Council,1111/1001,Children and Young People,CYP,Transport Related,CCA,20/12/2018,11-13220,616.00,6 Five 2s,
Nottinghamshire County Council,1111/1001,Children and Young People,CYP,Transport Related,CCA,20/12/2018,11-13221,2000.51,6 Five 2s,
Nottinghamshire County Council,1111/1001,Children and Young People,CYP,Transport Related,CCA,20/12/2018,11-13222,"1,938.20",Central Cars Nottm Ltd,
Nottinghamshire County Council,1111/1001,Children and Young People,CYP,Transport Related,CCA,20/12/2018,11-13223,1836.18,Central Cars Nottm Ltd,
Nottinghamshire County Council,1111/1001,Children and Young People,CYP,Transport Related,CCA,20/12/2018,11-13225,1515,Bridges Transport Ltd,
Nottinghamshire County Council,1111/1001,Children and Young People,CYP,Transport Related,CCA,20/12/2018,11-13228,1257.3,F4Control Ltd (t/a First4care),
Nottinghamshire County Council,1111/1001,Children and Young People,CYP,Transport Related,CCA,20/12/2018,11-13229,542.4,BN Gibson Ltd,
Nottinghamshire County Council,1111/1001,Children and Young People,CYP,Transport Related,CCA,20/12/2018,11-13230,"2,240.00",BN Gibson Ltd,
Nottinghamshire County Council,1111/1001,Children and Young People,CYP,Transport Related,CCA,20/12/2018,11-13232,2783.4,BN Gibson Ltd,
Nottinghamshire County Council,1111/1001,Children and Young People,CYP,Transport Related,CCA,20/12/2018,11-13235,2400,Silverdale Tours Nottm Ltd,
Nottinghamshire County Council,1111/1001,Children and Young People,CYP,Transport Related,CCA,20/12/2018,11-13236,8223.1,Silverdale Tours Nottm Ltd,
Nottinghamshire County Council,1111/1001,Children and Young People,CYP,Transport Related,CCA,20/12/2018,11-13237,"3,005.10",Silverdale Tours Nottm Ltd,
Nottinghamshire County Council,1111/1001,Children and Young People,CYP,Transport Related,CCA,20/12/2018,11-13238,"3,146.35",Silverdale Tours Nottm Ltd,
Nottinghamshire County Council,1111/1001,Children and Young People,CYP,Transport Related,CCA,20/12/2018,11-13239,3012.05,Silverdale Tours Nottm Ltd,
Nottinghamshire County Council,1111/1001,Children and Young People,CYP,Transport Related,CCA,20/12/2018,11-13241,3000,Silverdale Tours Nottm Ltd,
Nottinghamshire County Council,1111/1001,Children and Young People,CYP,Transport Related,CCA,20/12/2018,11-13242,"8,117.28",Silverdale Tours Nottm Ltd,
Nottinghamshire County Council,1111/1001,Children and Young People,CYP,Transport Related,CCA,20/12/2018,11-13243,2849.7,Silverdale Tours Nottm Ltd,
Nottinghamshire County Council,1111/1001,Children and Young People,CYP,Transport Related,CCA,20/12/2018,11-13244,2937.2,Silverdale Tours Nottm Ltd,
Nottinghamshire County Council,1111/1001,Children and Young People,CYP,Transport Related,CCA,20/12/2018,11-13245,2992.2,Silverdale Tours Nottm Ltd,
Nottinghamshire County Council,1111/1001,Children and Young People,CYP,Transport Related,CCA,20/12/2018,11-13246,1444.4,Silverdale Tours Nottm Ltd,
Nottinghamshire County Council,1111/1001,Children and Young People,CYP,Transport Related,CCA,20/12/2018,11-13248,3000,Silverdale Tours Nottm Ltd,
Nottinghamshire County Council,1111/1001,Children and Young People,CYP,Transport Related,CCA,20/12/2018,11-13251,"2,770.41",Travel Wright Ltd,
Nottinghamshire County Council,1111/1001,Children and Young People,CYP,Transport Related,CCA,20/12/2018,11-13253,1979.1,Wallis Coachways,
Nottinghamshire County Council,1111/1001,Children and Young People,CYP,Transport Related,CCA,20/12/2018,11-13254,"2,809.44",Wallis Coachways,
Nottinghamshire County Council,1111/1001,Children and Young People,CYP,Transport Related,CCA,20/12/2018,11-13256,3506,Ace Cars,
Nottinghamshire County Council,1111/1001,Children and Young People,CYP,Transport Related,CCA,20/12/2018,11-13258,2851.86,Ace Cars,
Nottinghamshire County Council,1111/1001,Children and Young People,CYP,Transport Related,CCA,20/12/2018,11-13260,"2,430.00",Ace Cars,
Nottinghamshire County Council,1111/1001,Children and Young People,CYP,Transport Related,CCA,20/12/2018,11-13263,614.08,Nottingham Cars Ltd,
Nottinghamshire County Council,1111/1001,Children and Young People,CYP,Transport Related,CCA,20/12/2018,11-13264,550,MSP Case Management Ltd,
Nottinghamshire County Council,1111/1001,Children and Young People,CYP,Transport Related,CCA,20/12/2018,11-13266,"1,380.00",Shiny Sky Ltd T/A A2b Cars,
Nottinghamshire County Council,1111/1001,Children and Young People,CYP,Transport Related,CCA,20/12/2018,11-13267,"1,848.00",Forest Cars,
Nottinghamshire County Council,1111/1001,Children and Young People,CYP,Transport Related,CCA,20/12/2018,11-13268,1890,SM Travel Yorkshire Ltd,
Nottinghamshire County Council,1111/1001,Children and Young People,CYP,Transport Related,CCA,21/12/2018,11-13269,"9,708.70",Via East Midlands Ltd,
Nottinghamshire County Council,1111/1001,Children and Young People,CYP,Transport Related,CCA,27/12/2018,11-10830,"2,910.60",Marks Specialised Transport Ltd,
Nottinghamshire County Council,1111/1001,Children and Young People,CYP,Transport Related,CCA,27/12/2018,11-13261,38671.92,Hope House School Ltd,
Nottinghamshire County Council,1111/1001,Children and Young People,CYP,Transport Related,CCA,27/12/2018,11-13265,"1,329.06",MSP Case Management Ltd,
Nottinghamshire County Council,1111/1001,Children and Young People,CYP,Transport Related,CCA,31/12/2018,11-12906,413.73,Doncaster Metroplitan Borough Counc,
Nottinghamshire County Council,1111/1001,Children and Young People,CYP,Transport Related,CCA,31/12/2018,11-16653,930,D G Private Hire Ltd,
Nottinghamshire County Council,1111/1001,Children and Young People,CYP,Transport Related,CCA,31/12/2018,11-16654,520,Abacus Cars,
Nottinghamshire County Council,1111/1001,Children and Young People,CYP,Transport Related,CDA,05/12/2018,11-10511,560.15,Galaxy Cabs Ltd,
Nottinghamshire County Council,1111/1001,Children and Young People,CYP,Transport Related,CDA,05/12/2018,11-10517,"6,848.00",Paul S Winson Coaches,
Nottinghamshire County Council,1111/1001,Children and Young People,CYP,Transport Related,CDA,05/12/2018,11-10520,990,Rio Cabs,
Nottinghamshire County Council,1111/1001,Children and Young People,CYP,Transport Related,CDA,05/12/2018,11-10527,"1,450.00",Sean's Taxi Services,
Nottinghamshire County Council,1111/1001,Children and Young People,CYP,Transport Related,CDA,06/12/2018,11-10580,1558.4,Taxicover Uk Ltd,
Nottinghamshire County Council,1111/1001,Children and Young People,CYP,Transport Related,CDA,06/12/2018,11-10706,5824,Marshalls Of Sutton On Trent Ltd,
Nottinghamshire County Council,1111/1001,Children and Young People,CYP,Transport Related,CDA,06/12/2018,11-10710,"2,660.00",Nottingham Minibuses & Coaches,
Nottinghamshire County Council,1111/1001,Children and Young People,CYP,Transport Related,CDA,06/12/2018,11-10711,"2,470.00",Nottingham Minibuses & Coaches,
Nottinghamshire County Council,1111/1001,Children and Young People,CYP,Transport Related,CDA,06/12/2018,11-10712,1835.4,Nottingham Minibuses & Coaches,
Nottinghamshire County Council,1111/1001,Children and Young People,CYP,Transport Related,CDA,06/12/2018,11-10713,1805,Nottingham Minibuses & Coaches,
Nottinghamshire County Council,1111/1001,Children and Young People,CYP,Transport Related,CDA,06/12/2018,11-10714,"2,375.00",Nottingham Minibuses & Coaches,
Nottinghamshire County Council,1111/1001,Children and Young People,CYP,Transport Related,CDA,06/12/2018,11-10716,"2,686.60",Nottingham Minibuses & Coaches,
Nottinghamshire County Council,1111/1001,Children and Young People,CYP,Transport Related,CDA,06/12/2018,11-10717,"2,470.00",Nottingham Minibuses & Coaches,
Nottinghamshire County Council,1111/1001,Children and Young People,CYP,Transport Related,CDA,06/12/2018,11-10719,"10,488.00",Nottingham Minibuses & Coaches,
Nottinghamshire County Council,1111/1001,Children and Young People,CYP,Transport Related,CDA,06/12/2018,11-10721,552.00,Nottingham Minibuses & Coaches,
Nottinghamshire County Council,1111/1001,Children and Young People,CYP,Transport Related,CDA,06/12/2018,11-10732,3990,C W Moxon Ltd,
Nottinghamshire County Council,1111/1001,Children and Young People,CYP,Transport Related,CDA,06/12/2018,11-10734,3360,C W Moxon Ltd,
Nottinghamshire County Council,1111/1001,Children and Young People,CYP,Transport Related,CDA,06/12/2018,11-10735,"10,959.20",C W Moxon Ltd,
Nottinghamshire County Council,1111/1001,Children and Young People,CYP,Transport Related,CDA,07/12/2018,11-10773,432,Alpha Cars,
Nottinghamshire County Council,1111/1001,Children and Young People,CYP,Transport Related,CDA,07/12/2018,11-10780,1710,Ng11 Cars,
Nottinghamshire County Council,1111/1001,Children and Young People,CYP,Transport Related,CDA,07/12/2018,11-10802,1535.2,P & P Taxis,
Nottinghamshire County Council,1111/1001,Children and Young People,CYP,Transport Related,CDA,07/12/2018,11-10819,212.1,Ace Cars,
Nottinghamshire County Council,1111/1001,Children and Young People,CYP,Transport Related,CDA,07/12/2018,11-10840,433.93,Eastwood Cars (UK) Ltd,
Nottinghamshire County Council,1111/1001,Children and Young People,CYP,Transport Related,CDA,07/12/2018,11-10864,710.03,Forest Cars,
Nottinghamshire County Council,1111/1001,Children and Young People,CYP,Transport Related,CDA,07/12/2018,11-10875,880,Forest Cars,
Nottinghamshire County Council,1111/1001,Children and Young People,CYP,Transport Related,CDA,10/12/2018,11-11062,912.00,200 Cars Ltd,
Nottinghamshire County Council,1111/1001,Children and Young People,CYP,Transport Related,CDA,10/12/2018,11-11095,723.8,BN Gibson Ltd,
Nottinghamshire County Council,1111/1001,Children and Young People,CYP,Transport Related,CDA,10/12/2018,11-11137,3608,AOT Coaches,
Nottinghamshire County Council,1111/1001,Children and Young People,CYP,Transport Related,CDA,10/12/2018,11-11184,744.75,Ace Cars,
Nottinghamshire County Council,1111/1001,Children and Young People,CYP,Transport Related,CDA,10/12/2018,11-11186,839.41,Ace Cars,
Nottinghamshire County Council,1111/1001,Children and Young People,CYP,Transport Related,CDA,10/12/2018,11-11188,883.59,Ace Cars,
Nottinghamshire County Council,1111/1001,Children and Young People,CYP,Transport Related,CDA,10/12/2018,11-11200,608,Reliable Cars Ltd,
Nottinghamshire County Council,1111/1001,Children and Young People,CYP,Transport Related,CDA,10/12/2018,11-11372,664,Alert Cars Ltd,
Nottinghamshire County Council,1111/1001,Children and Young People,CYP,Transport Related,CDA,10/12/2018,11-11376,"4,256.00",Johnson Bros Tours Ltd,
Nottinghamshire County Council,1111/1001,Children and Young People,CYP,Transport Related,CDA,10/12/2018,11-11377,"2,181.20",Johnson Bros Tours Ltd,
Nottinghamshire County Council,1111/1001,Children and Young People,CYP,Transport Related,CDA,10/12/2018,11-11378,"1,805.00",Johnson Bros Tours Ltd,
Nottinghamshire County Council,1111/1001,Children and Young People,CYP,Transport Related,CDA,10/12/2018,11-11397,510.00,Shelleys Taxis Ltd,
Nottinghamshire County Council,1111/1001,Children and Young People,CYP,Transport Related,CDA,10/12/2018,11-11399,572.67,F4Control Ltd (t/a First4care),
Nottinghamshire County Council,1111/1001,Children and Young People,CYP,Transport Related,CDA,10/12/2018,11-11414,572,Abacus Cars,
Nottinghamshire County Council,1111/1001,Children and Young People,CYP,Transport Related,CDA,10/12/2018,11-11462,1791.7,SM Travel Yorkshire Ltd,
Nottinghamshire County Council,1111/1001,Children and Young People,CYP,Transport Related,CDA,11/12/2018,11-10743,940.00,Fastlane Cabs,
Nottinghamshire County Council,1111/1001,Children and Young People,CYP,Transport Related,CDA,13/12/2018,11-12877,286.68,Arrow Specialised Transport Ltd,
Nottinghamshire County Council,1111/1001,Children and Young People,CYP,Transport Related,CDA,13/12/2018,11-12885,2200,D G Private Hire Ltd,
Nottinghamshire County Council,1111/1001,Children and Young People,CYP,Transport Related,CDA,13/12/2018,11-12886,720.00,D G Private Hire Ltd,
Nottinghamshire County Council,1111/1001,Children and Young People,CYP,Transport Related,CDA,13/12/2018,11-12897,"2,124.00",Tiger European Uk Ltd,
Nottinghamshire County Council,1111/1001,Children and Young People,CYP,Transport Related,CDA,13/12/2018,11-12898,1540,Tiger European Uk Ltd,
Nottinghamshire County Council,1111/1001,Children and Young People,CYP,Transport Related,CDA,13/12/2018,11-12920,226.21,Nunns Taxis Ltd,
Nottinghamshire County Council,1111/1001,Children and Young People,CYP,Transport Related,CDA,13/12/2018,11-12922,677.60,Barnsley Metropolitan Borough Counc,
Nottinghamshire County Council,1111/1001,Children and Young People,CYP,Transport Related,CDA,20/12/2018,11-13219,"1,780.00",6 Five 2s,
Nottinghamshire County Council,1111/1001,Children and Young People,CYP,Transport Related,CDA,20/12/2018,11-13225,505,Bridges Transport Ltd,
Nottinghamshire County Council,1111/1001,Children and Young People,CYP,Transport Related,CDA,20/12/2018,11-13234,"10,560.00",Silverdale Tours Nottm Ltd,
Nottinghamshire County Council,1111/1001,Children and Young People,CYP,Transport Related,CDA,20/12/2018,11-13240,"13,200.00",Silverdale Tours Nottm Ltd,
Nottinghamshire County Council,1111/1001,Children and Young People,CYP,Transport Related,CDA,20/12/2018,11-13247,"13,200.00",Silverdale Tours Nottm Ltd,
Nottinghamshire County Council,1111/1001,Children and Young People,CYP,Transport Related,CDA,20/12/2018,11-13258,426.14,Ace Cars,
Nottinghamshire County Council,1111/1001,Children and Young People,CYP,Transport Related,CDA,31/12/2018,11-12906,413.72,Doncaster Metroplitan Borough Counc,
Nottinghamshire County Council,1111/1001,Children and Young People,CYP,Transport Related,CEA,12/12/2018,11-12610,2873.78,Reed Employment Plc,
Nottinghamshire County Council,1111/1001,Children and Young People,CYP,Transport Related,CEA,14/12/2018,11-12606,5771.34,Reed Employment Plc,
Nottinghamshire County Council,1111/1001,Children and Young People,CYP,Transport Related,CEA,17/12/2018,11-12949,8136.41,Via East Midlands Ltd,
Nottinghamshire County Council,1111/1001,Children and Young People,CYP,Transport Related,CEA,21/12/2018,11-13269,15649.54,Via East Midlands Ltd,
Nottinghamshire County Council,1111/1001,Children and Young People,CYP,Supplies & Services,DAA,11/12/2018,11-10535,151147.41,Robert Mellors Primary & Nursery Ac,
Nottinghamshire County Council,1111/1001,Children and Young People,CYP,Supplies & Services,DAA,17/12/2018,11-12971,"226,655.38",Parkdale Primary Academy,
Nottinghamshire County Council,1111/1001,Children and Young People,CYP,Supplies & Services,DAA,19/12/2018,11-13154,20072.81,St Swithuns C of E Primary Academy,
Nottinghamshire County Council,1111/1001,Children and Young People,CYP,Supplies & Services,DAA,20/12/2018,11-12940,80000,Oak Tree Lane Primary Academy,
Nottinghamshire County Council,1111/1001,Children and Young People,CYP,Supplies & Services,DAA,27/12/2018,11-16126,20000,Larkfields Infant Academy,
Nottinghamshire County Council,1111/1001,Children and Young People,CYP,Supplies & Services,DEA,05/12/2018,11-16722,586,[Redacted],
Nottinghamshire County Council,1111/1001,Children and Young People,CYP,Supplies & Services,DFA,05/12/2018,11-10536,526.27,Lantec Services Ltd,
Nottinghamshire County Council,1111/1001,Children and Young People,CYP,Supplies & Services,DKA,04/12/2018,11-10483,1024.84,"SSAFA, The Armed Forces Charity",
Nottinghamshire County Council,1111/1001,Children and Young People,CYP,Supplies & Services,DKA,12/12/2018,11-12588,900,Coram Adoption East Midlands,
Nottinghamshire County Council,1111/1001,Children and Young People,CYP,Supplies & Services,DKA,13/12/2018,11-12870,1215,David Blount Ltd,
Nottinghamshire County Council,1111/1001,Children and Young People,CYP,Supplies & Services,DKA,21/12/2018,11-13269,655.49,Via East Midlands Ltd,
Nottinghamshire County Council,1111/1001,Children and Young People,CYP,Third Party Payments,EBA,13/12/2018,11-12927,9521.17,East Leake Schools Ltd,
Nottinghamshire County Council,1111/1001,Children and Young People,CYP,Third Party Payments,EBA,20/12/2018,11-12924,"34,534.50",East Leake Schools Ltd,
Nottinghamshire County Council,1111/1001,Children and Young People,CYP,Third Party Payments,EBA,20/12/2018,11-12925,"59,400.00",East Leake Schools Ltd,
Nottinghamshire County Council,1111/1001,Children and Young People,CYP,Third Party Payments,EBA,20/12/2018,11-12926,"29,395.44",East Leake Schools Ltd,
Nottinghamshire County Council,1111/1001,Children and Young People,CYP,Third Party Payments,EBA,20/12/2018,11-12972,233774.41,East Leake Schools Ltd,
Nottinghamshire County Council,1111/1001,Children and Young People,CYP,Third Party Payments,EBA,20/12/2018,11-12974,"1,499,718.89",Transform Schools,
Nottinghamshire County Council,1111/1001,Children and Young People,CYP,Third Party Payments,EDA,06/12/2018,11-10542,"8,269.00",Chetwynd Road Primary Academy,
Nottinghamshire County Council,1111/1001,Children and Young People,CYP,Third Party Payments,EDA,06/12/2018,11-10555,"3,029.00",George Spencer Academy,
Nottinghamshire County Council,1111/1001,Children and Young People,CYP,Third Party Payments,EDA,06/12/2018,11-10568,4089,Leverton C Of E Academy,
Nottinghamshire County Council,1111/1001,Children and Young People,CYP,Third Party Payments,EDA,07/12/2018,11-10551,"2,295.00",KImberely Primary & Nursery School,
Nottinghamshire County Council,1111/1001,Children and Young People,CYP,Third Party Payments,EDA,07/12/2018,11-10552,2296,Mornington Primary School (Academy),
Nottinghamshire County Council,1111/1001,Children and Young People,CYP,Third Party Payments,EDA,07/12/2018,11-10553,"14,845.00",East Leake Academy,
Nottinghamshire County Council,1111/1001,Children and Young People,CYP,Third Party Payments,EDA,07/12/2018,11-10554,2333,St Peters Cross Keys Academy,
Nottinghamshire County Council,1111/1001,Children and Young People,CYP,Third Party Payments,EDA,07/12/2018,11-10556,29120,VRF Priory Catholic Voluntary Acade,
Nottinghamshire County Council,1111/1001,Children and Young People,CYP,Third Party Payments,EDA,07/12/2018,11-10557,"5,233.00",Retford Oaks Academy,
Nottinghamshire County Council,1111/1001,Children and Young People,CYP,Third Party Payments,EDA,07/12/2018,11-10558,"10,139.00",Thrumpton Primary Academy,
Nottinghamshire County Council,1111/1001,Children and Young People,CYP,Third Party Payments,EDA,07/12/2018,11-10559,4905,St Swithuns C of E Primary Academy,
Nottinghamshire County Council,1111/1001,Children and Young People,CYP,Third Party Payments,EDA,07/12/2018,11-10563,766.00,Horsendale Primary School,
Nottinghamshire County Council,1111/1001,Children and Young People,CYP,Third Party Payments,EDA,07/12/2018,11-10564,18720,Hall Park Academy,
Nottinghamshire County Council,1111/1001,Children and Young People,CYP,Third Party Payments,EDA,07/12/2018,11-10565,29022,Selston High Academy,
Nottinghamshire County Council,1111/1001,Children and Young People,CYP,Third Party Payments,EDA,07/12/2018,11-10566,8911,The Bramcote School,
Nottinghamshire County Council,1111/1001,Children and Young People,CYP,Third Party Payments,EDA,07/12/2018,11-10567,6050,Bracken Lane Primary Academy,
Nottinghamshire County Council,1111/1001,Children and Young People,CYP,Third Party Payments,EDA,14/12/2018,11-12941,"80,408.00",Foxwood Academy,
Nottinghamshire County Council,1111/1001,Children and Young People,CYP,Third Party Payments,EDA,14/12/2018,11-12942,59699,Beech Academy,
Nottinghamshire County Council,1111/1001,Children and Young People,CYP,Third Party Payments,EDA,14/12/2018,11-12943,4167,Beech Academy,
Nottinghamshire County Council,1111/1001,Children and Young People,CYP,Third Party Payments,EDA,14/12/2018,11-12944,900,Yeoman Park Academy,
Nottinghamshire County Council,1111/1001,Children and Young People,CYP,Third Party Payments,EDA,14/12/2018,11-12945,"48,213.00",Redgate Primary Academy,
Nottinghamshire County Council,1111/1001,Children and Young People,CYP,Third Party Payments,EDA,17/12/2018,11-12947,"20,085.00",George Spencer Academy,
Nottinghamshire County Council,1111/1001,Children and Young People,CYP,Third Party Payments,EDA,17/12/2018,11-12948,23400,Quarrydale Academy,
Nottinghamshire County Council,1111/1001,Children and Young People,CYP,Third Party Payments,EDA,17/12/2018,11-12970,102446,Yeoman Park Academy,
Nottinghamshire County Council,1111/1001,Children and Young People,CYP,Third Party Payments,EDA,27/12/2018,11-10543,"4,423.00",Rushcliffe School (Spencer Academie,
Nottinghamshire County Council,1111/1001,Children and Young People,CYP,Third Party Payments,EDA,27/12/2018,11-10544,8269,Carlton Le Willows Academy,
Nottinghamshire County Council,1111/1001,Children and Young People,CYP,Third Party Payments,EDA,27/12/2018,11-10545,3462,Kirkby College,
Nottinghamshire County Council,1111/1001,Children and Young People,CYP,Third Party Payments,EDA,27/12/2018,11-10546,2910,Magnus Church of England Academy,
Nottinghamshire County Council,1111/1001,Children and Young People,CYP,Third Party Payments,EDA,27/12/2018,11-10547,3462,Westdale Junior School Academy,
Nottinghamshire County Council,1111/1001,Children and Young People,CYP,Third Party Payments,EDA,27/12/2018,11-10548,3654,Leamington Primary & Nursery Academ,
Nottinghamshire County Council,1111/1001,Children and Young People,CYP,Third Party Payments,EDA,27/12/2018,11-10549,"3,654.00",Dukeries Academy,
Nottinghamshire County Council,1111/1001,Children and Young People,CYP,Third Party Payments,EDA,27/12/2018,11-10550,6884,Tuxford Academy,
Nottinghamshire County Council,1111/1001,Children and Young People,CYP,Third Party Payments,EDA,27/12/2018,11-10560,817.00,Holy Trinity Catholic Voluntary Aca,
Nottinghamshire County Council,1111/1001,Children and Young People,CYP,Third Party Payments,EDA,27/12/2018,11-10561,4615,Joseph Whittaker Academy,
Nottinghamshire County Council,1111/1001,Children and Young People,CYP,Third Party Payments,EDA,27/12/2018,11-10562,5204,Outwood Academy Portland,
Nottinghamshire County Council,1111/1001,Children and Young People,CYP,Third Party Payments,EGA,03/12/2018,11-16729,"23,332.81",Sorteria House (Children In Mind),
Nottinghamshire County Council,1111/1001,Children and Young People,CYP,Third Party Payments,EGA,03/12/2018,11-16730,"13,046.43",Sorteria House (Children In Mind),
Nottinghamshire County Council,1111/1001,Children and Young People,CYP,Third Party Payments,EGA,03/12/2018,11-16731,18857.1,Sorteria House (Children In Mind),
Nottinghamshire County Council,1111/1001,Children and Young People,CYP,Third Party Payments,EGA,03/12/2018,11-16732,"19,485.67",Sorteria House (Children In Mind),
Nottinghamshire County Council,1111/1001,Children and Young People,CYP,Third Party Payments,EGA,03/12/2018,11-16733,"16,828.66",Sorteria House (Children In Mind),
Nottinghamshire County Council,1111/1001,Children and Young People,CYP,Third Party Payments,EGA,03/12/2018,11-16734,31110.73,Sorteria House (Children In Mind),
Nottinghamshire County Council,1111/1001,Children and Young People,CYP,Third Party Payments,EGA,03/12/2018,11-16735,"18,857.10",Sorteria House (Children In Mind),
Nottinghamshire County Council,1111/1001,Children and Young People,CYP,Third Party Payments,EGA,03/12/2018,11-16736,"16,285.80",Sorteria House (Children In Mind),
Nottinghamshire County Council,1111/1001,Children and Young People,CYP,Third Party Payments,EGA,03/12/2018,11-16739,14114.36,Sorteria House (Children In Mind),
Nottinghamshire County Council,1111/1001,Children and Young People,CYP,Third Party Payments,EGA,05/12/2018,11-16741,"861,741.00",Nottinghamshire Healthcare Nhs F Tr,
Nottinghamshire County Council,1111/1001,Children and Young People,CYP,Third Party Payments,EGA,07/12/2018,11-10937,1456,Ashfield Plaza Day Nursery,
Nottinghamshire County Council,1111/1001,Children and Young People,CYP,Third Party Payments,EGA,07/12/2018,11-10938,1207.5,Mini-me Childcare,
Nottinghamshire County Council,1111/1001,Children and Young People,CYP,Third Party Payments,EGA,07/12/2018,11-10939,2135.4,Costock Pre School,
Nottinghamshire County Council,1111/1001,Children and Young People,CYP,Third Party Payments,EGA,07/12/2018,11-10940,883.38,Collingham & District Pre-School,
Nottinghamshire County Council,1111/1001,Children and Young People,CYP,Third Party Payments,EGA,07/12/2018,11-10941,861.30,Claremont Early Years Ltd,
Nottinghamshire County Council,1111/1001,Children and Young People,CYP,Third Party Payments,EGA,07/12/2018,11-10942,611.52,Christchurch Hall Pre-School Playgr,
Nottinghamshire County Council,1111/1001,Children and Young People,CYP,Third Party Payments,EGA,07/12/2018,11-10943,"1,302.08",Childrens House Childcare Ltd,
Nottinghamshire County Council,1111/1001,Children and Young People,CYP,Third Party Payments,EGA,07/12/2018,11-10944,551.64,Children 1st @ Breedon House (Toton,
Nottinghamshire County Council,1111/1001,Children and Young People,CYP,Third Party Payments,EGA,07/12/2018,11-10945,1729.5,Children 1st @ Breedon House (Toton,
Nottinghamshire County Council,1111/1001,Children and Young People,CYP,Third Party Payments,EGA,07/12/2018,11-10946,581.56,Children 1st @ Newark Centre,
Nottinghamshire County Council,1111/1001,Children and Young People,CYP,Third Party Payments,EGA,07/12/2018,11-10947,"4,862.66",Children 1st @ Breedon House (Plumt,
Nottinghamshire County Council,1111/1001,Children and Young People,CYP,Third Party Payments,EGA,07/12/2018,11-10948,1490.28,Cherubs Day Nursery,
Nottinghamshire County Council,1111/1001,Children and Young People,CYP,Third Party Payments,EGA,07/12/2018,11-10949,608.28,Cherubs Ryton Park,
Nottinghamshire County Council,1111/1001,Children and Young People,CYP,Third Party Payments,EGA,07/12/2018,11-10950,"1,162.30",Cheeky Monkeys Day Nursery,
Nottinghamshire County Council,1111/1001,Children and Young People,CYP,Third Party Payments,EGA,07/12/2018,11-10951,873.60,Carousel Under 5'S Playgroup,
Nottinghamshire County Council,1111/1001,Children and Young People,CYP,Third Party Payments,EGA,07/12/2018,11-10952,"3,841.08",Carlton Preschool Playgroup,
Nottinghamshire County Council,1111/1001,Children and Young People,CYP,Third Party Payments,EGA,07/12/2018,11-10953,"3,871.75",Butterflies Nursery (West Notts Col,
Nottinghamshire County Council,1111/1001,Children and Young People,CYP,Third Party Payments,EGA,07/12/2018,11-10954,"1,869.63",Buttercross Pre School,
Nottinghamshire County Council,1111/1001,Children and Young People,CYP,Third Party Payments,EGA,07/12/2018,11-10955,1456,Crossdale Busy Bees Pre-School,
Nottinghamshire County Council,1111/1001,Children and Young People,CYP,Third Party Payments,EGA,07/12/2018,11-10956,797.16,Bullpit Road Nursery,
Nottinghamshire County Council,1111/1001,Children and Young People,CYP,Third Party Payments,EGA,07/12/2018,11-10957,"1,820.70",Bright Stars Childcare,
Nottinghamshire County Council,1111/1001,Children and Young People,CYP,Third Party Payments,EGA,07/12/2018,11-10958,575.1,Pretty Windows Ltd,
Nottinghamshire County Council,1111/1001,Children and Young People,CYP,Third Party Payments,EGA,07/12/2018,11-10960,1799.6,Bizzy Kidz,
Nottinghamshire County Council,1111/1001,Children and Young People,CYP,Third Party Payments,EGA,07/12/2018,11-10961,1742.68,Bircotes Pre-School,
Nottinghamshire County Council,1111/1001,Children and Young People,CYP,Third Party Payments,EGA,07/12/2018,11-10962,548.1,The Cornerhouse Childminding,
Nottinghamshire County Council,1111/1001,Children and Young People,CYP,Third Party Payments,EGA,07/12/2018,11-10963,548.1,[Redacted],
Nottinghamshire County Council,1111/1001,Children and Young People,CYP,Third Party Payments,EGA,07/12/2018,11-10964,1023.36,Balderton Pre-School,
Nottinghamshire County Council,1111/1001,Children and Young People,CYP,Third Party Payments,EGA,07/12/2018,11-10965,1930.8,Awsworth Schoolhouse Day Nursery,
Nottinghamshire County Council,1111/1001,Children and Young People,CYP,Third Party Payments,EGA,07/12/2018,11-10966,"1,800.90",Aunty Sue's Day Care Ltd,
Nottinghamshire County Council,1111/1001,Children and Young People,CYP,Third Party Payments,EGA,07/12/2018,11-10967,873.6,Amanda Birth to 11yrs Childcare,
Nottinghamshire County Council,1111/1001,Children and Young People,CYP,Third Party Payments,EGA,07/12/2018,11-10968,633.78,Arnold St Mary's Pre-School,
Nottinghamshire County Council,1111/1001,Children and Young People,CYP,Third Party Payments,EGA,07/12/2018,11-10969,"4,978.20",Arnold House Day Nursery,
Nottinghamshire County Council,1111/1001,Children and Young People,CYP,Third Party Payments,EGA,07/12/2018,11-10970,"1,054.05",Alphabet House Day Nursery,
Nottinghamshire County Council,1111/1001,Children and Young People,CYP,Third Party Payments,EGA,07/12/2018,11-10971,746.76,Allsorts Playgroup,
Nottinghamshire County Council,1111/1001,Children and Young People,CYP,Third Party Payments,EGA,07/12/2018,11-10972,1320,All Aboard Nursery Ltd,
Nottinghamshire County Council,1111/1001,Children and Young People,CYP,Third Party Payments,EGA,07/12/2018,11-10973,1969.8,[Redacted],
Nottinghamshire County Council,1111/1001,Children and Young People,CYP,Third Party Payments,EGA,07/12/2018,11-10975,"1,576.65",Netherfield Pre School Ltd,
Nottinghamshire County Council,1111/1001,Children and Young People,CYP,Third Party Payments,EGA,07/12/2018,11-10976,"3,288.60",Old Cooperative Day Nursery,
Nottinghamshire County Council,1111/1001,Children and Young People,CYP,Third Party Payments,EGA,07/12/2018,11-10977,"3,724.95",Papermoon Day Nursery,
Nottinghamshire County Council,1111/1001,Children and Young People,CYP,Third Party Payments,EGA,07/12/2018,11-10978,633.70,Papermoon Day Nursery,
Nottinghamshire County Council,1111/1001,Children and Young People,CYP,Third Party Payments,EGA,07/12/2018,11-10979,908.28,Orchard Childminding,
Nottinghamshire County Council,1111/1001,Children and Young People,CYP,Third Party Payments,EGA,07/12/2018,11-10980,1096.2,Penguin Palace Nursery CIC,
Nottinghamshire County Council,1111/1001,Children and Young People,CYP,Third Party Payments,EGA,07/12/2018,11-10981,885.25,Portland Place Pre-School,
Nottinghamshire County Council,1111/1001,Children and Young People,CYP,Third Party Payments,EGA,07/12/2018,11-10982,771.96,Prebend Pre-School Playgroup,
Nottinghamshire County Council,1111/1001,Children and Young People,CYP,Third Party Payments,EGA,07/12/2018,11-10983,2250.8,Pre-School 345,
Nottinghamshire County Council,1111/1001,Children and Young People,CYP,Third Party Payments,EGA,07/12/2018,11-10984,1346.13,Radcliffe On Trent Pre School Playg,
Nottinghamshire County Council,1111/1001,Children and Young People,CYP,Third Party Payments,EGA,07/12/2018,11-10985,811.20,Rainbow Day Nursery,
Nottinghamshire County Council,1111/1001,Children and Young People,CYP,Third Party Payments,EGA,07/12/2018,11-10986,"5,258.40",Rainbows Day Nursery,
Nottinghamshire County Council,1111/1001,Children and Young People,CYP,Third Party Payments,EGA,07/12/2018,11-10987,790.4,Ranskill Nursery,
Nottinghamshire County Council,1111/1001,Children and Young People,CYP,Third Party Payments,EGA,07/12/2018,11-10988,"4,029.00",Ruddington Nursery & Pre-School,
Nottinghamshire County Council,1111/1001,Children and Young People,CYP,Third Party Payments,EGA,07/12/2018,11-10989,667.17,Rushcliffe Pre-School (Nottingham),
Nottinghamshire County Council,1111/1001,Children and Young People,CYP,Third Party Payments,EGA,07/12/2018,11-10991,"1,619.25",Zoes Childcare Ltd,
Nottinghamshire County Council,1111/1001,Children and Young People,CYP,Third Party Payments,EGA,07/12/2018,11-10992,669.76,Woodborough Village Pre School,
Nottinghamshire County Council,1111/1001,Children and Young People,CYP,Third Party Payments,EGA,07/12/2018,11-10993,"1,252.80",Wollaton Village Day Nurseries Ltd.,
Nottinghamshire County Council,1111/1001,Children and Young People,CYP,Third Party Payments,EGA,07/12/2018,11-10994,"3,244.80",Wolds Day Nursery @ Stragglethorpe,
Nottinghamshire County Council,1111/1001,Children and Young People,CYP,Third Party Payments,EGA,07/12/2018,11-10995,790.44,Windmills Childcare,
Nottinghamshire County Council,1111/1001,Children and Young People,CYP,Third Party Payments,EGA,07/12/2018,11-10996,"1,747.20",Willow Brook Pre-School,
Nottinghamshire County Council,1111/1001,Children and Young People,CYP,Third Party Payments,EGA,07/12/2018,11-10997,"1,515.18",Mulberry Bush Day Nursery,
Nottinghamshire County Council,1111/1001,Children and Young People,CYP,Third Party Payments,EGA,07/12/2018,11-10998,2682,Westbourne House Nursery School,
Nottinghamshire County Council,1111/1001,Children and Young People,CYP,Third Party Payments,EGA,07/12/2018,11-10999,861.3,[Redacted],
Nottinghamshire County Council,1111/1001,Children and Young People,CYP,Third Party Payments,EGA,07/12/2018,11-11000,2940.1,Village Day Nursery,
Nottinghamshire County Council,1111/1001,Children and Young People,CYP,Third Party Payments,EGA,07/12/2018,11-11001,2876.22,Treetops Nursery (Clipstone),
Nottinghamshire County Council,1111/1001,Children and Young People,CYP,Third Party Payments,EGA,07/12/2018,11-11002,1846.66,Tollerton Playgroup,
Nottinghamshire County Council,1111/1001,Children and Young People,CYP,Third Party Payments,EGA,07/12/2018,11-11003,"1,348.50",Toddlers University (Bee),
Nottinghamshire County Council,1111/1001,Children and Young People,CYP,Third Party Payments,EGA,07/12/2018,11-11004,562.8,Tiny Talkers Day Nursery,
Nottinghamshire County Council,1111/1001,Children and Young People,CYP,Third Party Payments,EGA,07/12/2018,11-11005,2422.08,Thrumpton Kids Clubs,
Nottinghamshire County Council,1111/1001,Children and Young People,CYP,Third Party Payments,EGA,07/12/2018,11-11006,1969.8,Wolds Childcare Ltd,
Nottinghamshire County Council,1111/1001,Children and Young People,CYP,Third Party Payments,EGA,07/12/2018,11-11007,934.74,The Orange Tree Day Nursery,
Nottinghamshire County Council,1111/1001,Children and Young People,CYP,Third Party Payments,EGA,07/12/2018,11-11008,1470.6,The West Bridgford Day Nursery,
Nottinghamshire County Council,1111/1001,Children and Young People,CYP,Third Party Payments,EGA,07/12/2018,11-11009,1242.36,The Lime Trees Group CIC (HO),
Nottinghamshire County Council,1111/1001,Children and Young People,CYP,Third Party Payments,EGA,07/12/2018,11-11010,1981.08,The Lime Trees Group CIC (HO),
Nottinghamshire County Council,1111/1001,Children and Young People,CYP,Third Party Payments,EGA,07/12/2018,11-11011,1879.46,The Lime Trees Group CIC (HO),
Nottinghamshire County Council,1111/1001,Children and Young People,CYP,Third Party Payments,EGA,07/12/2018,11-11012,2608.5,The Lime Trees Group CIC (HO),
Nottinghamshire County Council,1111/1001,Children and Young People,CYP,Third Party Payments,EGA,07/12/2018,11-11013,699.3,The Learning Tree Day Nursery 2,
Nottinghamshire County Council,1111/1001,Children and Young People,CYP,Third Party Payments,EGA,07/12/2018,11-11014,"2,517.90",The Enchanted Garden Day Nursery,
Nottinghamshire County Council,1111/1001,Children and Young People,CYP,Third Party Payments,EGA,07/12/2018,11-11015,"1,397.76",Wellin Lane Playgroup,
Nottinghamshire County Council,1111/1001,Children and Young People,CYP,Third Party Payments,EGA,07/12/2018,11-11016,"1,638.15",Sutton Centre Under 5'S Playgroup,
Nottinghamshire County Council,1111/1001,Children and Young People,CYP,Third Party Payments,EGA,07/12/2018,11-11017,731.92,St Mary's Pre-School,
Nottinghamshire County Council,1111/1001,Children and Young People,CYP,Third Party Payments,EGA,07/12/2018,11-11018,"1,969.80",St Johns Playgroup,
Nottinghamshire County Council,1111/1001,Children and Young People,CYP,Third Party Payments,EGA,07/12/2018,11-11019,"1,903.80",Stapleford Day Nursery,
Nottinghamshire County Council,1111/1001,Children and Young People,CYP,Third Party Payments,EGA,07/12/2018,11-11020,"1,148.16",St Giles Pre-school,
Nottinghamshire County Council,1111/1001,Children and Young People,CYP,Third Party Payments,EGA,07/12/2018,11-11021,4222.76,Smarties Private Day Nursery,
Nottinghamshire County Council,1111/1001,Children and Young People,CYP,Third Party Payments,EGA,07/12/2018,11-11022,"1,362.90",Shaping Futures Day Nursery,
Nottinghamshire County Council,1111/1001,Children and Young People,CYP,Third Party Payments,EGA,07/12/2018,11-11023,1969.8,Serendipity's Day Nursery,
Nottinghamshire County Council,1111/1001,Children and Young People,CYP,Third Party Payments,EGA,07/12/2018,11-11024,"1,949.10",Serendipity's Day Nursery,
Nottinghamshire County Council,1111/1001,Children and Young People,CYP,Third Party Payments,EGA,07/12/2018,11-11025,1769.5,Serendipity's Day Nursery,
Nottinghamshire County Council,1111/1001,Children and Young People,CYP,Third Party Payments,EGA,07/12/2018,11-11026,1348.8,Secret Garden Childcare Ltd,
Nottinghamshire County Council,1111/1001,Children and Young People,CYP,Third Party Payments,EGA,07/12/2018,11-11027,"1,310.40",Scotts Wood Private Day Nursery,
Nottinghamshire County Council,1111/1001,Children and Young People,CYP,Third Party Payments,EGA,07/12/2018,11-11028,704.70,Scottswood Pdn Ltd,
Nottinghamshire County Council,1111/1001,Children and Young People,CYP,Third Party Payments,EGA,07/12/2018,11-11029,1617.37,Willow Childcare & Training Ltd,
Nottinghamshire County Council,1111/1001,Children and Young People,CYP,Third Party Payments,EGA,07/12/2018,11-11030,"1,622.40",Saville House School,
Nottinghamshire County Council,1111/1001,Children and Young People,CYP,Third Party Payments,EGA,07/12/2018,11-11031,2954.7,Safe Haven Day Nursery,
Nottinghamshire County Council,1111/1001,Children and Young People,CYP,Third Party Payments,EGA,07/12/2018,11-11032,3392.7,The Rocking Horse Child Care Centre,
Nottinghamshire County Council,1111/1001,Children and Young People,CYP,Third Party Payments,EGA,07/12/2018,11-11033,753.9,PSLA Newstead Childcare (HO),
Nottinghamshire County Council,1111/1001,Children and Young People,CYP,Third Party Payments,EGA,07/12/2018,11-11034,1636.92,PSLA Newstead Childcare (HO),
Nottinghamshire County Council,1111/1001,Children and Young People,CYP,Third Party Payments,EGA,10/12/2018,11-11221,"1,096.20",Gognas Day Nursery Ltd,
Nottinghamshire County Council,1111/1001,Children and Young People,CYP,Third Party Payments,EGA,10/12/2018,11-11222,2009.46,Hollies Day Nurseries,
Nottinghamshire County Council,1111/1001,Children and Young People,CYP,Third Party Payments,EGA,10/12/2018,11-11223,1504.22,Hollies Day Nurseries Limited,
Nottinghamshire County Council,1111/1001,Children and Young People,CYP,Third Party Payments,EGA,10/12/2018,11-11224,783.61,Hollies Day Nursery (Loughborough R,
Nottinghamshire County Council,1111/1001,Children and Young People,CYP,Third Party Payments,EGA,10/12/2018,11-11225,873.60,Horsendale Playgroup,
Nottinghamshire County Council,1111/1001,Children and Young People,CYP,Third Party Payments,EGA,10/12/2018,11-11226,"1,059.78",Hucknall Pre-School Playgroup,
Nottinghamshire County Council,1111/1001,Children and Young People,CYP,Third Party Payments,EGA,10/12/2018,11-11227,894.3,Jelly Beans Day Nursery Ltd,
Nottinghamshire County Council,1111/1001,Children and Young People,CYP,Third Party Payments,EGA,10/12/2018,11-11228,1030.2,[Redacted],
Nottinghamshire County Council,1111/1001,Children and Young People,CYP,Third Party Payments,EGA,10/12/2018,11-11229,"1,872.45",Fun Farm Day Nursery,
Nottinghamshire County Council,1111/1001,Children and Young People,CYP,Third Party Payments,EGA,10/12/2018,11-11230,666,PSLA Newstead Childcare (HO),
Nottinghamshire County Council,1111/1001,Children and Young People,CYP,Third Party Payments,EGA,10/12/2018,11-11231,803.88,PSLA Newstead Childcare (HO),
Nottinghamshire County Council,1111/1001,Children and Young People,CYP,Third Party Payments,EGA,10/12/2018,11-11232,846.74,Creative Hands Childcare,
Nottinghamshire County Council,1111/1001,Children and Young People,CYP,Third Party Payments,EGA,10/12/2018,11-11233,846.6,Daisies Day Nursery,
Nottinghamshire County Council,1111/1001,Children and Young People,CYP,Third Party Payments,EGA,10/12/2018,11-11234,1863.13,East Leake Pre-School Playgroup,
Nottinghamshire County Council,1111/1001,Children and Young People,CYP,Third Party Payments,EGA,10/12/2018,11-11235,"1,365.36",Farnsfield Pre-School,
Nottinghamshire County Council,1111/1001,Children and Young People,CYP,Third Party Payments,EGA,10/12/2018,11-11236,2185.68,Fledglings Playgroup,
Nottinghamshire County Council,1111/1001,Children and Young People,CYP,Third Party Payments,EGA,10/12/2018,11-11237,721.80,Granby House Nursery,
Nottinghamshire County Council,1111/1001,Children and Young People,CYP,Third Party Payments,EGA,10/12/2018,11-11238,1096.2,[Redacted],
Nottinghamshire County Council,1111/1001,Children and Young People,CYP,Third Party Payments,EGA,10/12/2018,11-11239,592.06,Haywood Road Pre-School Playgroup,
Nottinghamshire County Council,1111/1001,Children and Young People,CYP,Third Party Payments,EGA,10/12/2018,11-11240,873.60,Kidzgrove,
Nottinghamshire County Council,1111/1001,Children and Young People,CYP,Third Party Payments,EGA,10/12/2018,11-11241,"2,152.53",Killisick Pre-School,
Nottinghamshire County Council,1111/1001,Children and Young People,CYP,Third Party Payments,EGA,10/12/2018,11-11242,1443.81,Kimberley Pre-School Playgroup,
Nottinghamshire County Council,1111/1001,Children and Young People,CYP,Third Party Payments,EGA,10/12/2018,11-11243,582.40,Lady Bay Pre School Playgroup,
Nottinghamshire County Council,1111/1001,Children and Young People,CYP,Third Party Payments,EGA,10/12/2018,11-11244,"2,069.20",Leen Mills Pre School Playgroup,
Nottinghamshire County Council,1111/1001,Children and Young People,CYP,Third Party Payments,EGA,10/12/2018,11-11245,1096.2,Lime Trees Day Nursery Ltd (Carlton,
Nottinghamshire County Council,1111/1001,Children and Young People,CYP,Third Party Payments,EGA,10/12/2018,11-11246,540.80,Little Acorns Shireoaks,
Nottinghamshire County Council,1111/1001,Children and Young People,CYP,Third Party Payments,EGA,10/12/2018,11-11247,"1,186.82",Little Adventures Forest School Ltd,
Nottinghamshire County Council,1111/1001,Children and Young People,CYP,Third Party Payments,EGA,10/12/2018,11-11248,1456,Little Friends Day Nursery,
Nottinghamshire County Council,1111/1001,Children and Young People,CYP,Third Party Payments,EGA,10/12/2018,11-11249,"1,213.80",Little Kites Playgroup,
Nottinghamshire County Council,1111/1001,Children and Young People,CYP,Third Party Payments,EGA,10/12/2018,11-11250,6191.64,Little Lambs Day Nursery,
Nottinghamshire County Council,1111/1001,Children and Young People,CYP,Third Party Payments,EGA,10/12/2018,11-11251,797.22,Little Baths Ltd T/A Little PLums D,
Nottinghamshire County Council,1111/1001,Children and Young People,CYP,Third Party Payments,EGA,10/12/2018,11-11252,1311.88,Longdale Nursery School,
Nottinghamshire County Council,1111/1001,Children and Young People,CYP,Third Party Payments,EGA,10/12/2018,11-11253,1946,Luan's Little People Ltd,
Nottinghamshire County Council,1111/1001,Children and Young People,CYP,Third Party Payments,EGA,10/12/2018,11-11254,"10,648.95",Busy Bees (Daybrook),
Nottinghamshire County Council,1111/1001,Children and Young People,CYP,Third Party Payments,EGA,10/12/2018,11-11255,563.76,Cranmer Pre-School,
Nottinghamshire County Council,1111/1001,Children and Young People,CYP,Third Party Payments,EGA,10/12/2018,11-11256,615.00,PSLA Newstead Childcare (HO),
Nottinghamshire County Council,1111/1001,Children and Young People,CYP,Third Party Payments,EGA,10/12/2018,11-11257,1096.2,Townrow Tiny Tots Day Nursery Ltd,
Nottinghamshire County Council,1111/1001,Children and Young People,CYP,Third Party Payments,EGA,10/12/2018,11-11258,548.1,Townrow Tiny Tots Day Nursery Ltd,
Nottinghamshire County Council,1111/1001,Children and Young People,CYP,Third Party Payments,EGA,10/12/2018,11-11259,"1,660.15",Learning Ladder Childcare Ltd,
Nottinghamshire County Council,1111/1001,Children and Young People,CYP,Third Party Payments,EGA,12/12/2018,11-16759,"23,368.42","Culture, Learning & Libraries (Midl",
Nottinghamshire County Council,1111/1001,Children and Young People,CYP,Third Party Payments,EGA,13/12/2018,11-12872,13800,Residential Outreach Care Northwest,
Nottinghamshire County Council,1111/1001,Children and Young People,CYP,Third Party Payments,EGA,13/12/2018,11-12928,883.96,Framework Housing Association,
Nottinghamshire County Council,1111/1001,Children and Young People,CYP,Third Party Payments,EGA,13/12/2018,11-12930,"1,020.88",Framework Housing Association,
Nottinghamshire County Council,1111/1001,Children and Young People,CYP,Third Party Payments,EGA,14/12/2018,11-12931,615.00,Brooklyn Day Nursery,
Nottinghamshire County Council,1111/1001,Children and Young People,CYP,Third Party Payments,EGA,14/12/2018,11-12932,548.10,The Lime Trees Group CIC (HO),
Nottinghamshire County Council,1111/1001,Children and Young People,CYP,Third Party Payments,EGA,14/12/2018,11-12933,626.40,[Redacted],
Nottinghamshire County Council,1111/1001,Children and Young People,CYP,Third Party Payments,EGA,14/12/2018,11-12934,965.62,Hollies Day Nurseries,
Nottinghamshire County Council,1111/1001,Children and Young People,CYP,Third Party Payments,EGA,14/12/2018,11-12935,14000.22,Tiny Tots Playgroup,
Nottinghamshire County Council,1111/1001,Children and Young People,CYP,Third Party Payments,EGA,14/12/2018,11-12936,3680.1,Luan's Little People Ltd,
Nottinghamshire County Council,1111/1001,Children and Young People,CYP,Third Party Payments,EGA,18/12/2018,11-13149,"1,969.80",Vicky-Louise Odams Childminding Ser,
Nottinghamshire County Council,1111/1001,Children and Young People,CYP,Third Party Payments,EGA,18/12/2018,11-13150,560,Lime Trees Day Nursery Ltd (Carlton,
Nottinghamshire County Council,1111/1001,Children and Young People,CYP,Third Party Payments,EGA,18/12/2018,11-13151,560,Attenborough Day Nursery & Pre-Sch,
Nottinghamshire County Council,1111/1001,Children and Young People,CYP,Third Party Payments,EGA,18/12/2018,11-13152,560,The Lime Trees Group CIC (HO),
Nottinghamshire County Council,1111/1001,Children and Young People,CYP,Third Party Payments,EGA,18/12/2018,11-13153,560,Hollies Day Nursery (Loughborough R,
Nottinghamshire County Council,1111/1001,Children and Young People,CYP,Transfer Payments,GAA,05/12/2018,11-16721,2090,[Redacted],
Nottinghamshire County Council,1111/1001,Children and Young People,CYP,Transfer Payments,GAA,05/12/2018,11-16740,550,[Redacted],
Nottinghamshire County Council,1111/1001,Children and Young People,CYP,Support Services,HAA,06/12/2018,11-10720,760,Nottingham Minibuses & Coaches,
Nottinghamshire County Council,1111/1001,Children and Young People,CYP,Support Services,HAA,07/12/2018,11-10815,"1,961.50",Dunn Motor Traction Ltd,
Nottinghamshire County Council,1111/1001,Children and Young People,CYP,Support Services,HAA,07/12/2018,11-10835,2245,Nottingham Coaches,
Nottinghamshire County Council,1111/1001,Children and Young People,CYP,Support Services,HAA,07/12/2018,11-10848,720,Shiny Sky Ltd T/A A2b Cars,
Nottinghamshire County Council,1111/1001,Children and Young People,CYP,Support Services,HAA,07/12/2018,11-10853,1541.05,Nunns Taxis Ltd,
Nottinghamshire County Council,1111/1001,Children and Young People,CYP,Support Services,HAA,10/12/2018,11-11436,"5,500.00",Stagecoach Services Ltd,
Nottinghamshire County Council,1111/1001,Children and Young People,CYP,Support Services,HAA,10/12/2018,11-11457,"3,420.00",CT4N Ltd,
Nottinghamshire County Council,1111/1001,Adult Social Care and Health,ASCH,Premises Related,BAA,05/12/2018,11-10529,573.00,Groundwork Creswell Ashf & Mansf,
Nottinghamshire County Council,1111/1001,Adult Social Care and Health,ASCH,Premises Related,BAA,05/12/2018,11-10530,1088.75,Heating & Process Eng Serv Ltd,
Nottinghamshire County Council,1111/1001,Adult Social Care and Health,ASCH,Premises Related,BAA,05/12/2018,11-10531,1535,Heating & Process Eng Serv Ltd,
Nottinghamshire County Council,1111/1001,Adult Social Care and Health,ASCH,Premises Related,BAA,05/12/2018,11-10532,1542.5,TMM & Building Ltd,
Nottinghamshire County Council,1111/1001,Adult Social Care and Health,ASCH,Premises Related,BAA,07/12/2018,11-10886,14595.52,ARC Property Services Partnership L,
Nottinghamshire County Council,1111/1001,Adult Social Care and Health,ASCH,Premises Related,BAA,07/12/2018,11-10894,42.21,ARC Property Services Partnership L,
Nottinghamshire County Council,1111/1001,Adult Social Care and Health,ASCH,Premises Related,BAA,07/12/2018,11-10897,"3,323.07",ARC Property Services Partnership L,
Nottinghamshire County Council,1111/1001,Adult Social Care and Health,ASCH,Premises Related,BAA,10/12/2018,11-11260,535.00,Sues Maintenance Services Ltd,
Nottinghamshire County Council,1111/1001,Adult Social Care and Health,ASCH,Premises Related,BAA,10/12/2018,11-11261,555.00,Harveys Home & Garden Maintenance,
Nottinghamshire County Council,1111/1001,Adult Social Care and Health,ASCH,Premises Related,BAA,18/12/2018,11-13155,313.8,ARC Property Services Partnership L,
Nottinghamshire County Council,1111/1001,Adult Social Care and Health,ASCH,Premises Related,BAA,18/12/2018,11-13159,4492.42,ARC Property Services Partnership L,
Nottinghamshire County Council,1111/1001,Adult Social Care and Health,ASCH,Premises Related,BAA,19/12/2018,11-13194,"4,327.10",ARC Property Services Partnership L,
Nottinghamshire County Council,1111/1001,Adult Social Care and Health,ASCH,Premises Related,BAA,20/12/2018,11-13209,646.50,C Tupling Joinery,
Nottinghamshire County Council,1111/1001,Adult Social Care and Health,ASCH,Premises Related,BAA,21/12/2018,11-13284,539,Pgs Joinery Services Ltd,
Nottinghamshire County Council,1111/1001,Adult Social Care and Health,ASCH,Premises Related,BAA,27/12/2018,11-16127,567.50,Groundwork Creswell Ashf & Mansf,
Nottinghamshire County Council,1111/1001,Adult Social Care and Health,ASCH,Premises Related,BAA,31/12/2018,11-12969,877.5,Newark & Sherwood Homes Ltd,
Nottinghamshire County Council,1111/1001,Adult Social Care and Health,ASCH,Premises Related,BAA,31/12/2018,11-16720,983.75,Newark & Sherwood Homes Ltd,
Nottinghamshire County Council,1111/1001,Adult Social Care and Health,ASCH,Premises Related,BJA,21/12/2018,11-13281,"1,873.30",Bassetlaw District Council,
Nottinghamshire County Council,1111/1001,Adult Social Care and Health,ASCH,Transport Related,CAA,10/12/2018,11-11214,2740.91,Via East Midlands Ltd,
Nottinghamshire County Council,1111/1001,Adult Social Care and Health,ASCH,Transport Related,CAA,12/12/2018,11-12597,"1,103.91",Via East Midlands Ltd,
Nottinghamshire County Council,1111/1001,Adult Social Care and Health,ASCH,Transport Related,CAA,17/12/2018,11-12960,6107.28,Via East Midlands Ltd,
Nottinghamshire County Council,1111/1001,Adult Social Care and Health,ASCH,Transport Related,CAA,21/12/2018,11-13277,4180.18,Via East Midlands Ltd,
Nottinghamshire County Council,1111/1001,Adult Social Care and Health,ASCH,Transport Related,CBA,06/12/2018,11-10682,3803.14,Vallances Coaches,
Nottinghamshire County Council,1111/1001,Adult Social Care and Health,ASCH,Transport Related,CBA,06/12/2018,11-10722,"2,644.18",Aj Travel,
Nottinghamshire County Council,1111/1001,Adult Social Care and Health,ASCH,Transport Related,CBA,07/12/2018,11-10757,"3,620.40",Johnson Bros Tours Ltd,
Nottinghamshire County Council,1111/1001,Adult Social Care and Health,ASCH,Transport Related,CBA,10/12/2018,11-11451,2805.22,Community Transport for Town & Coun,
Nottinghamshire County Council,1111/1001,Adult Social Care and Health,ASCH,Transport Related,CBA,10/12/2018,11-11452,3366.44,Community Transport for Town & Coun,
Nottinghamshire County Council,1111/1001,Adult Social Care and Health,ASCH,Transport Related,CBA,12/12/2018,11-12589,4774,Via East Midlands Ltd,
Nottinghamshire County Council,1111/1001,Adult Social Care and Health,ASCH,Transport Related,CBA,17/12/2018,11-12949,378.53,Via East Midlands Ltd,
Nottinghamshire County Council,1111/1001,Adult Social Care and Health,ASCH,Transport Related,CBA,21/12/2018,11-13269,1136.07,Via East Midlands Ltd,
Nottinghamshire County Council,1111/1001,Adult Social Care and Health,ASCH,Transport Related,CCA,06/12/2018,11-10633,2413.18,Arrow Specialised Transport Ltd,
Nottinghamshire County Council,1111/1001,Adult Social Care and Health,ASCH,Transport Related,CCA,10/12/2018,11-11466,"1,131.20",SM Travel Yorkshire Ltd,
Nottinghamshire County Council,1111/1001,Adult Social Care and Health,ASCH,Transport Related,CCA,17/12/2018,11-12949,1216.84,Via East Midlands Ltd,
Nottinghamshire County Council,1111/1001,Adult Social Care and Health,ASCH,Transport Related,CCA,21/12/2018,11-13269,496.29,Via East Midlands Ltd,
Nottinghamshire County Council,1111/1001,Adult Social Care and Health,ASCH,Transport Related,CDA,05/12/2018,11-10499,4300,Bridges Transport Ltd,
Nottinghamshire County Council,1111/1001,Adult Social Care and Health,ASCH,Transport Related,CDA,05/12/2018,11-10500,900,Bridges Transport Ltd,
Nottinghamshire County Council,1111/1001,Adult Social Care and Health,ASCH,Transport Related,CDA,05/12/2018,11-10502,3352.36,Bridges Transport Ltd,
Nottinghamshire County Council,1111/1001,Adult Social Care and Health,ASCH,Transport Related,CDA,05/12/2018,11-10507,"1,071.00",Galaxy Cabs Ltd,
Nottinghamshire County Council,1111/1001,Adult Social Care and Health,ASCH,Transport Related,CDA,05/12/2018,11-10513,"2,395.36",Hawkins Taxis & Transport,
Nottinghamshire County Council,1111/1001,Adult Social Care and Health,ASCH,Transport Related,CDA,05/12/2018,11-10526,2417.07,[Redacted],
Nottinghamshire County Council,1111/1001,Adult Social Care and Health,ASCH,Transport Related,CDA,06/12/2018,11-10583,2444.2,Taxicover Uk Ltd,
Nottinghamshire County Council,1111/1001,Adult Social Care and Health,ASCH,Transport Related,CDA,06/12/2018,11-10645,291.64,Arrow Specialised Transport Ltd,
Nottinghamshire County Council,1111/1001,Adult Social Care and Health,ASCH,Transport Related,CDA,06/12/2018,11-10652,"2,533.08",Arrow Specialised Transport Ltd,
Nottinghamshire County Council,1111/1001,Adult Social Care and Health,ASCH,Transport Related,CDA,06/12/2018,11-10665,"1,250.52",Bridges Transport Ltd,
Nottinghamshire County Council,1111/1001,Adult Social Care and Health,ASCH,Transport Related,CDA,06/12/2018,11-10674,2296.8,Bridges Transport Ltd,
Nottinghamshire County Council,1111/1001,Adult Social Care and Health,ASCH,Transport Related,CDA,06/12/2018,11-10739,"1,395.56",In Taxis,
Nottinghamshire County Council,1111/1001,Adult Social Care and Health,ASCH,Transport Related,CDA,07/12/2018,11-10759,630,Acorn Contracts,
Nottinghamshire County Council,1111/1001,Adult Social Care and Health,ASCH,Transport Related,CDA,07/12/2018,11-10760,1131.2,Acorn Contracts,
Nottinghamshire County Council,1111/1001,Adult Social Care and Health,ASCH,Transport Related,CDA,07/12/2018,11-10764,1636.18,Alpha Cars,
Nottinghamshire County Council,1111/1001,Adult Social Care and Health,ASCH,Transport Related,CDA,07/12/2018,11-10765,"1,373.60",Alpha Cars,
Nottinghamshire County Council,1111/1001,Adult Social Care and Health,ASCH,Transport Related,CDA,07/12/2018,11-10777,1387.1,Bridges Transport Ltd,
Nottinghamshire County Council,1111/1001,Adult Social Care and Health,ASCH,Transport Related,CDA,07/12/2018,11-10781,686.80,Ng11 Cars,
Nottinghamshire County Council,1111/1001,Adult Social Care and Health,ASCH,Transport Related,CDA,07/12/2018,11-10783,"1,260.00",Ng11 Cars,
Nottinghamshire County Council,1111/1001,Adult Social Care and Health,ASCH,Transport Related,CDA,07/12/2018,11-10784,"1,371.19",Beechwood Taxis,
Nottinghamshire County Council,1111/1001,Adult Social Care and Health,ASCH,Transport Related,CDA,07/12/2018,11-10801,"3,096.94",P & P Taxis,
Nottinghamshire County Council,1111/1001,Adult Social Care and Health,ASCH,Transport Related,CDA,07/12/2018,11-10803,723.32,P & P Taxis,
Nottinghamshire County Council,1111/1001,Adult Social Care and Health,ASCH,Transport Related,CDA,07/12/2018,11-10829,2311.98,[Redacted],
Nottinghamshire County Council,1111/1001,Adult Social Care and Health,ASCH,Transport Related,CDA,07/12/2018,11-10836,784.80,Eastwood Cars (UK) Ltd,
Nottinghamshire County Council,1111/1001,Adult Social Care and Health,ASCH,Transport Related,CDA,07/12/2018,11-10845,956.5,Shiny Sky Ltd T/A A2b Cars,
Nottinghamshire County Council,1111/1001,Adult Social Care and Health,ASCH,Transport Related,CDA,07/12/2018,11-10846,564.90,Shiny Sky Ltd T/A A2b Cars,
Nottinghamshire County Council,1111/1001,Adult Social Care and Health,ASCH,Transport Related,CDA,07/12/2018,11-10849,789.82,Ideal Cars (Private Hire) Ltd,
Nottinghamshire County Council,1111/1001,Adult Social Care and Health,ASCH,Transport Related,CDA,07/12/2018,11-10855,"1,500.00",Abacus Taxi & Courier Services,
Nottinghamshire County Council,1111/1001,Adult Social Care and Health,ASCH,Transport Related,CDA,07/12/2018,11-10868,239.50,Forest Cars,
Nottinghamshire County Council,1111/1001,Adult Social Care and Health,ASCH,Transport Related,CDA,10/12/2018,11-11036,798,Southside Cars,
Nottinghamshire County Council,1111/1001,Adult Social Care and Health,ASCH,Transport Related,CDA,10/12/2018,11-11045,1090,Southside Cars,
Nottinghamshire County Council,1111/1001,Adult Social Care and Health,ASCH,Transport Related,CDA,10/12/2018,11-11061,960,200 Cars Ltd,
Nottinghamshire County Council,1111/1001,Adult Social Care and Health,ASCH,Transport Related,CDA,10/12/2018,11-11065,381.94,F4Control Ltd (t/a First4care),
Nottinghamshire County Council,1111/1001,Adult Social Care and Health,ASCH,Transport Related,CDA,10/12/2018,11-11070,2593.8,F4Control Ltd (t/a First4care),
Nottinghamshire County Council,1111/1001,Adult Social Care and Health,ASCH,Transport Related,CDA,10/12/2018,11-11081,408.20,F4Control Ltd (t/a First4care),
Nottinghamshire County Council,1111/1001,Adult Social Care and Health,ASCH,Transport Related,CDA,10/12/2018,11-11087,729.96,BN Gibson Ltd,
Nottinghamshire County Council,1111/1001,Adult Social Care and Health,ASCH,Transport Related,CDA,10/12/2018,11-11130,186.41,BN Gibson Ltd,
Nottinghamshire County Council,1111/1001,Adult Social Care and Health,ASCH,Transport Related,CDA,10/12/2018,11-11132,3382,BN Gibson Ltd,
Nottinghamshire County Council,1111/1001,Adult Social Care and Health,ASCH,Transport Related,CDA,10/12/2018,11-11136,"4,265.80",BN Gibson Ltd,
Nottinghamshire County Council,1111/1001,Adult Social Care and Health,ASCH,Transport Related,CDA,10/12/2018,11-11183,2180,AAA Cabs,
Nottinghamshire County Council,1111/1001,Adult Social Care and Health,ASCH,Transport Related,CDA,10/12/2018,11-11195,"1,606.50",Nottingham Cars Ltd,
Nottinghamshire County Council,1111/1001,Adult Social Care and Health,ASCH,Transport Related,CDA,10/12/2018,11-11373,595.98,Alert Cars Ltd,
Nottinghamshire County Council,1111/1001,Adult Social Care and Health,ASCH,Transport Related,CDA,10/12/2018,11-11375,1860.1,F4Control Ltd (t/a First4care),
Nottinghamshire County Council,1111/1001,Adult Social Care and Health,ASCH,Transport Related,CDA,10/12/2018,11-11379,517.24,Ace Of Mansfield Ltd,
Nottinghamshire County Council,1111/1001,Adult Social Care and Health,ASCH,Transport Related,CDA,10/12/2018,11-11381,736.32,Ace Of Mansfield Ltd,
Nottinghamshire County Council,1111/1001,Adult Social Care and Health,ASCH,Transport Related,CDA,10/12/2018,11-11398,1575.54,F4Control Ltd (t/a First4care),
Nottinghamshire County Council,1111/1001,Adult Social Care and Health,ASCH,Transport Related,CDA,10/12/2018,11-11403,"1,066.35",F4Control Ltd (t/a First4care),
Nottinghamshire County Council,1111/1001,Adult Social Care and Health,ASCH,Transport Related,CDA,10/12/2018,11-11405,1923.54,F4Control Ltd (t/a First4care),
Nottinghamshire County Council,1111/1001,Adult Social Care and Health,ASCH,Transport Related,CDA,10/12/2018,11-11409,"1,262.50",Abacus Cars,
Nottinghamshire County Council,1111/1001,Adult Social Care and Health,ASCH,Transport Related,CDA,10/12/2018,11-11410,550.92,Abacus Cars,
Nottinghamshire County Council,1111/1001,Adult Social Care and Health,ASCH,Transport Related,CDA,10/12/2018,11-11411,686.16,Abacus Cars,
Nottinghamshire County Council,1111/1001,Adult Social Care and Health,ASCH,Transport Related,CDA,10/12/2018,11-11412,2100,Abacus Cars,
Nottinghamshire County Council,1111/1001,Adult Social Care and Health,ASCH,Transport Related,CDA,10/12/2018,11-11413,975.52,Abacus Cars,
Nottinghamshire County Council,1111/1001,Adult Social Care and Health,ASCH,Transport Related,CDA,10/12/2018,11-11415,"1,454.40",Abacus Cars,
Nottinghamshire County Council,1111/1001,Adult Social Care and Health,ASCH,Transport Related,CDA,10/12/2018,11-11416,617.40,Abacus Cars,
Nottinghamshire County Council,1111/1001,Adult Social Care and Health,ASCH,Transport Related,CDA,10/12/2018,11-11417,"2,970.00",Abacus Cars,
Nottinghamshire County Council,1111/1001,Adult Social Care and Health,ASCH,Transport Related,CDA,10/12/2018,11-11420,798.40,Abacus Cars,
Nottinghamshire County Council,1111/1001,Adult Social Care and Health,ASCH,Transport Related,CDA,10/12/2018,11-11430,650,Abacus Cars,
Nottinghamshire County Council,1111/1001,Adult Social Care and Health,ASCH,Transport Related,CDA,10/12/2018,11-11466,"1,131.20",SM Travel Yorkshire Ltd,
Nottinghamshire County Council,1111/1001,Adult Social Care and Health,ASCH,Transport Related,CDA,11/12/2018,11-12557,1870,F4Control Ltd (t/a First4care),
Nottinghamshire County Council,1111/1001,Adult Social Care and Health,ASCH,Transport Related,CDA,11/12/2018,11-12558,"1,805.62",Fozcabs Newark Taxis,
Nottinghamshire County Council,1111/1001,Adult Social Care and Health,ASCH,Transport Related,CDA,11/12/2018,11-12559,1200,Fozcabs Newark Taxis,
Nottinghamshire County Council,1111/1001,Adult Social Care and Health,ASCH,Transport Related,CDA,11/12/2018,11-12560,1407.42,Carlton Cars Ltd T/A Trent Cars,
Nottinghamshire County Council,1111/1001,Adult Social Care and Health,ASCH,Transport Related,CDA,11/12/2018,11-12561,"3,015.76",F4Control Ltd (t/a First4care),
Nottinghamshire County Council,1111/1001,Adult Social Care and Health,ASCH,Transport Related,CDA,11/12/2018,11-12562,2236.22,F4Control Ltd (t/a First4care),
Nottinghamshire County Council,1111/1001,Adult Social Care and Health,ASCH,Transport Related,CDA,11/12/2018,11-12563,"1,037.60",D G Private Hire Ltd,
Nottinghamshire County Council,1111/1001,Adult Social Care and Health,ASCH,Transport Related,CDA,11/12/2018,11-12564,665,D G Private Hire Ltd,
Nottinghamshire County Council,1111/1001,Adult Social Care and Health,ASCH,Transport Related,CDA,11/12/2018,11-12566,612,D G Private Hire Ltd,
Nottinghamshire County Council,1111/1001,Adult Social Care and Health,ASCH,Transport Related,CDA,11/12/2018,11-12578,598.00,Ace Cars,
Nottinghamshire County Council,1111/1001,Adult Social Care and Health,ASCH,Transport Related,CDA,11/12/2018,11-12581,681.92,D G Private Hire Ltd,
Nottinghamshire County Council,1111/1001,Adult Social Care and Health,ASCH,Transport Related,CDA,13/12/2018,11-12876,630.5,Alpha Cars,
Nottinghamshire County Council,1111/1001,Adult Social Care and Health,ASCH,Transport Related,CDA,13/12/2018,11-12915,1703.84,Abacus Cars,
Nottinghamshire County Council,1111/1001,Adult Social Care and Health,ASCH,Transport Related,CDA,13/12/2018,11-12916,2579.62,Abacus Cars,
Nottinghamshire County Council,1111/1001,Adult Social Care and Health,ASCH,Transport Related,CDA,13/12/2018,11-12918,722,Nunns Taxis Ltd,
Nottinghamshire County Council,1111/1001,Adult Social Care and Health,ASCH,Transport Related,CDA,20/12/2018,11-13210,633.54,Alert Cars Ltd,
Nottinghamshire County Council,1111/1001,Adult Social Care and Health,ASCH,Transport Related,CDA,20/12/2018,11-13224,1206.7,Acorn Contracts,
Nottinghamshire County Council,1111/1001,Adult Social Care and Health,ASCH,Transport Related,CDA,20/12/2018,11-13227,1132.38,Shelleys Taxis Ltd,
Nottinghamshire County Council,1111/1001,Adult Social Care and Health,ASCH,Transport Related,CDA,20/12/2018,11-13231,4080.12,BN Gibson Ltd,
Nottinghamshire County Council,1111/1001,Adult Social Care and Health,ASCH,Transport Related,CDA,20/12/2018,11-13233,"3,501.08",Abacus Cars,
Nottinghamshire County Council,1111/1001,Adult Social Care and Health,ASCH,Transport Related,CDA,20/12/2018,11-13255,565.20,Cable Cars Taxis Nottm Ltd,
Nottinghamshire County Council,1111/1001,Adult Social Care and Health,ASCH,Transport Related,CDA,20/12/2018,11-13257,"3,630.00",Ace Cars,
Nottinghamshire County Council,1111/1001,Adult Social Care and Health,ASCH,Transport Related,CDA,20/12/2018,11-13262,2065.5,Nottingham Cars Ltd,
Nottinghamshire County Council,1111/1001,Adult Social Care and Health,ASCH,Transport Related,CEA,12/12/2018,11-12610,177.93,Reed Employment Plc,
Nottinghamshire County Council,1111/1001,Adult Social Care and Health,ASCH,Transport Related,CEA,14/12/2018,11-12606,115.47,Reed Employment Plc,
Nottinghamshire County Council,1111/1001,Adult Social Care and Health,ASCH,Transport Related,CEA,17/12/2018,11-12949,9048.53,Via East Midlands Ltd,
Nottinghamshire County Council,1111/1001,Adult Social Care and Health,ASCH,Transport Related,CEA,21/12/2018,11-13269,255.09,Via East Midlands Ltd,
Nottinghamshire County Council,1111/1001,Adult Social Care and Health,ASCH,Supplies & Services,DBA,27/12/2018,11-10537,112.09,On A Roll Sandwich Company,
Nottinghamshire County Council,1111/1001,Adult Social Care and Health,ASCH,Third Party Payments,EBA,05/12/2018,11-16723,"21,459.20",Comfort Call Ltd,
Nottinghamshire County Council,1111/1001,Adult Social Care and Health,ASCH,Third Party Payments,EBA,27/12/2018,11-16410,"4,986.60",Framework Housing Association,
Nottinghamshire County Council,1111/1001,Adult Social Care and Health,ASCH,Third Party Payments,ECA,05/12/2018,11-10040,26623,NHS Newark & Sherwood CCG,
Nottinghamshire County Council,1111/1001,Adult Social Care and Health,ASCH,Third Party Payments,ECA,05/12/2018,11-10041,43173,Mansfield & Ashfield CCG,
Nottinghamshire County Council,1111/1001,Adult Social Care and Health,ASCH,Third Party Payments,ECA,18/12/2018,11-13169,"3,882.49",NHS Rushcliffe CCG,
Nottinghamshire County Council,1111/1001,Adult Social Care and Health,ASCH,Third Party Payments,ECA,18/12/2018,11-13170,"12,977.30",NHS Rushcliffe CCG,
Nottinghamshire County Council,1111/1001,Adult Social Care and Health,ASCH,Third Party Payments,ECA,27/12/2018,11-16302,19843.43,NHS Rushcliffe CCG,
Nottinghamshire County Council,1111/1001,Adult Social Care and Health,ASCH,Third Party Payments,EGA,03/12/2018,11-10043,"7,000.00",Alexandra Nursing Home (HC-ONE OVAL,
Nottinghamshire County Council,1111/1001,Adult Social Care and Health,ASCH,Third Party Payments,EGA,03/12/2018,11-10044,2817.14,Adbolton Hall Nursing Home (MPS),
Nottinghamshire County Council,1111/1001,Adult Social Care and Health,ASCH,Third Party Payments,EGA,03/12/2018,11-10045,1728,Aldercar Residential Home,
Nottinghamshire County Council,1111/1001,Adult Social Care and Health,ASCH,Third Party Payments,EGA,03/12/2018,11-10046,"9,826.24",Alexandra Nursing Home (HC-ONE OVAL,
Nottinghamshire County Council,1111/1001,Adult Social Care and Health,ASCH,Third Party Payments,EGA,03/12/2018,11-10047,4512,Alder House,
Nottinghamshire County Council,1111/1001,Adult Social Care and Health,ASCH,Third Party Payments,EGA,03/12/2018,11-10048,"3,209.71",Ashton Court,
Nottinghamshire County Council,1111/1001,Adult Social Care and Health,ASCH,Third Party Payments,EGA,03/12/2018,11-10049,14403.2,Fairview Care Home (Autism East Mid,
Nottinghamshire County Council,1111/1001,Adult Social Care and Health,ASCH,Third Party Payments,EGA,03/12/2018,11-10050,3437.94,Adams House,
Nottinghamshire County Council,1111/1001,Adult Social Care and Health,ASCH,Third Party Payments,EGA,03/12/2018,11-10051,2974.86,Aldercar Residential Home,
Nottinghamshire County Council,1111/1001,Adult Social Care and Health,ASCH,Third Party Payments,EGA,03/12/2018,11-10052,"9,331.42",Acer Court Care Home,
Nottinghamshire County Council,1111/1001,Adult Social Care and Health,ASCH,Third Party Payments,EGA,03/12/2018,11-10053,"2,661.71",Ashton Court,
Nottinghamshire County Council,1111/1001,Adult Social Care and Health,ASCH,Third Party Payments,EGA,03/12/2018,11-10054,908,Adbolton Hall Nursing Home (MPS),
Nottinghamshire County Council,1111/1001,Adult Social Care and Health,ASCH,Third Party Payments,EGA,03/12/2018,11-10055,596,Ashton Court,
Nottinghamshire County Council,1111/1001,Adult Social Care and Health,ASCH,Third Party Payments,EGA,03/12/2018,11-10056,5472,Alder House,
Nottinghamshire County Council,1111/1001,Adult Social Care and Health,ASCH,Third Party Payments,EGA,03/12/2018,11-10057,3522.85,Ashton Court,
Nottinghamshire County Council,1111/1001,Adult Social Care and Health,ASCH,Third Party Payments,EGA,03/12/2018,11-10058,4912,Alder House,
Nottinghamshire County Council,1111/1001,Adult Social Care and Health,ASCH,Third Party Payments,EGA,03/12/2018,11-10059,2861.1,[Redacted],
Nottinghamshire County Council,1111/1001,Adult Social Care and Health,ASCH,Third Party Payments,EGA,03/12/2018,11-10060,"5,896.57",Beauvale N H (HC One),
Nottinghamshire County Council,1111/1001,Adult Social Care and Health,ASCH,Third Party Payments,EGA,03/12/2018,11-10061,4113.29,Belmont Road (Blue Sky Care Ltd),
Nottinghamshire County Council,1111/1001,Adult Social Care and Health,ASCH,Third Party Payments,EGA,03/12/2018,11-10062,"6,280.00",Norwood Schools Ltd,
Nottinghamshire County Council,1111/1001,Adult Social Care and Health,ASCH,Third Party Payments,EGA,03/12/2018,11-10063,2456,Baily House,
Nottinghamshire County Council,1111/1001,Adult Social Care and Health,ASCH,Third Party Payments,EGA,03/12/2018,11-10064,2140,Broadlands Care Home,
Nottinghamshire County Council,1111/1001,Adult Social Care and Health,ASCH,Third Party Payments,EGA,03/12/2018,11-10065,4080.72,Norwood Schools Ltd,
Nottinghamshire County Council,1111/1001,Adult Social Care and Health,ASCH,Third Party Payments,EGA,03/12/2018,11-10066,"2,256.00",Baily House,
Nottinghamshire County Council,1111/1001,Adult Social Care and Health,ASCH,Third Party Payments,EGA,03/12/2018,11-10067,990.86,Berry Hill Park(HC One),
Nottinghamshire County Council,1111/1001,Adult Social Care and Health,ASCH,Third Party Payments,EGA,03/12/2018,11-10068,3700,Belvoir Vale,
Nottinghamshire County Council,1111/1001,Adult Social Care and Health,ASCH,Third Party Payments,EGA,03/12/2018,11-10069,22614.71,Brailsford House Care Home,
Nottinghamshire County Council,1111/1001,Adult Social Care and Health,ASCH,Third Party Payments,EGA,03/12/2018,11-10070,1692,Bramcote Hills Care Home,
Nottinghamshire County Council,1111/1001,Adult Social Care and Health,ASCH,Third Party Payments,EGA,03/12/2018,11-10071,"2,256.00",Belvoir Vale,
Nottinghamshire County Council,1111/1001,Adult Social Care and Health,ASCH,Third Party Payments,EGA,03/12/2018,11-10072,"2,336.00",Baily House,
Nottinghamshire County Council,1111/1001,Adult Social Care and Health,ASCH,Third Party Payments,EGA,03/12/2018,11-10073,3456,Belvoir Vale,
Nottinghamshire County Council,1111/1001,Adult Social Care and Health,ASCH,Third Party Payments,EGA,03/12/2018,11-10074,"2,256.00",Baily House,
Nottinghamshire County Council,1111/1001,Adult Social Care and Health,ASCH,Third Party Payments,EGA,03/12/2018,11-10075,2256,Baily House,
Nottinghamshire County Council,1111/1001,Adult Social Care and Health,ASCH,Third Party Payments,EGA,03/12/2018,11-10076,2297.36,Baily House,
Nottinghamshire County Council,1111/1001,Adult Social Care and Health,ASCH,Third Party Payments,EGA,03/12/2018,11-10077,2140,Broadlands Care Home,
Nottinghamshire County Council,1111/1001,Adult Social Care and Health,ASCH,Third Party Payments,EGA,03/12/2018,11-10078,"11,182.72",Beauvale N H (HC One),
Nottinghamshire County Council,1111/1001,Adult Social Care and Health,ASCH,Third Party Payments,EGA,03/12/2018,11-10079,2005.72,Byars Nursing Home,
Nottinghamshire County Council,1111/1001,Adult Social Care and Health,ASCH,Third Party Payments,EGA,03/12/2018,11-10080,"3,679.43",Beech Court Care Home,
Nottinghamshire County Council,1111/1001,Adult Social Care and Health,ASCH,Third Party Payments,EGA,03/12/2018,11-10081,"4,056.00",Baily House,
Nottinghamshire County Council,1111/1001,Adult Social Care and Health,ASCH,Third Party Payments,EGA,03/12/2018,11-10082,"2,376.00",Baily House,
Nottinghamshire County Council,1111/1001,Adult Social Care and Health,ASCH,Third Party Payments,EGA,03/12/2018,11-10083,"2,376.00",Baily House,
Nottinghamshire County Council,1111/1001,Adult Social Care and Health,ASCH,Third Party Payments,EGA,03/12/2018,11-10084,"4,256.00",Baily House,
Nottinghamshire County Council,1111/1001,Adult Social Care and Health,ASCH,Third Party Payments,EGA,03/12/2018,11-10085,5954.19,Boughton Manor Nursing Homes (Craeg,
Nottinghamshire County Council,1111/1001,Adult Social Care and Health,ASCH,Third Party Payments,EGA,03/12/2018,11-10086,"10,542.86",Belvoir Vale,
Nottinghamshire County Council,1111/1001,Adult Social Care and Health,ASCH,Third Party Payments,EGA,03/12/2018,11-10087,2220,Broadlands Care Home,
Nottinghamshire County Council,1111/1001,Adult Social Care and Health,ASCH,Third Party Payments,EGA,03/12/2018,11-10088,"10,928.57",Beeston Lodge Nursing Home,
Nottinghamshire County Council,1111/1001,Adult Social Care and Health,ASCH,Third Party Payments,EGA,03/12/2018,11-10089,4697.14,Beauvale N H (HC One),
Nottinghamshire County Council,1111/1001,Adult Social Care and Health,ASCH,Third Party Payments,EGA,03/12/2018,11-10090,"2,456.00",Baily House,
Nottinghamshire County Council,1111/1001,Adult Social Care and Health,ASCH,Third Party Payments,EGA,03/12/2018,11-10091,"1,700.00",Bowbridge Court (Ideal),
Nottinghamshire County Council,1111/1001,Adult Social Care and Health,ASCH,Third Party Payments,EGA,03/12/2018,11-10092,2376,Baily House,
Nottinghamshire County Council,1111/1001,Adult Social Care and Health,ASCH,Third Party Payments,EGA,03/12/2018,11-10093,3995,Berry Hill Park(HC One),
Nottinghamshire County Council,1111/1001,Adult Social Care and Health,ASCH,Third Party Payments,EGA,03/12/2018,11-10094,2456,Belvoir Vale,
Nottinghamshire County Council,1111/1001,Adult Social Care and Health,ASCH,Third Party Payments,EGA,03/12/2018,11-10095,625.71,Beauvale N H (HC One),
Nottinghamshire County Council,1111/1001,Adult Social Care and Health,ASCH,Third Party Payments,EGA,03/12/2018,11-10096,805.71,Baily House,
Nottinghamshire County Council,1111/1001,Adult Social Care and Health,ASCH,Third Party Payments,EGA,03/12/2018,11-10097,639.00,Branthwaite Res Home (FBC),
Nottinghamshire County Council,1111/1001,Adult Social Care and Health,ASCH,Third Party Payments,EGA,03/12/2018,11-10098,"2,256.00",Baily House,
Nottinghamshire County Council,1111/1001,Adult Social Care and Health,ASCH,Third Party Payments,EGA,03/12/2018,11-10099,5634.28,Beech Court Care Home,
Nottinghamshire County Council,1111/1001,Adult Social Care and Health,ASCH,Third Party Payments,EGA,03/12/2018,11-10100,2256,Baily House,
Nottinghamshire County Council,1111/1001,Adult Social Care and Health,ASCH,Third Party Payments,EGA,03/12/2018,11-10101,"4,156.00",Baily House,
Nottinghamshire County Council,1111/1001,Adult Social Care and Health,ASCH,Third Party Payments,EGA,03/12/2018,11-10102,2222.04,Beechdale House Nursing Home,
Nottinghamshire County Council,1111/1001,Adult Social Care and Health,ASCH,Third Party Payments,EGA,03/12/2018,11-10103,"2,140.00",Broadlands Care Home,
Nottinghamshire County Council,1111/1001,Adult Social Care and Health,ASCH,Third Party Payments,EGA,03/12/2018,11-10104,2456,Baily House,
Nottinghamshire County Council,1111/1001,Adult Social Care and Health,ASCH,Third Party Payments,EGA,03/12/2018,11-10105,1009.7,Branthwaite Res Home (FBC),
Nottinghamshire County Council,1111/1001,Adult Social Care and Health,ASCH,Third Party Payments,EGA,03/12/2018,11-10106,"2,256.00",Baily House,
Nottinghamshire County Council,1111/1001,Adult Social Care and Health,ASCH,Third Party Payments,EGA,03/12/2018,11-10107,"4,160.24",Belvoir Vale,
Nottinghamshire County Council,1111/1001,Adult Social Care and Health,ASCH,Third Party Payments,EGA,03/12/2018,11-10108,2256,Baily House,
Nottinghamshire County Council,1111/1001,Adult Social Care and Health,ASCH,Third Party Payments,EGA,03/12/2018,11-10109,"2,656.00",Belvoir Vale,
Nottinghamshire County Council,1111/1001,Adult Social Care and Health,ASCH,Third Party Payments,EGA,03/12/2018,11-10110,2324.57,Baily House,
Nottinghamshire County Council,1111/1001,Adult Social Care and Health,ASCH,Third Party Payments,EGA,03/12/2018,11-10111,"2,376.00",Baily House,
Nottinghamshire County Council,1111/1001,Adult Social Care and Health,ASCH,Third Party Payments,EGA,03/12/2018,11-10112,2376,Baily House,
Nottinghamshire County Council,1111/1001,Adult Social Care and Health,ASCH,Third Party Payments,EGA,03/12/2018,11-10113,"4,826.56",Belvoir Vale,
Nottinghamshire County Council,1111/1001,Adult Social Care and Health,ASCH,Third Party Payments,EGA,03/12/2018,11-10114,2400,Belvoir Vale,
Nottinghamshire County Council,1111/1001,Adult Social Care and Health,ASCH,Third Party Payments,EGA,03/12/2018,11-10115,2260,Broadlands Care Home,
Nottinghamshire County Council,1111/1001,Adult Social Care and Health,ASCH,Third Party Payments,EGA,03/12/2018,11-10116,"2,206.04",Beechdale House Nursing Home,
Nottinghamshire County Council,1111/1001,Adult Social Care and Health,ASCH,Third Party Payments,EGA,03/12/2018,11-10117,"2,140.00",Broadlands Care Home,
Nottinghamshire County Council,1111/1001,Adult Social Care and Health,ASCH,Third Party Payments,EGA,03/12/2018,11-10118,"3,455.48",Corner House Care Home (Sanctuary),
Nottinghamshire County Council,1111/1001,Adult Social Care and Health,ASCH,Third Party Payments,EGA,03/12/2018,11-10119,"3,426.32",Corner House Care Home (Sanctuary),
Nottinghamshire County Council,1111/1001,Adult Social Care and Health,ASCH,Third Party Payments,EGA,03/12/2018,11-10120,3228.57,Charnwood C (Four Seasons),
Nottinghamshire County Council,1111/1001,Adult Social Care and Health,ASCH,Third Party Payments,EGA,03/12/2018,11-10121,"1,005.00",Care @ Rainbows End,
Nottinghamshire County Council,1111/1001,Adult Social Care and Health,ASCH,Third Party Payments,EGA,03/12/2018,11-10122,535,Churchfield (Four Seasons),
Nottinghamshire County Council,1111/1001,Adult Social Care and Health,ASCH,Third Party Payments,EGA,03/12/2018,11-10123,"1,677.68",Chester Lodge Care Home,
Nottinghamshire County Council,1111/1001,Adult Social Care and Health,ASCH,Third Party Payments,EGA,03/12/2018,11-10124,3515.4,Corner House Care Home (Sanctuary),
Nottinghamshire County Council,1111/1001,Adult Social Care and Health,ASCH,Third Party Payments,EGA,03/12/2018,11-10125,3748.96,Corner House Care Home (Sanctuary),
Nottinghamshire County Council,1111/1001,Adult Social Care and Health,ASCH,Third Party Payments,EGA,03/12/2018,11-10126,"4,840.00",Care @ Rainbows End,
Nottinghamshire County Council,1111/1001,Adult Social Care and Health,ASCH,Third Party Payments,EGA,03/12/2018,11-10127,7281.64,Care @ Rainbows End,
Nottinghamshire County Council,1111/1001,Adult Social Care and Health,ASCH,Third Party Payments,EGA,03/12/2018,11-10128,"4,214.24",Corner House Care Home (Sanctuary),
Nottinghamshire County Council,1111/1001,Adult Social Care and Health,ASCH,Third Party Payments,EGA,03/12/2018,11-10129,3509.64,Corner House Care Home (Sanctuary),
Nottinghamshire County Council,1111/1001,Adult Social Care and Health,ASCH,Third Party Payments,EGA,03/12/2018,11-10130,3600,Campania Care Home (N Notaro Homes),
Nottinghamshire County Council,1111/1001,Adult Social Care and Health,ASCH,Third Party Payments,EGA,03/12/2018,11-10131,"3,695.36",Corner House Care Home (Sanctuary),
Nottinghamshire County Council,1111/1001,Adult Social Care and Health,ASCH,Third Party Payments,EGA,03/12/2018,11-10132,2000,Church Farm at Skylarks,
Nottinghamshire County Council,1111/1001,Adult Social Care and Health,ASCH,Third Party Payments,EGA,03/12/2018,11-10133,4682.57,Clumber Court (Countrywide Care),
Nottinghamshire County Council,1111/1001,Adult Social Care and Health,ASCH,Third Party Payments,EGA,03/12/2018,11-10134,2575.04,Corner House Care Home (Sanctuary),
Nottinghamshire County Council,1111/1001,Adult Social Care and Health,ASCH,Third Party Payments,EGA,03/12/2018,11-10135,12192.15,Church Farm Nursing Home (Rusticus,
Nottinghamshire County Council,1111/1001,Adult Social Care and Health,ASCH,Third Party Payments,EGA,03/12/2018,11-10136,3390.52,Corner House Care Home (Sanctuary),
Nottinghamshire County Council,1111/1001,Adult Social Care and Health,ASCH,Third Party Payments,EGA,03/12/2018,11-10137,1620,Elmbank Nursing Home,
Nottinghamshire County Council,1111/1001,Adult Social Care and Health,ASCH,Third Party Payments,EGA,03/12/2018,11-10138,1728,Elmbank Nursing Home,
Nottinghamshire County Council,1111/1001,Adult Social Care and Health,ASCH,Third Party Payments,EGA,03/12/2018,11-10139,2675,Ernehale Lodge Care Home Ltd,
Nottinghamshire County Council,1111/1001,Adult Social Care and Health,ASCH,Third Party Payments,EGA,03/12/2018,11-10140,549.71,The Dovecote (IBC),
Nottinghamshire County Council,1111/1001,Adult Social Care and Health,ASCH,Third Party Payments,EGA,03/12/2018,11-10141,2256,Fernleaf Care Home,
Nottinghamshire County Council,1111/1001,Adult Social Care and Health,ASCH,Third Party Payments,EGA,03/12/2018,11-10142,1070,Friary Fields Limited,
Nottinghamshire County Council,1111/1001,Adult Social Care and Health,ASCH,Third Party Payments,EGA,03/12/2018,11-10143,2746.04,Greenfields Care Home,
Nottinghamshire County Council,1111/1001,Adult Social Care and Health,ASCH,Third Party Payments,EGA,03/12/2018,11-10144,2192,Falcon House Residential Home,
Nottinghamshire County Council,1111/1001,Adult Social Care and Health,ASCH,Third Party Payments,EGA,03/12/2018,11-10145,"2,140.00",Friary Fields Limited,
Nottinghamshire County Council,1111/1001,Adult Social Care and Health,ASCH,Third Party Payments,EGA,03/12/2018,11-10146,2751.4,Greenfields Care Home,
Nottinghamshire County Council,1111/1001,Adult Social Care and Health,ASCH,Third Party Payments,EGA,03/12/2018,11-10147,631.43,Flower Park Care Home (Trust Care L,
Nottinghamshire County Council,1111/1001,Adult Social Care and Health,ASCH,Third Party Payments,EGA,03/12/2018,11-10148,"6,915.76",Greenfields Care Home,
Nottinghamshire County Council,1111/1001,Adult Social Care and Health,ASCH,Third Party Payments,EGA,03/12/2018,11-10149,4122.57,Fernleaf Care Home,
Nottinghamshire County Council,1111/1001,Adult Social Care and Health,ASCH,Third Party Payments,EGA,03/12/2018,11-10150,"4,058.72",Gregory Court,
Nottinghamshire County Council,1111/1001,Adult Social Care and Health,ASCH,Third Party Payments,EGA,03/12/2018,11-10151,1584,Forest Manor Care Home (ASHA),
Nottinghamshire County Council,1111/1001,Adult Social Care and Health,ASCH,Third Party Payments,EGA,03/12/2018,11-10152,3256.32,Greenfields Care Home,
Nottinghamshire County Council,1111/1001,Adult Social Care and Health,ASCH,Third Party Payments,EGA,03/12/2018,11-10153,2746.04,Greenfields Care Home,
Nottinghamshire County Council,1111/1001,Adult Social Care and Health,ASCH,Third Party Payments,EGA,03/12/2018,11-10154,"6,860.84",Greenfields Care Home,
Nottinghamshire County Council,1111/1001,Adult Social Care and Health,ASCH,Third Party Payments,EGA,03/12/2018,11-10155,3476.72,Greenfields Care Home,
Nottinghamshire County Council,1111/1001,Adult Social Care and Health,ASCH,Third Party Payments,EGA,03/12/2018,11-10156,2256,Gateford Hill(Countrywide Care),
Nottinghamshire County Council,1111/1001,Adult Social Care and Health,ASCH,Third Party Payments,EGA,03/12/2018,11-10157,2746.04,Greenfields Care Home,
Nottinghamshire County Council,1111/1001,Adult Social Care and Health,ASCH,Third Party Payments,EGA,03/12/2018,11-10158,"6,231.20",Greenfields Care Home,
Nottinghamshire County Council,1111/1001,Adult Social Care and Health,ASCH,Third Party Payments,EGA,03/12/2018,11-10159,3256.32,Greenfields Care Home,
Nottinghamshire County Council,1111/1001,Adult Social Care and Health,ASCH,Third Party Payments,EGA,03/12/2018,11-10160,11938.72,Greenfields Care Home,
Nottinghamshire County Council,1111/1001,Adult Social Care and Health,ASCH,Third Party Payments,EGA,03/12/2018,11-10161,1584,Forest Manor Care Home (ASHA),
Nottinghamshire County Council,1111/1001,Adult Social Care and Health,ASCH,Third Party Payments,EGA,03/12/2018,11-10162,2746.04,Greenfields Care Home,
Nottinghamshire County Council,1111/1001,Adult Social Care and Health,ASCH,Third Party Payments,EGA,03/12/2018,11-10163,"7,739.60",Greenfields Care Home,
Nottinghamshire County Council,1111/1001,Adult Social Care and Health,ASCH,Third Party Payments,EGA,03/12/2018,11-10164,"3,620.86",Fernleaf Care Home,
Nottinghamshire County Council,1111/1001,Adult Social Care and Health,ASCH,Third Party Payments,EGA,03/12/2018,11-10165,11289.36,Glasallt Fawr,
Nottinghamshire County Council,1111/1001,Adult Social Care and Health,ASCH,Third Party Payments,EGA,03/12/2018,11-10166,6998.56,Greenfields Care Home,
Nottinghamshire County Council,1111/1001,Adult Social Care and Health,ASCH,Third Party Payments,EGA,03/12/2018,11-10167,"2,140.00",Friary Fields Limited,
Nottinghamshire County Council,1111/1001,Adult Social Care and Health,ASCH,Third Party Payments,EGA,03/12/2018,11-10168,6836.08,Greenfields Care Home,
Nottinghamshire County Council,1111/1001,Adult Social Care and Health,ASCH,Third Party Payments,EGA,03/12/2018,11-10169,"1,584.00",Forest Manor Care Home (ASHA),
Nottinghamshire County Council,1111/1001,Adult Social Care and Health,ASCH,Third Party Payments,EGA,03/12/2018,11-10170,2746.04,Greenfields Care Home,
Nottinghamshire County Council,1111/1001,Adult Social Care and Health,ASCH,Third Party Payments,EGA,03/12/2018,11-10171,"3,738.92",Greenfields Care Home,
Nottinghamshire County Council,1111/1001,Adult Social Care and Health,ASCH,Third Party Payments,EGA,03/12/2018,11-10172,10088,Greenfields Care Home,
Nottinghamshire County Council,1111/1001,Adult Social Care and Health,ASCH,Third Party Payments,EGA,03/12/2018,11-10173,3132.76,Greenfields Care Home,
Nottinghamshire County Council,1111/1001,Adult Social Care and Health,ASCH,Third Party Payments,EGA,03/12/2018,11-10174,2746.04,Greenfields Care Home,
Nottinghamshire County Council,1111/1001,Adult Social Care and Health,ASCH,Third Party Payments,EGA,03/12/2018,11-10175,3059.44,Greenfields Care Home,
Nottinghamshire County Council,1111/1001,Adult Social Care and Health,ASCH,Third Party Payments,EGA,03/12/2018,11-10176,"2,314.28",Friary Fields Limited,
Nottinghamshire County Council,1111/1001,Adult Social Care and Health,ASCH,Third Party Payments,EGA,03/12/2018,11-10177,"8,220.00",Falcon House Residential Home,
Nottinghamshire County Council,1111/1001,Adult Social Care and Health,ASCH,Third Party Payments,EGA,03/12/2018,11-10178,3984.32,Leonard Cheshire Care Home,
Nottinghamshire County Council,1111/1001,Adult Social Care and Health,ASCH,Third Party Payments,EGA,03/12/2018,11-10179,2256,Jubilee Court Nursing Home,
Nottinghamshire County Council,1111/1001,Adult Social Care and Health,ASCH,Third Party Payments,EGA,03/12/2018,11-10180,2256,Jubilee Court Nursing Home,
Nottinghamshire County Council,1111/1001,Adult Social Care and Health,ASCH,Third Party Payments,EGA,03/12/2018,11-10181,2256,Jubilee Court Nursing Home,
Nottinghamshire County Council,1111/1001,Adult Social Care and Health,ASCH,Third Party Payments,EGA,03/12/2018,11-10182,"2,256.00",Jubilee Court Nursing Home,
Nottinghamshire County Council,1111/1001,Adult Social Care and Health,ASCH,Third Party Payments,EGA,03/12/2018,11-10183,"1,692.00",Jubilee Court Nursing Home,
Nottinghamshire County Council,1111/1001,Adult Social Care and Health,ASCH,Third Party Payments,EGA,03/12/2018,11-10184,"12,402.00",Jubilee Court Nursing Home,
Nottinghamshire County Council,1111/1001,Adult Social Care and Health,ASCH,Third Party Payments,EGA,03/12/2018,11-10185,2256,Jubilee Court Nursing Home,
Nottinghamshire County Council,1111/1001,Adult Social Care and Health,ASCH,Third Party Payments,EGA,03/12/2018,11-10186,"1,128.00",Jubilee Court Nursing Home,
Nottinghamshire County Council,1111/1001,Adult Social Care and Health,ASCH,Third Party Payments,EGA,03/12/2018,11-10187,2256,Jubilee Court Nursing Home,
Nottinghamshire County Council,1111/1001,Adult Social Care and Health,ASCH,Third Party Payments,EGA,03/12/2018,11-10188,"2,496.00",Jubilee Court Nursing Home,
Nottinghamshire County Council,1111/1001,Adult Social Care and Health,ASCH,Third Party Payments,EGA,03/12/2018,11-10189,2496,Jubilee Court Nursing Home,
Nottinghamshire County Council,1111/1001,Adult Social Care and Health,ASCH,Third Party Payments,EGA,03/12/2018,11-10190,2496,Jubilee Court Nursing Home,
Nottinghamshire County Council,1111/1001,Adult Social Care and Health,ASCH,Third Party Payments,EGA,03/12/2018,11-10191,"2,256.00",Jubilee Court Nursing Home,
Nottinghamshire County Council,1111/1001,Adult Social Care and Health,ASCH,Third Party Payments,EGA,03/12/2018,11-10192,"4,056.00",Jubilee Court Nursing Home,
Nottinghamshire County Council,1111/1001,Adult Social Care and Health,ASCH,Third Party Payments,EGA,03/12/2018,11-10193,"2,496.00",Jubilee Court Nursing Home,
Nottinghamshire County Council,1111/1001,Adult Social Care and Health,ASCH,Third Party Payments,EGA,03/12/2018,11-10194,"2,496.00",Jubilee Court Nursing Home,
Nottinghamshire County Council,1111/1001,Adult Social Care and Health,ASCH,Third Party Payments,EGA,03/12/2018,11-10195,"6,314.29",Jubilee Court (Sun Health),
Nottinghamshire County Council,1111/1001,Adult Social Care and Health,ASCH,Third Party Payments,EGA,03/12/2018,11-10196,"2,256.00",Jubilee Court Nursing Home,
Nottinghamshire County Council,1111/1001,Adult Social Care and Health,ASCH,Third Party Payments,EGA,03/12/2018,11-10197,2256,Jubilee Court Nursing Home,
Nottinghamshire County Council,1111/1001,Adult Social Care and Health,ASCH,Third Party Payments,EGA,03/12/2018,11-10198,2256,Jubilee Court Nursing Home,
Nottinghamshire County Council,1111/1001,Adult Social Care and Health,ASCH,Third Party Payments,EGA,03/12/2018,11-10199,"2,256.00",Jubilee Court Nursing Home,
Nottinghamshire County Council,1111/1001,Adult Social Care and Health,ASCH,Third Party Payments,EGA,03/12/2018,11-10200,"2,496.00",Jubilee Court Nursing Home,
Nottinghamshire County Council,1111/1001,Adult Social Care and Health,ASCH,Third Party Payments,EGA,03/12/2018,11-10201,9545.15,Landermeads Nursing Home,
Nottinghamshire County Council,1111/1001,Adult Social Care and Health,ASCH,Third Party Payments,EGA,03/12/2018,11-10202,"2,256.00",Jubilee Court Nursing Home,
Nottinghamshire County Council,1111/1001,Adult Social Care and Health,ASCH,Third Party Payments,EGA,03/12/2018,11-10203,2256,Jubilee Court Nursing Home,
Nottinghamshire County Council,1111/1001,Adult Social Care and Health,ASCH,Third Party Payments,EGA,03/12/2018,11-10204,"2,256.00",Jubilee Court Nursing Home,
Nottinghamshire County Council,1111/1001,Adult Social Care and Health,ASCH,Third Party Payments,EGA,03/12/2018,11-10205,"2,256.00",Jubilee Court Nursing Home,
Nottinghamshire County Council,1111/1001,Adult Social Care and Health,ASCH,Third Party Payments,EGA,03/12/2018,11-10206,2256,Jubilee Court Nursing Home,
Nottinghamshire County Council,1111/1001,Adult Social Care and Health,ASCH,Third Party Payments,EGA,03/12/2018,11-10207,2256,Jubilee Court Nursing Home,
Nottinghamshire County Council,1111/1001,Adult Social Care and Health,ASCH,Third Party Payments,EGA,03/12/2018,11-10208,2256,Jubilee Court Nursing Home,
Nottinghamshire County Council,1111/1001,Adult Social Care and Health,ASCH,Third Party Payments,EGA,03/12/2018,11-10209,2256,Jubilee Court Nursing Home,
Nottinghamshire County Council,1111/1001,Adult Social Care and Health,ASCH,Third Party Payments,EGA,03/12/2018,11-10210,1070,Loxley Lodge Care Home Ltd,
Nottinghamshire County Council,1111/1001,Adult Social Care and Health,ASCH,Third Party Payments,EGA,03/12/2018,11-10211,9350,Jubilee Court (Runwood),
Nottinghamshire County Council,1111/1001,Adult Social Care and Health,ASCH,Third Party Payments,EGA,03/12/2018,11-10212,"2,496.00",Jubilee Court Nursing Home,
Nottinghamshire County Council,1111/1001,Adult Social Care and Health,ASCH,Third Party Payments,EGA,03/12/2018,11-10213,"52,289.97",Acacia Hall (Kisimul),
Nottinghamshire County Council,1111/1001,Adult Social Care and Health,ASCH,Third Party Payments,EGA,03/12/2018,11-10214,"2,256.00",Jubilee Court Nursing Home,
Nottinghamshire County Council,1111/1001,Adult Social Care and Health,ASCH,Third Party Payments,EGA,03/12/2018,11-10215,2496,Jubilee Court Nursing Home,
Nottinghamshire County Council,1111/1001,Adult Social Care and Health,ASCH,Third Party Payments,EGA,03/12/2018,11-10216,"7,170.86",Lawn Park (Four Seasons),
Nottinghamshire County Council,1111/1001,Adult Social Care and Health,ASCH,Third Party Payments,EGA,03/12/2018,11-10217,"2,256.00",Jubilee Court Nursing Home,
Nottinghamshire County Council,1111/1001,Adult Social Care and Health,ASCH,Third Party Payments,EGA,03/12/2018,11-10218,2496,Jubilee Court Nursing Home,
Nottinghamshire County Council,1111/1001,Adult Social Care and Health,ASCH,Third Party Payments,EGA,03/12/2018,11-10219,2256,Jubilee Court Nursing Home,
Nottinghamshire County Council,1111/1001,Adult Social Care and Health,ASCH,Third Party Payments,EGA,03/12/2018,11-10220,2256,Jubilee Court Nursing Home,
Nottinghamshire County Council,1111/1001,Adult Social Care and Health,ASCH,Third Party Payments,EGA,03/12/2018,11-10221,"2,256.00",Jubilee Court Nursing Home,
Nottinghamshire County Council,1111/1001,Adult Social Care and Health,ASCH,Third Party Payments,EGA,03/12/2018,11-10222,"5,438.29",Jubilee Court Nursing Home,
Nottinghamshire County Council,1111/1001,Adult Social Care and Health,ASCH,Third Party Payments,EGA,03/12/2018,11-10223,"1,012.51",Little Acres RH (Prime Life),
Nottinghamshire County Council,1111/1001,Adult Social Care and Health,ASCH,Third Party Payments,EGA,03/12/2018,11-10224,7565,Jubilee Court (Runwood),
Nottinghamshire County Council,1111/1001,Adult Social Care and Health,ASCH,Third Party Payments,EGA,03/12/2018,11-10225,2598.57,Jubilee Court (Runwood),
Nottinghamshire County Council,1111/1001,Adult Social Care and Health,ASCH,Third Party Payments,EGA,03/12/2018,11-10226,2004,Landermeads Nursing Home,
Nottinghamshire County Council,1111/1001,Adult Social Care and Health,ASCH,Third Party Payments,EGA,03/12/2018,11-10227,"2,140.00",Jubilee Court (Runwood),
Nottinghamshire County Council,1111/1001,Adult Social Care and Health,ASCH,Third Party Payments,EGA,03/12/2018,11-10228,3222.86,Lawn Park (Four Seasons),
Nottinghamshire County Council,1111/1001,Adult Social Care and Health,ASCH,Third Party Payments,EGA,03/12/2018,11-10229,2256,Jubilee Court Nursing Home,
Nottinghamshire County Council,1111/1001,Adult Social Care and Health,ASCH,Third Party Payments,EGA,03/12/2018,11-10230,"1,128.00",Jubilee Court Nursing Home,
Nottinghamshire County Council,1111/1001,Adult Social Care and Health,ASCH,Third Party Payments,EGA,03/12/2018,11-10231,966.85,Jubilee Court Nursing Home,
Nottinghamshire County Council,1111/1001,Adult Social Care and Health,ASCH,Third Party Payments,EGA,03/12/2018,11-10232,"2,496.00",Jubilee Court Nursing Home,
Nottinghamshire County Council,1111/1001,Adult Social Care and Health,ASCH,Third Party Payments,EGA,03/12/2018,11-10233,4224.68,Knebworth Care Home (Care UK),
Nottinghamshire County Council,1111/1001,Adult Social Care and Health,ASCH,Third Party Payments,EGA,03/12/2018,11-10234,"2,256.00",Jubilee Court Nursing Home,
Nottinghamshire County Council,1111/1001,Adult Social Care and Health,ASCH,Third Party Payments,EGA,03/12/2018,11-10235,2556,Jubilee Court Nursing Home,
Nottinghamshire County Council,1111/1001,Adult Social Care and Health,ASCH,Third Party Payments,EGA,03/12/2018,11-10236,"2,256.00",Jubilee Court Nursing Home,
Nottinghamshire County Council,1111/1001,Adult Social Care and Health,ASCH,Third Party Payments,EGA,03/12/2018,11-10237,"2,256.00",Jubilee Court Nursing Home,
Nottinghamshire County Council,1111/1001,Adult Social Care and Health,ASCH,Third Party Payments,EGA,03/12/2018,11-10238,"2,496.00",Jubilee Court Nursing Home,
Nottinghamshire County Council,1111/1001,Adult Social Care and Health,ASCH,Third Party Payments,EGA,03/12/2018,11-10239,1001.74,Landermeads Nursing Home,
Nottinghamshire County Council,1111/1001,Adult Social Care and Health,ASCH,Third Party Payments,EGA,03/12/2018,11-10240,2256,Jubilee Court Nursing Home,
Nottinghamshire County Council,1111/1001,Adult Social Care and Health,ASCH,Third Party Payments,EGA,03/12/2018,11-10241,2496,Jubilee Court Nursing Home,
Nottinghamshire County Council,1111/1001,Adult Social Care and Health,ASCH,Third Party Payments,EGA,03/12/2018,11-10242,"8,568.00",Manor House (CCT Community),
Nottinghamshire County Council,1111/1001,Adult Social Care and Health,ASCH,Third Party Payments,EGA,03/12/2018,11-10243,2808,Nightingale Care Home,
Nottinghamshire County Council,1111/1001,Adult Social Care and Health,ASCH,Third Party Payments,EGA,03/12/2018,11-10244,"3,810.72",Normanton Village View NH (Rushclif,
Nottinghamshire County Council,1111/1001,Adult Social Care and Health,ASCH,Third Party Payments,EGA,03/12/2018,11-10245,3988.86,Maun View (Runwood),
Nottinghamshire County Council,1111/1001,Adult Social Care and Health,ASCH,Third Party Payments,EGA,03/12/2018,11-10246,10971,Nossmayo Residential Care Home,
Nottinghamshire County Council,1111/1001,Adult Social Care and Health,ASCH,Third Party Payments,EGA,03/12/2018,11-10247,4384,Maun View (Runwood),
Nottinghamshire County Council,1111/1001,Adult Social Care and Health,ASCH,Third Party Payments,EGA,03/12/2018,11-10248,13069.43,Newgate Lodge Care Home,
Nottinghamshire County Council,1111/1001,Adult Social Care and Health,ASCH,Third Party Payments,EGA,03/12/2018,11-10249,3384,Nightingale Care Home,
Nottinghamshire County Council,1111/1001,Adult Social Care and Health,ASCH,Third Party Payments,EGA,03/12/2018,11-10250,4990,Mayfield House (Milestones Care),
Nottinghamshire County Council,1111/1001,Adult Social Care and Health,ASCH,Third Party Payments,EGA,03/12/2018,11-10251,1890.47,Portland Residential College,
Nottinghamshire County Council,1111/1001,Adult Social Care and Health,ASCH,Third Party Payments,EGA,03/12/2018,11-10252,6354.81,Portland Residential College,
Nottinghamshire County Council,1111/1001,Adult Social Care and Health,ASCH,Third Party Payments,EGA,03/12/2018,11-10253,"5,965.74",Portland Residential College,
Nottinghamshire County Council,1111/1001,Adult Social Care and Health,ASCH,Third Party Payments,EGA,03/12/2018,11-10254,"6,188.08",The Old Orchard,
Nottinghamshire County Council,1111/1001,Adult Social Care and Health,ASCH,Third Party Payments,EGA,03/12/2018,11-10255,1408.32,Portland Residential College,
Nottinghamshire County Council,1111/1001,Adult Social Care and Health,ASCH,Third Party Payments,EGA,03/12/2018,11-10256,5917.92,The Old Orchard,
Nottinghamshire County Council,1111/1001,Adult Social Care and Health,ASCH,Third Party Payments,EGA,03/12/2018,11-10257,"1,214.28",Orchard House,
Nottinghamshire County Council,1111/1001,Adult Social Care and Health,ASCH,Third Party Payments,EGA,03/12/2018,11-10258,"3,381.86",Parkside Care Home,
Nottinghamshire County Council,1111/1001,Adult Social Care and Health,ASCH,Third Party Payments,EGA,03/12/2018,11-10259,3000,Pathfinders Neurological Care Centr,
Nottinghamshire County Council,1111/1001,Adult Social Care and Health,ASCH,Third Party Payments,EGA,03/12/2018,11-10260,1070,Oaks Care C (Four Seasons),
Nottinghamshire County Council,1111/1001,Adult Social Care and Health,ASCH,Third Party Payments,EGA,03/12/2018,11-10261,21330,Pathfinders Neurological Care Centr,
Nottinghamshire County Council,1111/1001,Adult Social Care and Health,ASCH,Third Party Payments,EGA,03/12/2018,11-10262,535,Old Vicarage (Four Seasons),
Nottinghamshire County Council,1111/1001,Adult Social Care and Health,ASCH,Third Party Payments,EGA,03/12/2018,11-10263,778.14,Portland Residential College,
Nottinghamshire County Council,1111/1001,Adult Social Care and Health,ASCH,Third Party Payments,EGA,03/12/2018,11-10264,5965.74,Portland Residential College,
Nottinghamshire County Council,1111/1001,Adult Social Care and Health,ASCH,Third Party Payments,EGA,03/12/2018,11-10265,25116.86,Orchard End Care Home (Creative Car,
Nottinghamshire County Council,1111/1001,Adult Social Care and Health,ASCH,Third Party Payments,EGA,03/12/2018,11-10266,1325.85,Oakdene Care Centre (Prime Life),
Nottinghamshire County Council,1111/1001,Adult Social Care and Health,ASCH,Third Party Payments,EGA,03/12/2018,11-10267,"5,768.24",The Old Orchard,
Nottinghamshire County Council,1111/1001,Adult Social Care and Health,ASCH,Third Party Payments,EGA,03/12/2018,11-10268,"8,231.09",Portland Residential College,
Nottinghamshire County Council,1111/1001,Adult Social Care and Health,ASCH,Third Party Payments,EGA,03/12/2018,11-10269,6924.2,The Old Orchard,
Nottinghamshire County Council,1111/1001,Adult Social Care and Health,ASCH,Third Party Payments,EGA,03/12/2018,11-10270,8532.2,Pembrokeshire Resource Centre,
Nottinghamshire County Council,1111/1001,Adult Social Care and Health,ASCH,Third Party Payments,EGA,03/12/2018,11-10271,1070,Oaks Care C (Four Seasons),
Nottinghamshire County Council,1111/1001,Adult Social Care and Health,ASCH,Third Party Payments,EGA,03/12/2018,11-10272,"1,070.00",Oaks Care C (Four Seasons),
Nottinghamshire County Council,1111/1001,Adult Social Care and Health,ASCH,Third Party Payments,EGA,03/12/2018,11-10273,3295.14,Parkside Care Home,
Nottinghamshire County Council,1111/1001,Adult Social Care and Health,ASCH,Third Party Payments,EGA,03/12/2018,11-10274,"1,200.00",Pathfinders Neurological Care Centr,
Nottinghamshire County Council,1111/1001,Adult Social Care and Health,ASCH,Third Party Payments,EGA,03/12/2018,11-10275,"1,942.28",Rock House Residential Home,
Nottinghamshire County Council,1111/1001,Adult Social Care and Health,ASCH,Third Party Payments,EGA,03/12/2018,11-10276,1128,Red Roofs Rest Home - (Midlands Ltd,
Nottinghamshire County Council,1111/1001,Adult Social Care and Health,ASCH,Third Party Payments,EGA,03/12/2018,11-10277,"1,942.28",Rock House Residential Home,
Nottinghamshire County Council,1111/1001,Adult Social Care and Health,ASCH,Third Party Payments,EGA,03/12/2018,11-10278,"1,942.28",Rock House Residential Home,
Nottinghamshire County Council,1111/1001,Adult Social Care and Health,ASCH,Third Party Payments,EGA,03/12/2018,11-10279,"8,460.00",Southwell Court Care Home,
Nottinghamshire County Council,1111/1001,Adult Social Care and Health,ASCH,Third Party Payments,EGA,03/12/2018,11-10280,1686.28,Sherwood Grange Care Ltd,
Nottinghamshire County Council,1111/1001,Adult Social Care and Health,ASCH,Third Party Payments,EGA,03/12/2018,11-10281,9720,Silverwood Care H (HC One),
Nottinghamshire County Council,1111/1001,Adult Social Care and Health,ASCH,Third Party Payments,EGA,03/12/2018,11-10282,4536,Silverwood Care H (HC One),
Nottinghamshire County Council,1111/1001,Adult Social Care and Health,ASCH,Third Party Payments,EGA,03/12/2018,11-10283,908,Sherwood Grange Care Ltd,
Nottinghamshire County Council,1111/1001,Adult Social Care and Health,ASCH,Third Party Payments,EGA,03/12/2018,11-10284,1983.3,Shrubbery Care Home (Adara Healthca,
Nottinghamshire County Council,1111/1001,Adult Social Care and Health,ASCH,Third Party Payments,EGA,03/12/2018,11-10285,1128,St Saviours Care Home,
Nottinghamshire County Council,1111/1001,Adult Social Care and Health,ASCH,Third Party Payments,EGA,03/12/2018,11-10286,504,Red Firs Care Home T/A Strawberry F,
Nottinghamshire County Council,1111/1001,Adult Social Care and Health,ASCH,Third Party Payments,EGA,03/12/2018,11-10287,"2,256.00",St Saviours Care Home,
Nottinghamshire County Council,1111/1001,Adult Social Care and Health,ASCH,Third Party Payments,EGA,03/12/2018,11-10288,"2,456.00",St Saviours Care Home,
Nottinghamshire County Council,1111/1001,Adult Social Care and Health,ASCH,Third Party Payments,EGA,03/12/2018,11-10289,9829.71,St Saviours Care Home,
Nottinghamshire County Council,1111/1001,Adult Social Care and Health,ASCH,Third Party Payments,EGA,03/12/2018,11-10290,2256,St Saviours Care Home,
Nottinghamshire County Council,1111/1001,Adult Social Care and Health,ASCH,Third Party Payments,EGA,03/12/2018,11-10291,"3,061.72",St Saviours Care Home,
Nottinghamshire County Council,1111/1001,Adult Social Care and Health,ASCH,Third Party Payments,EGA,03/12/2018,11-10292,"2,256.00",St Saviours Care Home,
Nottinghamshire County Council,1111/1001,Adult Social Care and Health,ASCH,Third Party Payments,EGA,03/12/2018,11-10293,2094.85,St Saviours Care Home,
Nottinghamshire County Council,1111/1001,Adult Social Care and Health,ASCH,Third Party Payments,EGA,03/12/2018,11-10294,"2,256.00",St Saviours Care Home,
Nottinghamshire County Council,1111/1001,Adult Social Care and Health,ASCH,Third Party Payments,EGA,03/12/2018,11-10295,2456,St Saviours Care Home,
Nottinghamshire County Council,1111/1001,Adult Social Care and Health,ASCH,Third Party Payments,EGA,03/12/2018,11-10296,1128,St Saviours Care Home,
Nottinghamshire County Council,1111/1001,Adult Social Care and Health,ASCH,Third Party Payments,EGA,03/12/2018,11-10297,2296,St Saviours Care Home,
Nottinghamshire County Council,1111/1001,Adult Social Care and Health,ASCH,Third Party Payments,EGA,03/12/2018,11-10298,2256,St Saviours Care Home,
Nottinghamshire County Council,1111/1001,Adult Social Care and Health,ASCH,Third Party Payments,EGA,03/12/2018,11-10299,"2,256.00",St Saviours Care Home,
Nottinghamshire County Council,1111/1001,Adult Social Care and Health,ASCH,Third Party Payments,EGA,03/12/2018,11-10300,966.85,St Saviours Care Home,
Nottinghamshire County Council,1111/1001,Adult Social Care and Health,ASCH,Third Party Payments,EGA,03/12/2018,11-10301,504,Red Firs Care Home T/A Strawberry F,
Nottinghamshire County Council,1111/1001,Adult Social Care and Health,ASCH,Third Party Payments,EGA,03/12/2018,11-10302,1128,Sutton Court Care Home (Ashmere),
Nottinghamshire County Council,1111/1001,Adult Social Care and Health,ASCH,Third Party Payments,EGA,03/12/2018,11-10303,1692,St Saviours Care Home,
Nottinghamshire County Council,1111/1001,Adult Social Care and Health,ASCH,Third Party Payments,EGA,03/12/2018,11-10304,"2,536.00",St Saviours Care Home,
Nottinghamshire County Council,1111/1001,Adult Social Care and Health,ASCH,Third Party Payments,EGA,03/12/2018,11-10305,"2,456.00",St Saviours Care Home,
Nottinghamshire County Council,1111/1001,Adult Social Care and Health,ASCH,Third Party Payments,EGA,03/12/2018,11-10306,2256,St Saviours Care Home,
Nottinghamshire County Council,1111/1001,Adult Social Care and Health,ASCH,Third Party Payments,EGA,03/12/2018,11-10307,2658.86,St Saviours Care Home,
Nottinghamshire County Council,1111/1001,Adult Social Care and Health,ASCH,Third Party Payments,EGA,03/12/2018,11-10308,"2,256.00",St Saviours Care Home,
Nottinghamshire County Council,1111/1001,Adult Social Care and Health,ASCH,Third Party Payments,EGA,03/12/2018,11-10309,"1,228.00",St Saviours Care Home,
Nottinghamshire County Council,1111/1001,Adult Social Care and Health,ASCH,Third Party Payments,EGA,03/12/2018,11-10310,"1,362.29",Sutton Court Care Home (Ashmere),
Nottinghamshire County Council,1111/1001,Adult Social Care and Health,ASCH,Third Party Payments,EGA,03/12/2018,11-10311,2256,St Saviours Care Home,
Nottinghamshire County Council,1111/1001,Adult Social Care and Health,ASCH,Third Party Payments,EGA,03/12/2018,11-10312,"2,356.00",St Saviours Care Home,
Nottinghamshire County Council,1111/1001,Adult Social Care and Health,ASCH,Third Party Payments,EGA,03/12/2018,11-10313,2540.29,St Saviours Care Home,
Nottinghamshire County Council,1111/1001,Adult Social Care and Health,ASCH,Third Party Payments,EGA,03/12/2018,11-10314,2456,St Saviours Care Home,
Nottinghamshire County Council,1111/1001,Adult Social Care and Health,ASCH,Third Party Payments,EGA,03/12/2018,11-10315,2256,St Saviours Care Home,
Nottinghamshire County Council,1111/1001,Adult Social Care and Health,ASCH,Third Party Payments,EGA,03/12/2018,11-10316,"1,800.00",Sutton Court Care Home (Ashmere),
Nottinghamshire County Council,1111/1001,Adult Social Care and Health,ASCH,Third Party Payments,EGA,03/12/2018,11-10317,"2,456.00",St Saviours Care Home,
Nottinghamshire County Council,1111/1001,Adult Social Care and Health,ASCH,Third Party Payments,EGA,03/12/2018,11-10318,1228,St Saviours Care Home,
Nottinghamshire County Council,1111/1001,Adult Social Care and Health,ASCH,Third Party Payments,EGA,03/12/2018,11-10319,2296,St Saviours Care Home,
Nottinghamshire County Council,1111/1001,Adult Social Care and Health,ASCH,Third Party Payments,EGA,03/12/2018,11-10320,614.00,St Saviours Care Home,
Nottinghamshire County Council,1111/1001,Adult Social Care and Health,ASCH,Third Party Payments,EGA,03/12/2018,11-10321,"2,256.00",St Saviours Care Home,
Nottinghamshire County Council,1111/1001,Adult Social Care and Health,ASCH,Third Party Payments,EGA,03/12/2018,11-10322,"1,228.00",Sutton Court Care Home (Ashmere),
Nottinghamshire County Council,1111/1001,Adult Social Care and Health,ASCH,Third Party Payments,EGA,03/12/2018,11-10323,2675,The Troc Residential Home (Reason C,
Nottinghamshire County Council,1111/1001,Adult Social Care and Health,ASCH,Third Party Payments,EGA,03/12/2018,11-10324,2496,Westvilla Nursing Home,
Nottinghamshire County Council,1111/1001,Adult Social Care and Health,ASCH,Third Party Payments,EGA,03/12/2018,11-10325,1119.12,Tristford (MNP),
Nottinghamshire County Council,1111/1001,Adult Social Care and Health,ASCH,Third Party Payments,EGA,03/12/2018,11-10326,535.00,The Troc Residential Home (Reason C,
Nottinghamshire County Council,1111/1001,Adult Social Care and Health,ASCH,Third Party Payments,EGA,03/12/2018,11-10327,2256,Westvilla Nursing Home,
Nottinghamshire County Council,1111/1001,Adult Social Care and Health,ASCH,Third Party Payments,EGA,03/12/2018,11-10328,"2,496.00",Westvilla Nursing Home,
